Purchasing Organisation,Payment Date,Voucher Number (Internal Classification),Payment Number,Supplier Name,Service Area,Amount (�),Purpose,Supplier Type (Internal Classification),Invoice Type (Internal Classification),Cost Centre No,Directorate
RBC Legal Entity,03/02/2022,4648549,62,DEAF REACH UK,ASC Senior Management Team,-4645,Other support - not recoverabl,Third Party Supplier,CREDIT,5700,JAAA-Directorate of Social Care and Health Services
RBC Legal Entity,09/02/2022,3823127,63,SWIIS UK LTD,External Placements,693.98,Foster Care Allowance,Third Party Supplier,STANDARD,5400,NAAA-Former Directorate of Education and Childrens Services
RBC Legal Entity,09/02/2022,3823130,63,SWIIS UK LTD,External Placements,-693.98,Foster Care Allowance,Third Party Supplier,CREDIT,5400,NAAA-Former Directorate of Education and Childrens Services
RBC Legal Entity,09/02/2022,3823132,63,SWIIS UK LTD,External Placements,-693.98,Foster Care Allowance,Third Party Supplier,CREDIT,5400,NAAA-Former Directorate of Education and Childrens Services
RBC Legal Entity,09/02/2022,4649434,64,FORPSYCH LTD,JLT Disbursements,-700,Misc. Legal Expenses,Third Party Supplier,CREDIT,2407,LAAA-Directorate of Resources
RBC Legal Entity,15/02/2022,4650748,65,MORRIS & BLUNT,Crematorium,-1518,Grounds Maintenance,SUB-CONTRACTOR,CREDIT,4606,LAAA-Directorate of Resources
RBC Legal Entity,02/02/2022,4647088,176,FLORENCE CARE (READING) LTD,M&C Acquired Nursing,97584,EMI,Direct Payments,STANDARD,5753,JAAA-Directorate of Social Care and Health Services
RBC Legal Entity,02/02/2022,4647197,176,FLORENCE CARE (READING) LTD,M&C Acquired Nursing,-11556,EMI,Direct Payments,CREDIT,5753,JAAA-Directorate of Social Care and Health Services
RBC Legal Entity,11/02/2022,4087017,178,ABILITY HOUSING ASSOCIATION,LD Community Services,1722.82,Purchased Care,SUPPLIER,STANDARD,5741,JAAA-Directorate of Social Care and Health Services
RBC Legal Entity,11/02/2022,4087018,178,ABILITY HOUSING ASSOCIATION,LD Community Services,-1722.82,Purchased Care,SUPPLIER,CREDIT,5741,JAAA-Directorate of Social Care and Health Services
RBC Legal Entity,11/02/2022,4087019,178,ABILITY HOUSING ASSOCIATION,LD Community Services,1556.1,Purchased Care,SUPPLIER,STANDARD,5741,JAAA-Directorate of Social Care and Health Services
RBC Legal Entity,11/02/2022,4087020,178,ABILITY HOUSING ASSOCIATION,LD Community Services,-1556.1,Purchased Care,SUPPLIER,CREDIT,5741,JAAA-Directorate of Social Care and Health Services
RBC Legal Entity,11/02/2022,4279252,179,BMT GROUP LIMITED,Planning,800,TPP  Contract,SUPPLIER,STANDARD,4700,KAAA-Directorate of Economic Growth and Neighbourhood Services
RBC Legal Entity,11/02/2022,4288744,179,BMT GROUP LIMITED,Planning,-800,TPP  Contract,SUPPLIER,CREDIT,4700,KAAA-Directorate of Economic Growth and Neighbourhood Services
RBC Legal Entity,11/02/2022,3754958,180,CU CARE LTD,PS Acquired Residential,-15268.67,Purchased Care,SUPPLIER,CREDIT,5772,JAAA-Directorate of Social Care and Health Services
RBC Legal Entity,11/02/2022,3755086,180,CU CARE LTD,M&C Acquired Residential,15268.67,Purchased Care,SUPPLIER,STANDARD,5752,JAAA-Directorate of Social Care and Health Services
RBC Legal Entity,11/02/2022,4531096,181,ECOLAB LTD,Repairs,901.97,Estate Maintenance,SUPPLIER,STANDARD,5970,HAAA-Housing Revenue Account
RBC Legal Entity,11/02/2022,4536545,181,ECOLAB LTD,Repairs,-901.97,Estate Maintenance,SUPPLIER,CREDIT,5970,HAAA-Housing Revenue Account
RBC Legal Entity,11/02/2022,4048547,182,FINEFUTURES LTD,LD Community Services,1820,Purchased Care,SUPPLIER,STANDARD,5741,JAAA-Directorate of Social Care and Health Services
RBC Legal Entity,11/02/2022,4048548,182,FINEFUTURES LTD,LD Community Services,-1820,Purchased Care,SUPPLIER,CREDIT,5741,JAAA-Directorate of Social Care and Health Services
RBC Legal Entity,11/02/2022,4294632,184,HORIZON CARE,External Placements,5750,Purchased Care,SUPPLIER,STANDARD,5400,NAAA-Former Directorate of Education and Childrens Services
RBC Legal Entity,11/02/2022,4294633,184,HORIZON CARE,External Placements,-5750,Purchased Care,SUPPLIER,CREDIT,5400,NAAA-Former Directorate of Education and Childrens Services
RBC Legal Entity,11/02/2022,4341205,184,HORIZON CARE,External Placements,10500,Purchased Care,SUPPLIER,STANDARD,5400,NAAA-Former Directorate of Education and Childrens Services
RBC Legal Entity,11/02/2022,4341206,184,HORIZON CARE,External Placements,-10500,Purchased Care,SUPPLIER,CREDIT,5400,NAAA-Former Directorate of Education and Childrens Services
RBC Legal Entity,11/02/2022,4641802,185,HQN LIMITED,DLO Housing Building Maintenance (General),-450,Training & Development Costs,SUPPLIER,CREDIT,4005,KAAA-Directorate of Economic Growth and Neighbourhood Services
RBC Legal Entity,11/02/2022,4644191,185,HQN LIMITED,DLO Housing Building Maintenance (General),450,Training & Development Costs,SUPPLIER,STANDARD,4005,KAAA-Directorate of Economic Growth and Neighbourhood Services
RBC Legal Entity,11/02/2022,4109470,190,MARK A'BEAR,School Improvement,-1040,Consultancy Fees,Third Party Supplier,CREDIT,3863,NAAA-Former Directorate of Education and Childrens Services
RBC Legal Entity,11/02/2022,4109473,190,MARK A'BEAR,School Improvement,1040,Consultancy Fees,Third Party Supplier,STANDARD,3863,NAAA-Former Directorate of Education and Childrens Services
RBC Legal Entity,11/02/2022,4279464,192,NEWBURY COLLEGE,High Needs Block (DSG) ? Top Up Funding,39195.95,Education Placements,SUPPLIER,STANDARD,3625,NAAA-Former Directorate of Education and Childrens Services
RBC Legal Entity,11/02/2022,4279465,192,NEWBURY COLLEGE,High Needs Block (DSG) ? Top Up Funding,-35628.39,Education Placements,SUPPLIER,CREDIT,3625,NAAA-Former Directorate of Education and Childrens Services
RBC Legal Entity,11/02/2022,4456914,192,NEWBURY COLLEGE,High Needs Block (DSG) ? Top Up Funding,-1783.78,Education Placements,SUPPLIER,CREDIT,3625,NAAA-Former Directorate of Education and Childrens Services
RBC Legal Entity,11/02/2022,4456915,192,NEWBURY COLLEGE,High Needs Block (DSG) ? Top Up Funding,-1783.78,Education Placements,SUPPLIER,CREDIT,3625,NAAA-Former Directorate of Education and Childrens Services
RBC Legal Entity,11/02/2022,4327069,193,NEXT STEP FOSTERING,External Placements,9189.77,Foster Care Allowance,SUPPLIER,STANDARD,5400,NAAA-Former Directorate of Education and Childrens Services
RBC Legal Entity,11/02/2022,4327070,193,NEXT STEP FOSTERING,External Placements,-9189.77,Foster Care Allowance,SUPPLIER,CREDIT,5400,NAAA-Former Directorate of Education and Childrens Services
RBC Legal Entity,11/02/2022,4057363,195,OXFORD HEALTH NHS FOUNDATION TRUST,Exchequer Services,10010,Building Maintenance,SUPPLIER,STANDARD,2210,LAAA-Directorate of Resources
RBC Legal Entity,11/02/2022,4057364,195,OXFORD HEALTH NHS FOUNDATION TRUST,Exchequer Services,-10010,Building Maintenance,SUPPLIER,CREDIT,2210,LAAA-Directorate of Resources
RBC Legal Entity,11/02/2022,4379236,196,PERSONAL SECURITY SERVICES LIMITED,Children in need expenses,1182.22,Booked Travel,Third Party Supplier,STANDARD,5426,NAAA-Former Directorate of Education and Childrens Services
RBC Legal Entity,11/02/2022,4379237,196,PERSONAL SECURITY SERVICES LIMITED,Children in need expenses,-1182.22,Booked Travel,Third Party Supplier,CREDIT,5426,NAAA-Former Directorate of Education and Childrens Services
RBC Legal Entity,11/02/2022,4587641,198,PPC TRANSPORT LIMITED,Corporate Maintenance Services,580,NNDR Pool,Third Party Supplier,STANDARD,4080,KAAA-Directorate of Economic Growth and Neighbourhood Services
RBC Legal Entity,11/02/2022,4601166,198,PPC TRANSPORT LIMITED,Corporate Maintenance Services,-580,NNDR Pool,Third Party Supplier,CREDIT,4080,KAAA-Directorate of Economic Growth and Neighbourhood Services
RBC Legal Entity,11/02/2022,4319527,199,PROSPECT SCHOOL,Syrian Refugee?s,-3100,Computer Consumables,SUPPLIER,CREDIT,2022,LAAA-Directorate of Resources
RBC Legal Entity,11/02/2022,4613821,199,PROSPECT SCHOOL,Syrian Refugee?s,620,Computer Consumables,SUPPLIER,STANDARD,2022,LAAA-Directorate of Resources
RBC Legal Entity,11/02/2022,4613821,199,PROSPECT SCHOOL,Syrian Refugee?s,3100,Computer Consumables,SUPPLIER,STANDARD,2022,LAAA-Directorate of Resources
RBC Legal Entity,11/02/2022,4613822,199,PROSPECT SCHOOL,Syrian Refugee?s,-620,Computer Consumables,SUPPLIER,CREDIT,2022,LAAA-Directorate of Resources
RBC Legal Entity,11/02/2022,3984312,200,RANDSTAD CARE LTD,Personal Budget Support Team,1725,Travel Expenses,SUPPLIER,STANDARD,5258,JAAA-Directorate of Social Care and Health Services
RBC Legal Entity,11/02/2022,4237515,200,RANDSTAD CARE LTD,Personal Budget Support Team,-1725,Travel Expenses,SUPPLIER,CREDIT,5258,JAAA-Directorate of Social Care and Health Services
RBC Legal Entity,11/02/2022,4204349,201,RED BALLOON LEARNER CENTRE READING,High Needs Block (DSG) ? Top Up Funding,7000,Education Placements,SUPPLIER,STANDARD,3625,NAAA-Former Directorate of Education and Childrens Services
RBC Legal Entity,11/02/2022,4220541,201,RED BALLOON LEARNER CENTRE READING,High Needs Block (DSG) ? Top Up Funding,-7000,Education Placements,SUPPLIER,CREDIT,3625,NAAA-Former Directorate of Education and Childrens Services
RBC Legal Entity,11/02/2022,4577876,202,RENAULT TRUCK COMMERCIAL LTD,Corporate Vehicle Procurement,-66787,Vehicles,SUPPLIER,CREDIT,8623,ZZZC-Capital
RBC Legal Entity,11/02/2022,4577876,202,RENAULT TRUCK COMMERCIAL LTD,Corporate Vehicle Procurement,-340,Vehicles,SUPPLIER,CREDIT,8623,ZZZC-Capital
RBC Legal Entity,11/02/2022,4577877,202,RENAULT TRUCK COMMERCIAL LTD,Corporate Vehicle Procurement,340,Vehicles,SUPPLIER,STANDARD,8623,ZZZC-Capital
RBC Legal Entity,11/02/2022,4577877,202,RENAULT TRUCK COMMERCIAL LTD,Corporate Vehicle Procurement,66787,Vehicles,SUPPLIER,STANDARD,8623,ZZZC-Capital
RBC Legal Entity,11/02/2022,3951161,203,ROSAMOND CAPEK,Section 17 expenses,-1800,Rent Paid,SUPPLIER,CREDIT,5427,NAAA-Former Directorate of Education and Childrens Services
RBC Legal Entity,11/02/2022,4021161,203,ROSAMOND CAPEK,Section 17 expenses,900,Rent Paid,SUPPLIER,STANDARD,5427,NAAA-Former Directorate of Education and Childrens Services
RBC Legal Entity,11/02/2022,4021162,203,ROSAMOND CAPEK,Section 17 expenses,900,Rent Paid,SUPPLIER,STANDARD,5427,NAAA-Former Directorate of Education and Childrens Services
RBC Legal Entity,11/02/2022,4536009,205,SECURITY AND ELECTRONIC SOLUTIONS LTD,Strategic Transport & Concessionary Fares,-1148.02,TPP to Others,SUPPLIER,CREDIT,4726,KAAA-Directorate of Economic Growth and Neighbourhood Services
RBC Legal Entity,11/02/2022,4544777,205,SECURITY AND ELECTRONIC SOLUTIONS LTD,Strategic Transport & Concessionary Fares,1148.02,TPP to Others,SUPPLIER,STANDARD,4726,KAAA-Directorate of Economic Growth and Neighbourhood Services
RBC Legal Entity,11/02/2022,4275494,206,SIMPLY COMMERCE GROUP LTD,ASC Locality Team,-2350,Car Allowances,SUPPLIER,CREDIT,5721,JAAA-Directorate of Social Care and Health Services
RBC Legal Entity,11/02/2022,4275495,206,SIMPLY COMMERCE GROUP LTD,ASC Locality Team,2350,Car Allowances,SUPPLIER,STANDARD,5721,JAAA-Directorate of Social Care and Health Services
RBC Legal Entity,11/02/2022,4642818,207,SOLUTIONS 4 HEALTH LTD,Berkshire West Public Health Hub,48000,Payments to Operators,Third Party Supplier,STANDARD,2002,JAAA-Directorate of Social Care and Health Services
RBC Legal Entity,11/02/2022,4642819,207,SOLUTIONS 4 HEALTH LTD,Berkshire West Public Health Hub,-48000,Payments to Operators,Third Party Supplier,CREDIT,2002,JAAA-Directorate of Social Care and Health Services
RBC Legal Entity,11/02/2022,4199713,211,THE GREEN ROOM FOUNDATION LTD,High Needs Block (DSG) ? Top Up Funding,12500,Education Placements,Third Party Supplier,STANDARD,3625,NAAA-Former Directorate of Education and Childrens Services
RBC Legal Entity,11/02/2022,4199716,211,THE GREEN ROOM FOUNDATION LTD,High Needs Block (DSG) ? Top Up Funding,-12500,Education Placements,Third Party Supplier,CREDIT,3625,NAAA-Former Directorate of Education and Childrens Services
RBC Legal Entity,11/02/2022,4189328,212,THE SOUTHOVER PARTNERSHIP,High Needs Block (DSG) ? Top Up Funding,14200,Education Placements,SUPPLIER,STANDARD,3625,NAAA-Former Directorate of Education and Childrens Services
RBC Legal Entity,11/02/2022,4226573,212,THE SOUTHOVER PARTNERSHIP,High Needs Block (DSG) ? Top Up Funding,-14200,Education Placements,SUPPLIER,CREDIT,3625,NAAA-Former Directorate of Education and Childrens Services
RBC Legal Entity,11/02/2022,4618952,213,THERA EAST ANGLIA,Mental Health Community Services,2788.38,Purchased Care,SUPPLIER,STANDARD,5731,JAAA-Directorate of Social Care and Health Services
RBC Legal Entity,11/02/2022,4618953,213,THERA EAST ANGLIA,Mental Health Community Services,-2788.38,Purchased Care,SUPPLIER,CREDIT,5731,JAAA-Directorate of Social Care and Health Services
RBC Legal Entity,11/02/2022,4618956,213,THERA EAST ANGLIA,Mental Health Community Services,2788.38,Purchased Care,SUPPLIER,STANDARD,5731,JAAA-Directorate of Social Care and Health Services
RBC Legal Entity,11/02/2022,4618959,213,THERA EAST ANGLIA,Mental Health Community Services,-2788.38,Purchased Care,SUPPLIER,CREDIT,5731,JAAA-Directorate of Social Care and Health Services
RBC Legal Entity,11/02/2022,4478031,214,TOGETHER WORKING FOR WELLBEING,ASC Voluntary Grants,40250,GrantsVolunt.Organ.,SUPPLIER,STANDARD,5300,JAAA-Directorate of Social Care and Health Services
RBC Legal Entity,11/02/2022,4478036,214,TOGETHER WORKING FOR WELLBEING,ASC Voluntary Grants,-40250,GrantsVolunt.Organ.,SUPPLIER,CREDIT,5300,JAAA-Directorate of Social Care and Health Services
RBC Legal Entity,11/02/2022,4203264,218,TRIMBLE UK LTD,Valuation,15300,Equipment Purchase & Repair,SUPPLIER,STANDARD,2100,KAAA-Directorate of Economic Growth and Neighbourhood Services
RBC Legal Entity,11/02/2022,4203265,218,TRIMBLE UK LTD,Valuation,-15300,Equipment Purchase & Repair,SUPPLIER,CREDIT,2100,KAAA-Directorate of Economic Growth and Neighbourhood Services
RBC Legal Entity,11/02/2022,4362318,220,WHALE TANKERS LTD,Civil Engineering,904.16,Surface Water Management Plan,SUPPLIER,STANDARD,4550,KAAA-Directorate of Economic Growth and Neighbourhood Services
RBC Legal Entity,11/02/2022,4445375,220,WHALE TANKERS LTD,Civil Engineering,-904.16,Surface Water Management Plan,SUPPLIER,CREDIT,4550,KAAA-Directorate of Economic Growth and Neighbourhood Services
RBC Legal Entity,14/02/2022,3018526,221,RESOURCING GROUP,DLO Day to Day Trades,565.06,Subcontractors Labour,SUPPLIER,STANDARD,4010,KAAA-Directorate of Economic Growth and Neighbourhood Services
RBC Legal Entity,14/02/2022,3809834,221,RESOURCING GROUP,DLO Day to Day Trades,565.06,Subcontractors Labour,SUPPLIER,STANDARD,4010,KAAA-Directorate of Economic Growth and Neighbourhood Services
RBC Legal Entity,14/02/2022,3809835,221,RESOURCING GROUP,DLO Day to Day Trades,-1130.12,Subcontractors Labour,SUPPLIER,CREDIT,4010,KAAA-Directorate of Economic Growth and Neighbourhood Services
RBC Legal Entity,14/02/2022,4319858,223,PROJECT AUDIO VISUAL LTD T/A MASS MEDIA ADVERTISING,Cultural Services Marketing,3750,Publicity & Media Work,Third Party Supplier,STANDARD,1235,KAAA-Directorate of Economic Growth and Neighbourhood Services
RBC Legal Entity,14/02/2022,4321962,223,PROJECT AUDIO VISUAL LTD T/A MASS MEDIA ADVERTISING,Cultural Services Marketing,-3750,Publicity & Media Work,Third Party Supplier,CREDIT,1235,KAAA-Directorate of Economic Growth and Neighbourhood Services
RBC Legal Entity,01/02/2022,4643592,269184,PITNEY BOWES LTD,Post Room,-61.1,Postage Carriage Stamp Duty,Third Party Supplier,CREDIT,2585,KAAA-Directorate of Economic Growth and Neighbourhood Services
RBC Legal Entity,01/02/2022,4643592,269184,PITNEY BOWES LTD,Post Room,5,Postage Carriage Stamp Duty,Third Party Supplier,STANDARD,2585,KAAA-Directorate of Economic Growth and Neighbourhood Services
RBC Legal Entity,01/02/2022,4643592,269184,PITNEY BOWES LTD,Post Room,56.1,Postage Carriage Stamp Duty,Third Party Supplier,STANDARD,2585,KAAA-Directorate of Economic Growth and Neighbourhood Services
RBC Legal Entity,01/02/2022,4643592,269184,PITNEY BOWES LTD,Post Room,4102.59,Postage Carriage Stamp Duty,Third Party Supplier,STANDARD,2585,KAAA-Directorate of Economic Growth and Neighbourhood Services
RBC Legal Entity,01/02/2022,4642137,269185,BIDVEST FOODSERVICE (BIDFOOD),Hexagon Catering,4.13,Purchases - Stock Provisions,SUPPLIER,STANDARD,1241,KAAA-Directorate of Economic Growth and Neighbourhood Services
RBC Legal Entity,01/02/2022,4642137,269185,BIDVEST FOODSERVICE (BIDFOOD),Hexagon Catering,577.52,Purchases - Stock Provisions,SUPPLIER,STANDARD,1241,KAAA-Directorate of Economic Growth and Neighbourhood Services
RBC Legal Entity,01/02/2022,4646524,269186,TRAVIS PERKINS TRADING COMPANY LTD,DLO Stock,20985.6,Stock Purchase,Third Party Supplier,STANDARD,4002,KAAA-Directorate of Economic Growth and Neighbourhood Services
RBC Legal Entity,01/02/2022,4646600,269186,TRAVIS PERKINS TRADING COMPANY LTD,DLO Stock,4846.33,Stock Purchase,Third Party Supplier,STANDARD,4002,KAAA-Directorate of Economic Growth and Neighbourhood Services
RBC Legal Entity,01/02/2022,4646600,269186,TRAVIS PERKINS TRADING COMPANY LTD,DLO Stock,6893.4,Stock Purchase,Third Party Supplier,STANDARD,4002,KAAA-Directorate of Economic Growth and Neighbourhood Services
RBC Legal Entity,01/02/2022,4646618,269186,TRAVIS PERKINS TRADING COMPANY LTD,DLO Stock,13.44,Stock Purchase,Third Party Supplier,STANDARD,4002,KAAA-Directorate of Economic Growth and Neighbourhood Services
RBC Legal Entity,01/02/2022,4646618,269186,TRAVIS PERKINS TRADING COMPANY LTD,DLO Stock,71613.23,Stock Purchase,Third Party Supplier,STANDARD,4002,KAAA-Directorate of Economic Growth and Neighbourhood Services
RBC Legal Entity,01/02/2022,4642789,269187,BOWAK LTD,Building Cleaning,1073.45,Materials from Store,Third Party Supplier,STANDARD,4351,KAAA-Directorate of Economic Growth and Neighbourhood Services
RBC Legal Entity,01/02/2022,4646606,269188,PERMADOOR,MRA Account,716.6,Roofs + Structural,SUB-CONTRACTOR,STANDARD,5975,HAAA-Housing Revenue Account
RBC Legal Entity,01/02/2022,4646607,269188,PERMADOOR,MRA Account,705.6,Roofs + Structural,SUB-CONTRACTOR,STANDARD,5975,HAAA-Housing Revenue Account
RBC Legal Entity,01/02/2022,4646608,269188,PERMADOOR,MRA Account,705.6,Roofs + Structural,SUB-CONTRACTOR,STANDARD,5975,HAAA-Housing Revenue Account
RBC Legal Entity,01/02/2022,4646504,269190,MCCARTHY PROPERTIES READING LTD,Housing Advice,918.12,Responsive Repairs,Landlord,STANDARD,5820,KAAA-Directorate of Economic Growth and Neighbourhood Services
RBC Legal Entity,01/02/2022,4643453,269194,M & B ELECTRICAL SERVICES,Blagdon Nursery,17400,External Fees  Misc.,SUB-CONTRACTOR,STANDARD,8246,ZZZC-Capital
RBC Legal Entity,01/02/2022,4644163,269196,J H CRESSWELL & SONS LTD,Civil Engineering,1627.07,Winter Maintenance,SUB-CONTRACTOR,STANDARD,4550,KAAA-Directorate of Economic Growth and Neighbourhood Services
RBC Legal Entity,01/02/2022,4646512,269198,CROWN LODGE GUEST HOUSE,Bed and Breakfast,665,Rents,Third Party Supplier,STANDARD,5871,KAAA-Directorate of Economic Growth and Neighbourhood Services
RBC Legal Entity,01/02/2022,4646561,269198,CROWN LODGE GUEST HOUSE,Bed and Breakfast,665,Rents,Third Party Supplier,STANDARD,5871,KAAA-Directorate of Economic Growth and Neighbourhood Services
RBC Legal Entity,01/02/2022,4643244,269199,SURECARE (READING & EAST BERKSHIRE),PS Acquired Community Services,608,Purchased Care,Third Party Supplier,STANDARD,5771,JAAA-Directorate of Social Care and Health Services
RBC Legal Entity,01/02/2022,4643245,269199,SURECARE (READING & EAST BERKSHIRE),PS Acquired Community Services,3382,Purchased Care,Third Party Supplier,STANDARD,5771,JAAA-Directorate of Social Care and Health Services
RBC Legal Entity,01/02/2022,4643247,269199,SURECARE (READING & EAST BERKSHIRE),PS Acquired Community Services,2394,Purchased Care,Third Party Supplier,STANDARD,5771,JAAA-Directorate of Social Care and Health Services
RBC Legal Entity,01/02/2022,4643248,269199,SURECARE (READING & EAST BERKSHIRE),Sensory Support Community Services,3192,Purchased Care,Third Party Supplier,STANDARD,5711,JAAA-Directorate of Social Care and Health Services
RBC Legal Entity,01/02/2022,4643249,269199,SURECARE (READING & EAST BERKSHIRE),PS Acquired Community Services,3192,Purchased Care,Third Party Supplier,STANDARD,5771,JAAA-Directorate of Social Care and Health Services
RBC Legal Entity,01/02/2022,4643250,269199,SURECARE (READING & EAST BERKSHIRE),PS Acquired Community Services,921.5,Purchased Care,Third Party Supplier,STANDARD,5771,JAAA-Directorate of Social Care and Health Services
RBC Legal Entity,01/02/2022,4643251,269199,SURECARE (READING & EAST BERKSHIRE),PS Acquired Community Services,2812,Purchased Care,Third Party Supplier,STANDARD,5771,JAAA-Directorate of Social Care and Health Services
RBC Legal Entity,01/02/2022,4643252,269199,SURECARE (READING & EAST BERKSHIRE),PS Acquired Community Services,532,Purchased Care,Third Party Supplier,STANDARD,5771,JAAA-Directorate of Social Care and Health Services
RBC Legal Entity,01/02/2022,4643253,269199,SURECARE (READING & EAST BERKSHIRE),PS Acquired Community Services,3534,Purchased Care,Third Party Supplier,STANDARD,5771,JAAA-Directorate of Social Care and Health Services
RBC Legal Entity,01/02/2022,4643255,269199,SURECARE (READING & EAST BERKSHIRE),PS Acquired Community Services,665,Purchased Care,Third Party Supplier,STANDARD,5771,JAAA-Directorate of Social Care and Health Services
RBC Legal Entity,01/02/2022,4643257,269199,SURECARE (READING & EAST BERKSHIRE),PS Acquired Community Services,1230.25,Purchased Care,Third Party Supplier,STANDARD,5771,JAAA-Directorate of Social Care and Health Services
RBC Legal Entity,01/02/2022,4643258,269199,SURECARE (READING & EAST BERKSHIRE),PS Acquired Community Services,2080.5,Purchased Care,Third Party Supplier,STANDARD,5771,JAAA-Directorate of Social Care and Health Services
RBC Legal Entity,01/02/2022,4643260,269199,SURECARE (READING & EAST BERKSHIRE),M&C Acquired Community Services,1168.5,Purchased Care,Third Party Supplier,STANDARD,5751,JAAA-Directorate of Social Care and Health Services
RBC Legal Entity,01/02/2022,4643261,269199,SURECARE (READING & EAST BERKSHIRE),PS Acquired Community Services,2394,Purchased Care,Third Party Supplier,STANDARD,5771,JAAA-Directorate of Social Care and Health Services
RBC Legal Entity,01/02/2022,4643262,269199,SURECARE (READING & EAST BERKSHIRE),PS Acquired Community Services,1368,Purchased Care,Third Party Supplier,STANDARD,5771,JAAA-Directorate of Social Care and Health Services
RBC Legal Entity,01/02/2022,4643263,269199,SURECARE (READING & EAST BERKSHIRE),Mental Health Community Services,1197,Purchased Care,Third Party Supplier,STANDARD,5731,JAAA-Directorate of Social Care and Health Services
RBC Legal Entity,01/02/2022,4643265,269199,SURECARE (READING & EAST BERKSHIRE),PS Acquired Community Services,1463,Purchased Care,Third Party Supplier,STANDARD,5771,JAAA-Directorate of Social Care and Health Services
RBC Legal Entity,01/02/2022,4643267,269199,SURECARE (READING & EAST BERKSHIRE),PS Acquired Community Services,1026,Purchased Care,Third Party Supplier,STANDARD,5771,JAAA-Directorate of Social Care and Health Services
RBC Legal Entity,01/02/2022,4643268,269199,SURECARE (READING & EAST BERKSHIRE),PS Acquired Community Services,2337,Purchased Care,Third Party Supplier,STANDARD,5771,JAAA-Directorate of Social Care and Health Services
RBC Legal Entity,01/02/2022,4641883,269201,HAMPTONS RESOURCING LTD,Commissioning Team,2000,Agency Staff,Third Party Supplier,STANDARD,3452,JAAA-Directorate of Social Care and Health Services
RBC Legal Entity,01/02/2022,4646612,269202,THAMES VALLEY BUSES LTD,Strategic Transport & Concessionary Fares,1988.51,Payments for Bus Services,Third Party Supplier,STANDARD,4726,KAAA-Directorate of Economic Growth and Neighbourhood Services
RBC Legal Entity,01/02/2022,4646588,269204,CLIVE HUDSON ASSOCIATES LTD,Building Control,1320,Consultancy Fees,SUPPLIER,STANDARD,4701,KAAA-Directorate of Economic Growth and Neighbourhood Services
RBC Legal Entity,01/02/2022,4646450,269206,PILON LTD,DLO Voids Trades,33664.1,Subcontractors Labour,SUB-CONTRACTOR,STANDARD,4020,KAAA-Directorate of Economic Growth and Neighbourhood Services
RBC Legal Entity,01/02/2022,4642021,269207,CHRIS FORSEY,HSHAZ programme,1000,Professional Fees,SUPPLIER,STANDARD,1316,KAAA-Directorate of Economic Growth and Neighbourhood Services
RBC Legal Entity,01/02/2022,4642199,269209,MODUS CONSTRUCTION LTD,Corporate Offices,2793.2,Building Works,SUB-CONTRACTOR,STANDARD,8602,ZZZC-Capital
RBC Legal Entity,01/02/2022,4643437,269209,MODUS CONSTRUCTION LTD,Corporate Maintenance Services,516.36,TPP  Contract,SUB-CONTRACTOR,STANDARD,4080,KAAA-Directorate of Economic Growth and Neighbourhood Services
RBC Legal Entity,01/02/2022,4643446,269209,MODUS CONSTRUCTION LTD,Corporate Maintenance Services,635,NNDR Pool,SUB-CONTRACTOR,STANDARD,4080,KAAA-Directorate of Economic Growth and Neighbourhood Services
RBC Legal Entity,01/02/2022,4643448,269209,MODUS CONSTRUCTION LTD,Corporate Maintenance Services,626.21,NNDR Pool,SUB-CONTRACTOR,STANDARD,4080,KAAA-Directorate of Economic Growth and Neighbourhood Services
RBC Legal Entity,01/02/2022,4646549,269211,EUROPEAN ASBESTOS SERVICES LTD,Corporate Offices,938.5,External Fees  Surveyors,SUB-CONTRACTOR,STANDARD,8602,ZZZC-Capital
RBC Legal Entity,01/02/2022,4646523,269212,EVOLUTIONARY SYSTEMS COMPANY LTD,Accountancy,2250,Software Support,SUPPLIER,STANDARD,2200,LAAA-Directorate of Resources
RBC Legal Entity,01/02/2022,4619895,269213,HAVERLY CONSULTING LTD,Business Intelligence and Strategy Team,6600,Consultancy Fees,SUPPLIER,STANDARD,5916,HAAA-Housing Revenue Account
RBC Legal Entity,01/02/2022,4638583,269213,HAVERLY CONSULTING LTD,Business Intelligence and Strategy Team,4800,Consultancy Fees,SUPPLIER,STANDARD,5916,HAAA-Housing Revenue Account
RBC Legal Entity,01/02/2022,4645503,269215,CELADOR APARTMENTS LIMITED,Bed and Breakfast,644,Rents,SUPPLIER,STANDARD,5871,KAAA-Directorate of Economic Growth and Neighbourhood Services
RBC Legal Entity,01/02/2022,4642786,269217,BIG YELLOW SELF STORAGE LTD,Mental Health Team,153.9,Equipment Purchase & Repair,Third Party Supplier,STANDARD,5253,JAAA-Directorate of Social Care and Health Services
RBC Legal Entity,01/02/2022,4642786,269217,BIG YELLOW SELF STORAGE LTD,Mental Health Team,712.5,Equipment Purchase & Repair,Third Party Supplier,STANDARD,5253,JAAA-Directorate of Social Care and Health Services
RBC Legal Entity,01/02/2022,4642788,269217,BIG YELLOW SELF STORAGE LTD,Mental Health Team,153.9,Equipment Purchase & Repair,Third Party Supplier,STANDARD,5253,JAAA-Directorate of Social Care and Health Services
RBC Legal Entity,01/02/2022,4642788,269217,BIG YELLOW SELF STORAGE LTD,Mental Health Team,712.5,Equipment Purchase & Repair,Third Party Supplier,STANDARD,5253,JAAA-Directorate of Social Care and Health Services
RBC Legal Entity,01/02/2022,4646586,269218,LMG SOCIAL WORK SERVICES LTD,JLT Disbursements,2422.95,Misc. Legal Expenses,Third Party Supplier,STANDARD,2407,LAAA-Directorate of Resources
RBC Legal Entity,01/02/2022,4632640,269219,GAS CALL SERVICES LTD,MRA Account,11045.38,Feasibility Studies,SUB-CONTRACTOR,STANDARD,5975,HAAA-Housing Revenue Account
RBC Legal Entity,01/02/2022,4643843,269220,DESIRED CARE 4 U LTD,PS Acquired Community Services,872.48,Purchased Care,Third Party Supplier,STANDARD,5771,JAAA-Directorate of Social Care and Health Services
RBC Legal Entity,01/02/2022,4646462,269222,SOUTHERN COUNTIES BUILDING SOLUTIONS LTD T/A SCBS LTD,Private Sector Grants,2603.4,Grants (Paid out by RBC),SUB-CONTRACTOR,STANDARD,8500,ZZZC-Capital
RBC Legal Entity,01/02/2022,4646617,269223,DAVITT JONES BOULD LTD,Park Service,2146.3,External Legal Services,Third Party Supplier,STANDARD,1302,KAAA-Directorate of Economic Growth and Neighbourhood Services
RBC Legal Entity,02/02/2022,4647218,269224,GLOUCESTERSHIRE GROUP HOMES,LD Residential,-425.6,Client Contrib. Residential,SUPPLIER,CREDIT,5742,JAAA-Directorate of Social Care and Health Services
RBC Legal Entity,02/02/2022,4647218,269224,GLOUCESTERSHIRE GROUP HOMES,LD Residential,7520.04,Purchased Care,SUPPLIER,STANDARD,5742,JAAA-Directorate of Social Care and Health Services
RBC Legal Entity,02/02/2022,4647308,269225,RESIDENTIAL COMMUNITY CARE,LD Residential,9384,Purchased Care,Third Party Supplier,STANDARD,5742,JAAA-Directorate of Social Care and Health Services
RBC Legal Entity,02/02/2022,4647361,269225,RESIDENTIAL COMMUNITY CARE,LD Residential,9449.76,Purchased Care,Third Party Supplier,STANDARD,5742,JAAA-Directorate of Social Care and Health Services
RBC Legal Entity,02/02/2022,4647232,269228,CARETECH COMMUNITY SERVICES LTD,LD Residential,6668,Purchased Care,SUPPLIER,STANDARD,5742,JAAA-Directorate of Social Care and Health Services
RBC Legal Entity,02/02/2022,4647236,269228,CARETECH COMMUNITY SERVICES LTD,LD Residential,8940,Purchased Care,SUPPLIER,STANDARD,5742,JAAA-Directorate of Social Care and Health Services
RBC Legal Entity,02/02/2022,4647245,269228,CARETECH COMMUNITY SERVICES LTD,PS Acquired Residential,5975.92,Purchased Care,SUPPLIER,STANDARD,5772,JAAA-Directorate of Social Care and Health Services
RBC Legal Entity,02/02/2022,4647277,269228,CARETECH COMMUNITY SERVICES LTD,Mental Health Residential,3149.04,Purchased Care,SUPPLIER,STANDARD,5732,JAAA-Directorate of Social Care and Health Services
RBC Legal Entity,02/02/2022,4647330,269228,CARETECH COMMUNITY SERVICES LTD,LD Residential,6404.04,Purchased Care,SUPPLIER,STANDARD,5742,JAAA-Directorate of Social Care and Health Services
RBC Legal Entity,02/02/2022,4647357,269228,CARETECH COMMUNITY SERVICES LTD,M&C Acquired Residential,6668,Purchased Care,SUPPLIER,STANDARD,5752,JAAA-Directorate of Social Care and Health Services
RBC Legal Entity,02/02/2022,4647393,269228,CARETECH COMMUNITY SERVICES LTD,LD Residential,6276,Purchased Care,SUPPLIER,STANDARD,5742,JAAA-Directorate of Social Care and Health Services
RBC Legal Entity,02/02/2022,4647270,269231,RESIDENTIAL CARE PROVIDERS LTD,LD Residential,8226.32,Purchased Care,SUPPLIER,STANDARD,5742,JAAA-Directorate of Social Care and Health Services
RBC Legal Entity,02/02/2022,4647263,269232,PRIORY EDUCATIONAL SERVICES LTD,LD Residential,16371.68,Purchased Care,Third Party Supplier,STANDARD,5742,JAAA-Directorate of Social Care and Health Services
RBC Legal Entity,02/02/2022,4647398,269235,ASHAMBER HOMES LTD,Mental Health Residential,2884.4,Purchased Care,Third Party Supplier,STANDARD,5732,JAAA-Directorate of Social Care and Health Services
RBC Legal Entity,02/02/2022,4647059,269237,PAYCOLL PAYROLL,PS Acquired Community Services,-470.52,Fairer charging charges,Third Party Supplier,CREDIT,5771,JAAA-Directorate of Social Care and Health Services
RBC Legal Entity,02/02/2022,4647059,269237,PAYCOLL PAYROLL,PS Acquired Community Services,1362,Purchased Care,Third Party Supplier,STANDARD,5771,JAAA-Directorate of Social Care and Health Services
RBC Legal Entity,02/02/2022,4640703,269238,ICS ACCOUNTING,Transformation,3600,Consultancy Fees,Third Party Supplier,STANDARD,5289,JAAA-Directorate of Social Care and Health Services
RBC Legal Entity,02/02/2022,4646862,269239,PAYCOLL PAYROLL,PS Acquired Community Services,-106.24,Fairer charging charges,Third Party Supplier,CREDIT,5771,JAAA-Directorate of Social Care and Health Services
RBC Legal Entity,02/02/2022,4646862,269239,PAYCOLL PAYROLL,PS Acquired Community Services,832.4,Purchased Care,Third Party Supplier,STANDARD,5771,JAAA-Directorate of Social Care and Health Services
RBC Legal Entity,02/02/2022,4646997,269241,PAYCOLL PAYROLL,PS Acquired Community Services,-201.28,Fairer charging charges,Third Party Supplier,CREDIT,5771,JAAA-Directorate of Social Care and Health Services
RBC Legal Entity,02/02/2022,4646997,269241,PAYCOLL PAYROLL,PS Acquired Community Services,1762.4,Purchased Care,Third Party Supplier,STANDARD,5771,JAAA-Directorate of Social Care and Health Services
RBC Legal Entity,02/02/2022,4646909,269242,PAYCOLL PAYROLL,Mental Health Community Services,8018.32,Purchased Care,Third Party Supplier,STANDARD,5731,JAAA-Directorate of Social Care and Health Services
RBC Legal Entity,02/02/2022,4646930,269243,PAYCOLL PAYROLL,LD Community Services,19873.64,Purchased Care,Third Party Supplier,STANDARD,5741,JAAA-Directorate of Social Care and Health Services
RBC Legal Entity,02/02/2022,4647269,269245,HALLMARK CARE HOMES GROUP HOLDINGS LTD,PS Acquired Residential,33331.43,Purchased Care,Third Party Supplier,STANDARD,5772,JAAA-Directorate of Social Care and Health Services
RBC Legal Entity,02/02/2022,4640419,269247,BELL BRUSH CLEANING & JANITORIAL SUPPLIES,Street Cleansing,600,Materials from Store,SUPPLIER,STANDARD,4566,KAAA-Directorate of Economic Growth and Neighbourhood Services
RBC Legal Entity,02/02/2022,4647239,269249,BROOK HOUSE RESIDENTIAL CARE HOME LTD,Mental Health Residential,3746.4,Purchased Care,Third Party Supplier,STANDARD,5732,JAAA-Directorate of Social Care and Health Services
RBC Legal Entity,02/02/2022,4647278,269251,OAKVIEW CARE (BERKSHIRE) LTD,LD Residential,12233.72,Purchased Care,SUPPLIER,STANDARD,5742,JAAA-Directorate of Social Care and Health Services
RBC Legal Entity,02/02/2022,4647397,269251,OAKVIEW CARE (BERKSHIRE) LTD,LD Residential,3999.24,Purchased Care,SUPPLIER,STANDARD,5742,JAAA-Directorate of Social Care and Health Services
RBC Legal Entity,02/02/2022,4647234,269252,DOWNSHIRE HOUSE,LD Residential,2793.12,Purchased Care,SUPPLIER,STANDARD,5742,JAAA-Directorate of Social Care and Health Services
RBC Legal Entity,02/02/2022,4647276,269252,DOWNSHIRE HOUSE,LD Residential,5363.6,Purchased Care,SUPPLIER,STANDARD,5742,JAAA-Directorate of Social Care and Health Services
RBC Legal Entity,02/02/2022,4647394,269252,DOWNSHIRE HOUSE,LD Residential,4877.84,Purchased Care,SUPPLIER,STANDARD,5742,JAAA-Directorate of Social Care and Health Services
RBC Legal Entity,02/02/2022,4647413,269252,DOWNSHIRE HOUSE,LD Residential,5667.2,Purchased Care,SUPPLIER,STANDARD,5742,JAAA-Directorate of Social Care and Health Services
RBC Legal Entity,02/02/2022,4647426,269252,DOWNSHIRE HOUSE,LD Residential,3509.52,Purchased Care,SUPPLIER,STANDARD,5742,JAAA-Directorate of Social Care and Health Services
RBC Legal Entity,02/02/2022,4646635,269253,CROWN LODGE GUEST HOUSE,Bed and Breakfast,525,Rents,Third Party Supplier,STANDARD,5871,KAAA-Directorate of Economic Growth and Neighbourhood Services
RBC Legal Entity,02/02/2022,4647223,269254,N NOTARO HOMES LTD,PS Acquired Residential,3243.6,Purchased Care,SUPPLIER,STANDARD,5772,JAAA-Directorate of Social Care and Health Services
RBC Legal Entity,02/02/2022,4647231,269254,N NOTARO HOMES LTD,PS Acquired Residential,3243.6,Purchased Care,SUPPLIER,STANDARD,5772,JAAA-Directorate of Social Care and Health Services
RBC Legal Entity,02/02/2022,4647233,269254,N NOTARO HOMES LTD,Social Support,3243.6,Purchased Care,SUPPLIER,STANDARD,5790,JAAA-Directorate of Social Care and Health Services
RBC Legal Entity,02/02/2022,4647235,269254,N NOTARO HOMES LTD,PS Acquired Residential,3386.4,Purchased Care,SUPPLIER,STANDARD,5772,JAAA-Directorate of Social Care and Health Services
RBC Legal Entity,02/02/2022,4646717,269255,IMAGINE THEATRE LTD,Hexagon Operations,-662868.05,Ticket SalesPerformances,SUPPLIER,CREDIT,1200,KAAA-Directorate of Economic Growth and Neighbourhood Services
RBC Legal Entity,02/02/2022,4646717,269255,IMAGINE THEATRE LTD,Hexagon Operations,-50014.65,Administration Charges,SUPPLIER,CREDIT,1200,KAAA-Directorate of Economic Growth and Neighbourhood Services
RBC Legal Entity,02/02/2022,4646717,269255,IMAGINE THEATRE LTD,Hexagon Operations,-3068.85,Royalties,SUPPLIER,CREDIT,1200,KAAA-Directorate of Economic Growth and Neighbourhood Services
RBC Legal Entity,02/02/2022,4646717,269255,IMAGINE THEATRE LTD,Hexagon Operations,79316.57,Professional Fees,SUPPLIER,STANDARD,1200,KAAA-Directorate of Economic Growth and Neighbourhood Services
RBC Legal Entity,02/02/2022,4646717,269255,IMAGINE THEATRE LTD,Hexagon Performances,715951.55,Ticket SalesPerformances,SUPPLIER,STANDARD,1202,KAAA-Directorate of Economic Growth and Neighbourhood Services
RBC Legal Entity,02/02/2022,4646718,269255,IMAGINE THEATRE LTD,Hexagon Operations,3664.75,Professional Fees,SUPPLIER,STANDARD,1200,KAAA-Directorate of Economic Growth and Neighbourhood Services
RBC Legal Entity,02/02/2022,4646719,269255,IMAGINE THEATRE LTD,Hexagon Operations,-1827.9,General & Admin & Clerical,SUPPLIER,CREDIT,1200,KAAA-Directorate of Economic Growth and Neighbourhood Services
RBC Legal Entity,02/02/2022,4646719,269255,IMAGINE THEATRE LTD,Hexagon Catering,-382.08,Sales  Food,SUPPLIER,CREDIT,1241,KAAA-Directorate of Economic Growth and Neighbourhood Services
RBC Legal Entity,02/02/2022,4647213,269257,CHOICE CARE GROUP,LD Residential,7696,Purchased Care,Third Party Supplier,STANDARD,5742,JAAA-Directorate of Social Care and Health Services
RBC Legal Entity,02/02/2022,4647349,269257,CHOICE CARE GROUP,LD Residential,7835.48,Purchased Care,Third Party Supplier,STANDARD,5742,JAAA-Directorate of Social Care and Health Services
RBC Legal Entity,02/02/2022,4647405,269257,CHOICE CARE GROUP,LD Residential,6692,Purchased Care,Third Party Supplier,STANDARD,5742,JAAA-Directorate of Social Care and Health Services
RBC Legal Entity,02/02/2022,4647067,269260,LIFE CARE CORPORATION LIMITED,PS Acquired Residential,3060,Purchased Care,SUPPLIER,STANDARD,5772,JAAA-Directorate of Social Care and Health Services
RBC Legal Entity,02/02/2022,4647091,269260,LIFE CARE CORPORATION LIMITED,PS Acquired Residential,3200,Purchased Care,SUPPLIER,STANDARD,5772,JAAA-Directorate of Social Care and Health Services
RBC Legal Entity,02/02/2022,4647096,269260,LIFE CARE CORPORATION LIMITED,M&C Acquired Residential,3200,Purchased Care,SUPPLIER,STANDARD,5752,JAAA-Directorate of Social Care and Health Services
RBC Legal Entity,02/02/2022,4647114,269260,LIFE CARE CORPORATION LIMITED,Mental Health Residential,3200,Purchased Care,SUPPLIER,STANDARD,5732,JAAA-Directorate of Social Care and Health Services
RBC Legal Entity,02/02/2022,4647116,269260,LIFE CARE CORPORATION LIMITED,PS Acquired Residential,3200,Purchased Care,SUPPLIER,STANDARD,5772,JAAA-Directorate of Social Care and Health Services
RBC Legal Entity,02/02/2022,4647131,269260,LIFE CARE CORPORATION LIMITED,PS Acquired Residential,3060,Purchased Care,SUPPLIER,STANDARD,5772,JAAA-Directorate of Social Care and Health Services
RBC Legal Entity,02/02/2022,4647141,269260,LIFE CARE CORPORATION LIMITED,M&C Acquired Residential,3200,Purchased Care,SUPPLIER,STANDARD,5752,JAAA-Directorate of Social Care and Health Services
RBC Legal Entity,02/02/2022,4647143,269260,LIFE CARE CORPORATION LIMITED,PS Acquired Residential,3300,Purchased Care,SUPPLIER,STANDARD,5772,JAAA-Directorate of Social Care and Health Services
RBC Legal Entity,02/02/2022,4647154,269260,LIFE CARE CORPORATION LIMITED,M&C Acquired Residential,2185.71,Purchased Care,SUPPLIER,STANDARD,5752,JAAA-Directorate of Social Care and Health Services
RBC Legal Entity,02/02/2022,4647155,269260,LIFE CARE CORPORATION LIMITED,PS Acquired Residential,-6557.14,Purchased Care,SUPPLIER,CREDIT,5772,JAAA-Directorate of Social Care and Health Services
RBC Legal Entity,02/02/2022,4647164,269260,LIFE CARE CORPORATION LIMITED,PS Acquired Residential,3060,Purchased Care,SUPPLIER,STANDARD,5772,JAAA-Directorate of Social Care and Health Services
RBC Legal Entity,02/02/2022,4647168,269260,LIFE CARE CORPORATION LIMITED,PS Acquired Residential,3468,Purchased Care,SUPPLIER,STANDARD,5772,JAAA-Directorate of Social Care and Health Services
RBC Legal Entity,02/02/2022,4647195,269260,LIFE CARE CORPORATION LIMITED,M&C Acquired Residential,3465,Purchased Care,SUPPLIER,STANDARD,5752,JAAA-Directorate of Social Care and Health Services
RBC Legal Entity,02/02/2022,4647444,269261,MARNEL LODGE,M&C Acquired Nursing,1620,Purchased Care,SUPPLIER,STANDARD,5753,JAAA-Directorate of Social Care and Health Services
RBC Legal Entity,02/02/2022,4647296,269262,HC-ONE OVAL LIMITED,PS Acquired Nursing,1954.32,Purchased Care,SUPPLIER,STANDARD,5773,JAAA-Directorate of Social Care and Health Services
RBC Legal Entity,02/02/2022,4647422,269265,ALEXANDRA HOMES (BRISTOL) LTD,Mental Health Residential,2434.96,Purchased Care,SUPPLIER,STANDARD,5732,JAAA-Directorate of Social Care and Health Services
RBC Legal Entity,02/02/2022,4646738,269266,CANSFORD LABORATORIES LIMITED,JLT Disbursements,514.67,Misc. Legal Expenses,SUPPLIER,STANDARD,2407,LAAA-Directorate of Resources
RBC Legal Entity,02/02/2022,4647228,269267,GLYNDERWEN HOUSE,LD Residential,9800.68,Purchased Care,SUPPLIER,STANDARD,5742,JAAA-Directorate of Social Care and Health Services
RBC Legal Entity,02/02/2022,4640664,269268,FCC RECYCLING (UK) LTD,Refuse Collection,9235.18,Tipping Charge,SUPPLIER,STANDARD,4561,KAAA-Directorate of Economic Growth and Neighbourhood Services
RBC Legal Entity,02/02/2022,4640665,269268,FCC RECYCLING (UK) LTD,Grounds Maintenance,740.29,Parks Tipping,SUPPLIER,STANDARD,1306,KAAA-Directorate of Economic Growth and Neighbourhood Services
RBC Legal Entity,02/02/2022,4640717,269268,FCC RECYCLING (UK) LTD,Grounds Maintenance,440.61,Parks Tipping,SUPPLIER,STANDARD,1306,KAAA-Directorate of Economic Growth and Neighbourhood Services
RBC Legal Entity,02/02/2022,4647313,269271,WOODBURY HOUSE,PS Acquired Nursing,3400,Purchased Care,SUPPLIER,STANDARD,5773,JAAA-Directorate of Social Care and Health Services
RBC Legal Entity,02/02/2022,4647409,269274,ROWAN LODGE,M&C Acquired Residential,3800,Purchased Care,SUPPLIER,STANDARD,5752,JAAA-Directorate of Social Care and Health Services
RBC Legal Entity,02/02/2022,4646582,269275,EXPERT IN MIND,JLT Disbursements,2338.6,Misc. Legal Expenses,SUPPLIER,STANDARD,2407,LAAA-Directorate of Resources
RBC Legal Entity,02/02/2022,4647290,269278,REACH LTD,LD Nursing,2678.76,Purchased Care,SUPPLIER,STANDARD,5743,JAAA-Directorate of Social Care and Health Services
RBC Legal Entity,02/02/2022,4647411,269278,REACH LTD,LD Residential,6179.52,Purchased Care,SUPPLIER,STANDARD,5742,JAAA-Directorate of Social Care and Health Services
RBC Legal Entity,02/02/2022,4647208,269281,CHOICE LIMITED,LD Residential,8744,Purchased Care,SUPPLIER,STANDARD,5742,JAAA-Directorate of Social Care and Health Services
RBC Legal Entity,02/02/2022,4647210,269281,CHOICE LIMITED,LD Residential,3518,Purchased Care,SUPPLIER,STANDARD,5742,JAAA-Directorate of Social Care and Health Services
RBC Legal Entity,02/02/2022,4647211,269281,CHOICE LIMITED,LD Residential,7200,Purchased Care,SUPPLIER,STANDARD,5742,JAAA-Directorate of Social Care and Health Services
RBC Legal Entity,02/02/2022,4647212,269281,CHOICE LIMITED,LD Residential,6800,Purchased Care,SUPPLIER,STANDARD,5742,JAAA-Directorate of Social Care and Health Services
RBC Legal Entity,02/02/2022,4647220,269281,CHOICE LIMITED,Mental Health Residential,6448,Purchased Care,SUPPLIER,STANDARD,5732,JAAA-Directorate of Social Care and Health Services
RBC Legal Entity,02/02/2022,4647280,269281,CHOICE LIMITED,LD Residential,7752,Purchased Care,SUPPLIER,STANDARD,5742,JAAA-Directorate of Social Care and Health Services
RBC Legal Entity,02/02/2022,4647286,269281,CHOICE LIMITED,LD Residential,9564.52,Purchased Care,SUPPLIER,STANDARD,5742,JAAA-Directorate of Social Care and Health Services
RBC Legal Entity,02/02/2022,4647289,269281,CHOICE LIMITED,LD Residential,6800,Purchased Care,SUPPLIER,STANDARD,5742,JAAA-Directorate of Social Care and Health Services
RBC Legal Entity,02/02/2022,4647295,269281,CHOICE LIMITED,LD Residential,7327.4,Purchased Care,SUPPLIER,STANDARD,5742,JAAA-Directorate of Social Care and Health Services
RBC Legal Entity,02/02/2022,4647298,269281,CHOICE LIMITED,LD Residential,7664.8,Purchased Care,SUPPLIER,STANDARD,5742,JAAA-Directorate of Social Care and Health Services
RBC Legal Entity,02/02/2022,4647299,269281,CHOICE LIMITED,LD Residential,8664.24,Purchased Care,SUPPLIER,STANDARD,5742,JAAA-Directorate of Social Care and Health Services
RBC Legal Entity,02/02/2022,4647312,269281,CHOICE LIMITED,LD Residential,6998.2,Purchased Care,SUPPLIER,STANDARD,5742,JAAA-Directorate of Social Care and Health Services
RBC Legal Entity,02/02/2022,4647341,269281,CHOICE LIMITED,LD Residential,6648,Purchased Care,SUPPLIER,STANDARD,5742,JAAA-Directorate of Social Care and Health Services
RBC Legal Entity,02/02/2022,4647360,269281,CHOICE LIMITED,Mental Health Residential,2854.72,Purchased Care,SUPPLIER,STANDARD,5732,JAAA-Directorate of Social Care and Health Services
RBC Legal Entity,02/02/2022,4647367,269281,CHOICE LIMITED,LD Residential,3539.64,Purchased Care,SUPPLIER,STANDARD,5742,JAAA-Directorate of Social Care and Health Services
RBC Legal Entity,02/02/2022,4647400,269281,CHOICE LIMITED,LD Residential,7800,Purchased Care,SUPPLIER,STANDARD,5742,JAAA-Directorate of Social Care and Health Services
RBC Legal Entity,02/02/2022,4647401,269281,CHOICE LIMITED,LD Residential,7200,Purchased Care,SUPPLIER,STANDARD,5742,JAAA-Directorate of Social Care and Health Services
RBC Legal Entity,02/02/2022,4647403,269281,CHOICE LIMITED,LD Residential,6936.44,Purchased Care,SUPPLIER,STANDARD,5742,JAAA-Directorate of Social Care and Health Services
RBC Legal Entity,02/02/2022,4647404,269281,CHOICE LIMITED,LD Residential,6072,Purchased Care,SUPPLIER,STANDARD,5742,JAAA-Directorate of Social Care and Health Services
RBC Legal Entity,02/02/2022,4647406,269281,CHOICE LIMITED,LD Residential,6788,Purchased Care,SUPPLIER,STANDARD,5742,JAAA-Directorate of Social Care and Health Services
RBC Legal Entity,02/02/2022,4647420,269281,CHOICE LIMITED,Mental Health Residential,6263.2,Purchased Care,SUPPLIER,STANDARD,5732,JAAA-Directorate of Social Care and Health Services
RBC Legal Entity,02/02/2022,4647292,269282,NORMANHURST RESIDENTIAL HOME,M&C Acquired Residential,3264,Purchased Care,SUPPLIER,STANDARD,5752,JAAA-Directorate of Social Care and Health Services
RBC Legal Entity,02/02/2022,4647249,269283,BELAMIE GABLES CARE HOME,M&C Acquired Residential,3400,Purchased Care,Direct Payments,STANDARD,5752,JAAA-Directorate of Social Care and Health Services
RBC Legal Entity,02/02/2022,4647264,269284,WEST OAK,M&C Acquired Nursing,3880,Purchased Care,Third Party Supplier,STANDARD,5753,JAAA-Directorate of Social Care and Health Services
RBC Legal Entity,02/02/2022,4647266,269284,WEST OAK,LD Nursing,-3631.89,Purchased Care,Third Party Supplier,CREDIT,5743,JAAA-Directorate of Social Care and Health Services
RBC Legal Entity,02/02/2022,4645459,269285,PROVIDE SESS LTD,Grounds Maintenance,1144,TPP to Others,Third Party Supplier,STANDARD,1306,KAAA-Directorate of Economic Growth and Neighbourhood Services
RBC Legal Entity,02/02/2022,4647384,269286,HUNGERFORD CARE HOME,M&C Acquired Nursing,3100,Purchased Care,SUPPLIER,STANDARD,5753,JAAA-Directorate of Social Care and Health Services
RBC Legal Entity,02/02/2022,4648000,269287,ALICIA COLLINSON,JLT Disbursements,650,Misc. Legal Expenses,SUPPLIER,STANDARD,2407,LAAA-Directorate of Resources
RBC Legal Entity,02/02/2022,4647320,269291,ASTON CARE LTD,LD Residential,12000,Purchased Care,SUPPLIER,STANDARD,5742,JAAA-Directorate of Social Care and Health Services
RBC Legal Entity,02/02/2022,4647378,269291,ASTON CARE LTD,LD Residential,4906.32,Purchased Care,SUPPLIER,STANDARD,5742,JAAA-Directorate of Social Care and Health Services
RBC Legal Entity,02/02/2022,4647431,269293,SALT HILL CARE CENTRE,PS Acquired Nursing,3876,Purchased Care,Third Party Supplier,STANDARD,5773,JAAA-Directorate of Social Care and Health Services
RBC Legal Entity,02/02/2022,4647421,269295,DORMY HOUSE CARE HOME WITH NURSING,PS Acquired Nursing,4000,Purchased Care,SUPPLIER,STANDARD,5773,JAAA-Directorate of Social Care and Health Services
RBC Legal Entity,02/02/2022,4647352,269297,SHINFIELD LODGE CARE LIMITED,Mental Health Residential,2570.4,Purchased Care,SUPPLIER,STANDARD,5732,JAAA-Directorate of Social Care and Health Services
RBC Legal Entity,02/02/2022,4646860,269298,PAYCOLL PAYROLL,PS Acquired Community Services,-222.68,Fairer charging charges,Third Party Supplier,CREDIT,5771,JAAA-Directorate of Social Care and Health Services
RBC Legal Entity,02/02/2022,4646860,269298,PAYCOLL PAYROLL,PS Acquired Community Services,1162,Purchased Care,Third Party Supplier,STANDARD,5771,JAAA-Directorate of Social Care and Health Services
RBC Legal Entity,02/02/2022,4646949,269299,PAYCOLL PAYROLL,LD Community Services,-219,Fairer charging charges,Third Party Supplier,CREDIT,5741,JAAA-Directorate of Social Care and Health Services
RBC Legal Entity,02/02/2022,4646949,269299,PAYCOLL PAYROLL,LD Community Services,1223.32,Purchased Care,Third Party Supplier,STANDARD,5741,JAAA-Directorate of Social Care and Health Services
RBC Legal Entity,02/02/2022,4646864,269300,PAYCOLL PAYROLL,PS Acquired Community Services,-64.36,Fairer charging charges,Third Party Supplier,CREDIT,5771,JAAA-Directorate of Social Care and Health Services
RBC Legal Entity,02/02/2022,4646864,269300,PAYCOLL PAYROLL,PS Acquired Community Services,595,Purchased Care,Third Party Supplier,STANDARD,5771,JAAA-Directorate of Social Care and Health Services
RBC Legal Entity,02/02/2022,4646947,269301,PAYCOLL PAYROLL,PS Acquired Community Services,-91.72,Fairer charging charges,Third Party Supplier,CREDIT,5771,JAAA-Directorate of Social Care and Health Services
RBC Legal Entity,02/02/2022,4646947,269301,PAYCOLL PAYROLL,PS Acquired Community Services,1424,Purchased Care,Third Party Supplier,STANDARD,5771,JAAA-Directorate of Social Care and Health Services
RBC Legal Entity,02/02/2022,4646948,269302,PAYCOLL PAYROLL,M&C Acquired Community Services,-235.56,Fairer charging charges,Third Party Supplier,CREDIT,5751,JAAA-Directorate of Social Care and Health Services
RBC Legal Entity,02/02/2022,4646948,269302,PAYCOLL PAYROLL,M&C Acquired Community Services,3084.92,Purchased Care,Third Party Supplier,STANDARD,5751,JAAA-Directorate of Social Care and Health Services
RBC Legal Entity,02/02/2022,4646965,269303,PAYCOLL PAYROLL,LD Community Services,642,Purchased Care,Third Party Supplier,STANDARD,5741,JAAA-Directorate of Social Care and Health Services
RBC Legal Entity,02/02/2022,4646800,269304,PAYCOLL PAYROLL,Mental Health Community Services,735.24,Purchased Care,Third Party Supplier,STANDARD,5731,JAAA-Directorate of Social Care and Health Services
RBC Legal Entity,02/02/2022,4647033,269305,PAYCOLL PAYROLL,PS Lifelong Community Services,1879.36,Purchased Care,Third Party Supplier,STANDARD,5781,JAAA-Directorate of Social Care and Health Services
RBC Legal Entity,02/02/2022,4646784,269306,ALLPAY.NET.LIMITED,LD Community Services,-116.72,Fairer charging charges,Third Party Supplier,CREDIT,5741,JAAA-Directorate of Social Care and Health Services
RBC Legal Entity,02/02/2022,4646784,269306,ALLPAY.NET.LIMITED,LD Community Services,852.8,Purchased Care,Third Party Supplier,STANDARD,5741,JAAA-Directorate of Social Care and Health Services
RBC Legal Entity,02/02/2022,4646785,269306,ALLPAY.NET.LIMITED,LD Community Services,-525.08,Fairer charging charges,Third Party Supplier,CREDIT,5741,JAAA-Directorate of Social Care and Health Services
RBC Legal Entity,02/02/2022,4646785,269306,ALLPAY.NET.LIMITED,LD Community Services,8947.2,Purchased Care,Third Party Supplier,STANDARD,5741,JAAA-Directorate of Social Care and Health Services
RBC Legal Entity,02/02/2022,4646786,269306,ALLPAY.NET.LIMITED,LD Community Services,-38.64,Fairer charging charges,Third Party Supplier,CREDIT,5741,JAAA-Directorate of Social Care and Health Services
RBC Legal Entity,02/02/2022,4646786,269306,ALLPAY.NET.LIMITED,LD Community Services,1400,Purchased Care,Third Party Supplier,STANDARD,5741,JAAA-Directorate of Social Care and Health Services
RBC Legal Entity,02/02/2022,4646788,269306,ALLPAY.NET.LIMITED,PS Acquired Community Services,-464.92,Fairer charging charges,Third Party Supplier,CREDIT,5771,JAAA-Directorate of Social Care and Health Services
RBC Legal Entity,02/02/2022,4646788,269306,ALLPAY.NET.LIMITED,PS Acquired Community Services,2394,Purchased Care,Third Party Supplier,STANDARD,5771,JAAA-Directorate of Social Care and Health Services
RBC Legal Entity,02/02/2022,4646789,269306,ALLPAY.NET.LIMITED,PS Acquired Community Services,504.6,Purchased Care,Third Party Supplier,STANDARD,5771,JAAA-Directorate of Social Care and Health Services
RBC Legal Entity,02/02/2022,4646791,269306,ALLPAY.NET.LIMITED,M&C Acquired Community Services,-22.52,Fairer charging charges,Third Party Supplier,CREDIT,5751,JAAA-Directorate of Social Care and Health Services
RBC Legal Entity,02/02/2022,4646791,269306,ALLPAY.NET.LIMITED,M&C Acquired Community Services,926.68,Purchased Care,Third Party Supplier,STANDARD,5751,JAAA-Directorate of Social Care and Health Services
RBC Legal Entity,02/02/2022,4646793,269306,ALLPAY.NET.LIMITED,LD Community Services,-257.8,Fairer charging charges,Third Party Supplier,CREDIT,5741,JAAA-Directorate of Social Care and Health Services
RBC Legal Entity,02/02/2022,4646793,269306,ALLPAY.NET.LIMITED,LD Community Services,2724.36,Purchased Care,Third Party Supplier,STANDARD,5741,JAAA-Directorate of Social Care and Health Services
RBC Legal Entity,02/02/2022,4646795,269306,ALLPAY.NET.LIMITED,PS Lifelong Community Services,-52.88,Fairer charging charges,Third Party Supplier,CREDIT,5781,JAAA-Directorate of Social Care and Health Services
RBC Legal Entity,02/02/2022,4646795,269306,ALLPAY.NET.LIMITED,PS Lifelong Community Services,1300,Purchased Care,Third Party Supplier,STANDARD,5781,JAAA-Directorate of Social Care and Health Services
RBC Legal Entity,02/02/2022,4646796,269306,ALLPAY.NET.LIMITED,PS Acquired Community Services,-501.2,Fairer charging charges,Third Party Supplier,CREDIT,5771,JAAA-Directorate of Social Care and Health Services
RBC Legal Entity,02/02/2022,4646796,269306,ALLPAY.NET.LIMITED,PS Acquired Community Services,1530,Purchased Care,Third Party Supplier,STANDARD,5771,JAAA-Directorate of Social Care and Health Services
RBC Legal Entity,02/02/2022,4646797,269306,ALLPAY.NET.LIMITED,LD Community Services,1589.16,Purchased Care,Third Party Supplier,STANDARD,5741,JAAA-Directorate of Social Care and Health Services
RBC Legal Entity,02/02/2022,4646798,269306,ALLPAY.NET.LIMITED,PS Acquired Community Services,-943.33,Purchased Care,Third Party Supplier,CREDIT,5771,JAAA-Directorate of Social Care and Health Services
RBC Legal Entity,02/02/2022,4646799,269306,ALLPAY.NET.LIMITED,PS Acquired Community Services,-224.48,Fairer charging charges,Third Party Supplier,CREDIT,5771,JAAA-Directorate of Social Care and Health Services
RBC Legal Entity,02/02/2022,4646799,269306,ALLPAY.NET.LIMITED,PS Acquired Community Services,1392,Purchased Care,Third Party Supplier,STANDARD,5771,JAAA-Directorate of Social Care and Health Services
RBC Legal Entity,02/02/2022,4646803,269306,ALLPAY.NET.LIMITED,PS Acquired Community Services,1698.2,Purchased Care,Third Party Supplier,STANDARD,5771,JAAA-Directorate of Social Care and Health Services
RBC Legal Entity,02/02/2022,4646804,269306,ALLPAY.NET.LIMITED,PS Acquired Community Services,-1787.52,Purchased Care,Third Party Supplier,CREDIT,5771,JAAA-Directorate of Social Care and Health Services
RBC Legal Entity,02/02/2022,4646804,269306,ALLPAY.NET.LIMITED,PS Acquired Community Services,772.8,Fairer charging charges,Third Party Supplier,STANDARD,5771,JAAA-Directorate of Social Care and Health Services
RBC Legal Entity,02/02/2022,4646805,269306,ALLPAY.NET.LIMITED,LD Community Services,-63.32,Fairer charging charges,Third Party Supplier,CREDIT,5741,JAAA-Directorate of Social Care and Health Services
RBC Legal Entity,02/02/2022,4646805,269306,ALLPAY.NET.LIMITED,LD Community Services,679.2,Purchased Care,Third Party Supplier,STANDARD,5741,JAAA-Directorate of Social Care and Health Services
RBC Legal Entity,02/02/2022,4646811,269306,ALLPAY.NET.LIMITED,LD Community Services,876.12,Purchased Care,Third Party Supplier,STANDARD,5741,JAAA-Directorate of Social Care and Health Services
RBC Legal Entity,02/02/2022,4646813,269306,ALLPAY.NET.LIMITED,PS Acquired Community Services,-593.12,Fairer charging charges,Third Party Supplier,CREDIT,5771,JAAA-Directorate of Social Care and Health Services
RBC Legal Entity,02/02/2022,4646813,269306,ALLPAY.NET.LIMITED,PS Acquired Community Services,3000,Purchased Care,Third Party Supplier,STANDARD,5771,JAAA-Directorate of Social Care and Health Services
RBC Legal Entity,02/02/2022,4646814,269306,ALLPAY.NET.LIMITED,LD Community Services,2910.96,Purchased Care,Third Party Supplier,STANDARD,5741,JAAA-Directorate of Social Care and Health Services
RBC Legal Entity,02/02/2022,4646817,269306,ALLPAY.NET.LIMITED,LD Community Services,1290,Purchased Care,Third Party Supplier,STANDARD,5741,JAAA-Directorate of Social Care and Health Services
RBC Legal Entity,02/02/2022,4646818,269306,ALLPAY.NET.LIMITED,LD Community Services,-86.2,Fairer charging charges,Third Party Supplier,CREDIT,5741,JAAA-Directorate of Social Care and Health Services
RBC Legal Entity,02/02/2022,4646818,269306,ALLPAY.NET.LIMITED,LD Community Services,757.72,Purchased Care,Third Party Supplier,STANDARD,5741,JAAA-Directorate of Social Care and Health Services
RBC Legal Entity,02/02/2022,4646819,269306,ALLPAY.NET.LIMITED,LD Community Services,-175.04,Fairer charging charges,Third Party Supplier,CREDIT,5741,JAAA-Directorate of Social Care and Health Services
RBC Legal Entity,02/02/2022,4646819,269306,ALLPAY.NET.LIMITED,LD Community Services,4724,Purchased Care,Third Party Supplier,STANDARD,5741,JAAA-Directorate of Social Care and Health Services
RBC Legal Entity,02/02/2022,4646822,269306,ALLPAY.NET.LIMITED,LD Community Services,-211.24,Fairer charging charges,Third Party Supplier,CREDIT,5741,JAAA-Directorate of Social Care and Health Services
RBC Legal Entity,02/02/2022,4646822,269306,ALLPAY.NET.LIMITED,LD Community Services,3402.4,Purchased Care,Third Party Supplier,STANDARD,5741,JAAA-Directorate of Social Care and Health Services
RBC Legal Entity,02/02/2022,4646823,269306,ALLPAY.NET.LIMITED,LD Community Services,-213.08,Fairer charging charges,Third Party Supplier,CREDIT,5741,JAAA-Directorate of Social Care and Health Services
RBC Legal Entity,02/02/2022,4646823,269306,ALLPAY.NET.LIMITED,LD Community Services,4548,Purchased Care,Third Party Supplier,STANDARD,5741,JAAA-Directorate of Social Care and Health Services
RBC Legal Entity,02/02/2022,4646825,269306,ALLPAY.NET.LIMITED,PS Acquired Community Services,1243.08,Purchased Care,Third Party Supplier,STANDARD,5771,JAAA-Directorate of Social Care and Health Services
RBC Legal Entity,02/02/2022,4646826,269306,ALLPAY.NET.LIMITED,LD Community Services,640.72,Purchased Care,Third Party Supplier,STANDARD,5741,JAAA-Directorate of Social Care and Health Services
RBC Legal Entity,02/02/2022,4646827,269306,ALLPAY.NET.LIMITED,PS Acquired Community Services,-97.44,Fairer charging charges,Third Party Supplier,CREDIT,5771,JAAA-Directorate of Social Care and Health Services
RBC Legal Entity,02/02/2022,4646827,269306,ALLPAY.NET.LIMITED,PS Acquired Community Services,1389.08,Purchased Care,Third Party Supplier,STANDARD,5771,JAAA-Directorate of Social Care and Health Services
RBC Legal Entity,02/02/2022,4646833,269306,ALLPAY.NET.LIMITED,PS Acquired Community Services,-1517.92,Fairer charging charges,Third Party Supplier,CREDIT,5771,JAAA-Directorate of Social Care and Health Services
RBC Legal Entity,02/02/2022,4646833,269306,ALLPAY.NET.LIMITED,PS Acquired Community Services,5800,Purchased Care,Third Party Supplier,STANDARD,5771,JAAA-Directorate of Social Care and Health Services
RBC Legal Entity,02/02/2022,4646837,269306,ALLPAY.NET.LIMITED,LD Community Services,833.76,Purchased Care,Third Party Supplier,STANDARD,5741,JAAA-Directorate of Social Care and Health Services
RBC Legal Entity,02/02/2022,4646838,269306,ALLPAY.NET.LIMITED,PS Acquired Community Services,-441.6,Fairer charging charges,Third Party Supplier,CREDIT,5771,JAAA-Directorate of Social Care and Health Services
RBC Legal Entity,02/02/2022,4646838,269306,ALLPAY.NET.LIMITED,PS Acquired Community Services,1064,Purchased Care,Third Party Supplier,STANDARD,5771,JAAA-Directorate of Social Care and Health Services
RBC Legal Entity,02/02/2022,4646841,269306,ALLPAY.NET.LIMITED,PS Acquired Community Services,-657.92,Fairer charging charges,Third Party Supplier,CREDIT,5771,JAAA-Directorate of Social Care and Health Services
RBC Legal Entity,02/02/2022,4646841,269306,ALLPAY.NET.LIMITED,PS Acquired Community Services,4326.4,Purchased Care,Third Party Supplier,STANDARD,5771,JAAA-Directorate of Social Care and Health Services
RBC Legal Entity,02/02/2022,4646844,269306,ALLPAY.NET.LIMITED,LD Community Services,-222.68,Fairer charging charges,Third Party Supplier,CREDIT,5741,JAAA-Directorate of Social Care and Health Services
RBC Legal Entity,02/02/2022,4646844,269306,ALLPAY.NET.LIMITED,LD Community Services,2455.2,Purchased Care,Third Party Supplier,STANDARD,5741,JAAA-Directorate of Social Care and Health Services
RBC Legal Entity,02/02/2022,4646845,269306,ALLPAY.NET.LIMITED,LD Community Services,-218.28,Fairer charging charges,Third Party Supplier,CREDIT,5741,JAAA-Directorate of Social Care and Health Services
RBC Legal Entity,02/02/2022,4646845,269306,ALLPAY.NET.LIMITED,LD Community Services,1041.2,Purchased Care,Third Party Supplier,STANDARD,5741,JAAA-Directorate of Social Care and Health Services
RBC Legal Entity,02/02/2022,4646847,269306,ALLPAY.NET.LIMITED,PS Acquired Community Services,-554.96,Fairer charging charges,Third Party Supplier,CREDIT,5771,JAAA-Directorate of Social Care and Health Services
RBC Legal Entity,02/02/2022,4646847,269306,ALLPAY.NET.LIMITED,PS Acquired Community Services,1057.28,Purchased Care,Third Party Supplier,STANDARD,5771,JAAA-Directorate of Social Care and Health Services
RBC Legal Entity,02/02/2022,4646848,269306,ALLPAY.NET.LIMITED,PS Acquired Community Services,-236.28,Fairer charging charges,Third Party Supplier,CREDIT,5771,JAAA-Directorate of Social Care and Health Services
RBC Legal Entity,02/02/2022,4646848,269306,ALLPAY.NET.LIMITED,PS Acquired Community Services,832.56,Purchased Care,Third Party Supplier,STANDARD,5771,JAAA-Directorate of Social Care and Health Services
RBC Legal Entity,02/02/2022,4646851,269306,ALLPAY.NET.LIMITED,PS Acquired Community Services,1131.6,Purchased Care,Third Party Supplier,STANDARD,5771,JAAA-Directorate of Social Care and Health Services
RBC Legal Entity,02/02/2022,4646853,269306,ALLPAY.NET.LIMITED,PS Acquired Community Services,2304.08,Purchased Care,Third Party Supplier,STANDARD,5771,JAAA-Directorate of Social Care and Health Services
RBC Legal Entity,02/02/2022,4646854,269306,ALLPAY.NET.LIMITED,PS Acquired Community Services,-427.56,Fairer charging charges,Third Party Supplier,CREDIT,5771,JAAA-Directorate of Social Care and Health Services
RBC Legal Entity,02/02/2022,4646854,269306,ALLPAY.NET.LIMITED,PS Acquired Community Services,2660,Purchased Care,Third Party Supplier,STANDARD,5771,JAAA-Directorate of Social Care and Health Services
RBC Legal Entity,02/02/2022,4646855,269306,ALLPAY.NET.LIMITED,PS Acquired Community Services,832,Purchased Care,Third Party Supplier,STANDARD,5771,JAAA-Directorate of Social Care and Health Services
RBC Legal Entity,02/02/2022,4646856,269306,ALLPAY.NET.LIMITED,Mental Health Community Services,1065.28,Purchased Care,Third Party Supplier,STANDARD,5731,JAAA-Directorate of Social Care and Health Services
RBC Legal Entity,02/02/2022,4646858,269306,ALLPAY.NET.LIMITED,PS Acquired Community Services,-324.08,Fairer charging charges,Third Party Supplier,CREDIT,5771,JAAA-Directorate of Social Care and Health Services
RBC Legal Entity,02/02/2022,4646858,269306,ALLPAY.NET.LIMITED,PS Acquired Community Services,2087,Purchased Care,Third Party Supplier,STANDARD,5771,JAAA-Directorate of Social Care and Health Services
RBC Legal Entity,02/02/2022,4646861,269306,ALLPAY.NET.LIMITED,LD Community Services,-210.52,Fairer charging charges,Third Party Supplier,CREDIT,5741,JAAA-Directorate of Social Care and Health Services
RBC Legal Entity,02/02/2022,4646861,269306,ALLPAY.NET.LIMITED,LD Community Services,2455.68,Purchased Care,Third Party Supplier,STANDARD,5741,JAAA-Directorate of Social Care and Health Services
RBC Legal Entity,02/02/2022,4646867,269306,ALLPAY.NET.LIMITED,PS Acquired Community Services,1527,Purchased Care,Third Party Supplier,STANDARD,5771,JAAA-Directorate of Social Care and Health Services
RBC Legal Entity,02/02/2022,4646868,269306,ALLPAY.NET.LIMITED,PS Acquired Community Services,-39.32,Fairer charging charges,Third Party Supplier,CREDIT,5771,JAAA-Directorate of Social Care and Health Services
RBC Legal Entity,02/02/2022,4646868,269306,ALLPAY.NET.LIMITED,PS Acquired Community Services,1852,Purchased Care,Third Party Supplier,STANDARD,5771,JAAA-Directorate of Social Care and Health Services
RBC Legal Entity,02/02/2022,4646870,269306,ALLPAY.NET.LIMITED,Support to Carers,514.8,Purchased Care,Third Party Supplier,STANDARD,5301,JAAA-Directorate of Social Care and Health Services
RBC Legal Entity,02/02/2022,4646872,269306,ALLPAY.NET.LIMITED,LD Community Services,-256.16,Fairer charging charges,Third Party Supplier,CREDIT,5741,JAAA-Directorate of Social Care and Health Services
RBC Legal Entity,02/02/2022,4646872,269306,ALLPAY.NET.LIMITED,LD Community Services,1140,Purchased Care,Third Party Supplier,STANDARD,5741,JAAA-Directorate of Social Care and Health Services
RBC Legal Entity,02/02/2022,4646874,269306,ALLPAY.NET.LIMITED,PS Acquired Community Services,-336.96,Fairer charging charges,Third Party Supplier,CREDIT,5771,JAAA-Directorate of Social Care and Health Services
RBC Legal Entity,02/02/2022,4646874,269306,ALLPAY.NET.LIMITED,PS Acquired Community Services,1055.64,Purchased Care,Third Party Supplier,STANDARD,5771,JAAA-Directorate of Social Care and Health Services
RBC Legal Entity,02/02/2022,4646876,269306,ALLPAY.NET.LIMITED,LD Community Services,944,Purchased Care,Third Party Supplier,STANDARD,5741,JAAA-Directorate of Social Care and Health Services
RBC Legal Entity,02/02/2022,4646877,269306,ALLPAY.NET.LIMITED,LD Community Services,1279.76,Purchased Care,Third Party Supplier,STANDARD,5741,JAAA-Directorate of Social Care and Health Services
RBC Legal Entity,02/02/2022,4646879,269306,ALLPAY.NET.LIMITED,PS Lifelong Community Services,-40064.14,Purchased Care,Third Party Supplier,CREDIT,5781,JAAA-Directorate of Social Care and Health Services
RBC Legal Entity,02/02/2022,4646882,269306,ALLPAY.NET.LIMITED,PS Acquired Community Services,-304.52,Fairer charging charges,Third Party Supplier,CREDIT,5771,JAAA-Directorate of Social Care and Health Services
RBC Legal Entity,02/02/2022,4646882,269306,ALLPAY.NET.LIMITED,PS Acquired Community Services,1196,Purchased Care,Third Party Supplier,STANDARD,5771,JAAA-Directorate of Social Care and Health Services
RBC Legal Entity,02/02/2022,4646883,269306,ALLPAY.NET.LIMITED,PS Acquired Community Services,-290.8,Fairer charging charges,Third Party Supplier,CREDIT,5771,JAAA-Directorate of Social Care and Health Services
RBC Legal Entity,02/02/2022,4646883,269306,ALLPAY.NET.LIMITED,PS Acquired Community Services,833,Purchased Care,Third Party Supplier,STANDARD,5771,JAAA-Directorate of Social Care and Health Services
RBC Legal Entity,02/02/2022,4646885,269306,ALLPAY.NET.LIMITED,PS Acquired Community Services,-1577.8,Purchased Care,Third Party Supplier,CREDIT,5771,JAAA-Directorate of Social Care and Health Services
RBC Legal Entity,02/02/2022,4646886,269306,ALLPAY.NET.LIMITED,LD Community Services,660,Purchased Care,Third Party Supplier,STANDARD,5741,JAAA-Directorate of Social Care and Health Services
RBC Legal Entity,02/02/2022,4646890,269306,ALLPAY.NET.LIMITED,PS Acquired Community Services,-76,Fairer charging charges,Third Party Supplier,CREDIT,5771,JAAA-Directorate of Social Care and Health Services
RBC Legal Entity,02/02/2022,4646890,269306,ALLPAY.NET.LIMITED,PS Acquired Community Services,901.6,Purchased Care,Third Party Supplier,STANDARD,5771,JAAA-Directorate of Social Care and Health Services
RBC Legal Entity,02/02/2022,4646892,269306,ALLPAY.NET.LIMITED,PS Acquired Community Services,-560,Fairer charging charges,Third Party Supplier,CREDIT,5771,JAAA-Directorate of Social Care and Health Services
RBC Legal Entity,02/02/2022,4646892,269306,ALLPAY.NET.LIMITED,PS Acquired Community Services,1330,Purchased Care,Third Party Supplier,STANDARD,5771,JAAA-Directorate of Social Care and Health Services
RBC Legal Entity,02/02/2022,4646894,269306,ALLPAY.NET.LIMITED,LD Community Services,565.72,Purchased Care,Third Party Supplier,STANDARD,5741,JAAA-Directorate of Social Care and Health Services
RBC Legal Entity,02/02/2022,4646895,269306,ALLPAY.NET.LIMITED,PS Acquired Community Services,-412.92,Fairer charging charges,Third Party Supplier,CREDIT,5771,JAAA-Directorate of Social Care and Health Services
RBC Legal Entity,02/02/2022,4646895,269306,ALLPAY.NET.LIMITED,PS Acquired Community Services,1314.92,Purchased Care,Third Party Supplier,STANDARD,5771,JAAA-Directorate of Social Care and Health Services
RBC Legal Entity,02/02/2022,4646897,269306,ALLPAY.NET.LIMITED,LD Community Services,3370.4,Purchased Care,Third Party Supplier,STANDARD,5741,JAAA-Directorate of Social Care and Health Services
RBC Legal Entity,02/02/2022,4646898,269306,ALLPAY.NET.LIMITED,Social Support,1416.96,Purchased Care,Third Party Supplier,STANDARD,5790,JAAA-Directorate of Social Care and Health Services
RBC Legal Entity,02/02/2022,4646901,269306,ALLPAY.NET.LIMITED,PS Acquired Community Services,-419.68,Fairer charging charges,Third Party Supplier,CREDIT,5771,JAAA-Directorate of Social Care and Health Services
RBC Legal Entity,02/02/2022,4646901,269306,ALLPAY.NET.LIMITED,PS Acquired Community Services,2660,Purchased Care,Third Party Supplier,STANDARD,5771,JAAA-Directorate of Social Care and Health Services
RBC Legal Entity,02/02/2022,4646902,269306,ALLPAY.NET.LIMITED,PS Acquired Community Services,-2470,Purchased Care,Third Party Supplier,CREDIT,5771,JAAA-Directorate of Social Care and Health Services
RBC Legal Entity,02/02/2022,4646902,269306,ALLPAY.NET.LIMITED,PS Acquired Community Services,638.49,Fairer charging charges,Third Party Supplier,STANDARD,5771,JAAA-Directorate of Social Care and Health Services
RBC Legal Entity,02/02/2022,4646906,269306,ALLPAY.NET.LIMITED,LD Community Services,665.2,Purchased Care,Third Party Supplier,STANDARD,5741,JAAA-Directorate of Social Care and Health Services
RBC Legal Entity,02/02/2022,4646908,269306,ALLPAY.NET.LIMITED,M&C Acquired Community Services,570,Purchased Care,Third Party Supplier,STANDARD,5751,JAAA-Directorate of Social Care and Health Services
RBC Legal Entity,02/02/2022,4646911,269306,ALLPAY.NET.LIMITED,Mental Health Community Services,666,Purchased Care,Third Party Supplier,STANDARD,5731,JAAA-Directorate of Social Care and Health Services
RBC Legal Entity,02/02/2022,4646922,269306,ALLPAY.NET.LIMITED,PS Acquired Community Services,1558,Purchased Care,Third Party Supplier,STANDARD,5771,JAAA-Directorate of Social Care and Health Services
RBC Legal Entity,02/02/2022,4646924,269306,ALLPAY.NET.LIMITED,PS Acquired Community Services,-760.92,Fairer charging charges,Third Party Supplier,CREDIT,5771,JAAA-Directorate of Social Care and Health Services
RBC Legal Entity,02/02/2022,4646924,269306,ALLPAY.NET.LIMITED,PS Acquired Community Services,4075.68,Purchased Care,Third Party Supplier,STANDARD,5771,JAAA-Directorate of Social Care and Health Services
RBC Legal Entity,02/02/2022,4646925,269306,ALLPAY.NET.LIMITED,LD Community Services,-247.36,Fairer charging charges,Third Party Supplier,CREDIT,5741,JAAA-Directorate of Social Care and Health Services
RBC Legal Entity,02/02/2022,4646925,269306,ALLPAY.NET.LIMITED,LD Community Services,1680.96,Purchased Care,Third Party Supplier,STANDARD,5741,JAAA-Directorate of Social Care and Health Services
RBC Legal Entity,02/02/2022,4646928,269306,ALLPAY.NET.LIMITED,PS Acquired Community Services,-491.36,Fairer charging charges,Third Party Supplier,CREDIT,5771,JAAA-Directorate of Social Care and Health Services
RBC Legal Entity,02/02/2022,4646928,269306,ALLPAY.NET.LIMITED,PS Acquired Community Services,992.32,Purchased Care,Third Party Supplier,STANDARD,5771,JAAA-Directorate of Social Care and Health Services
RBC Legal Entity,02/02/2022,4646931,269306,ALLPAY.NET.LIMITED,PS Acquired Community Services,618.96,Purchased Care,Third Party Supplier,STANDARD,5771,JAAA-Directorate of Social Care and Health Services
RBC Legal Entity,02/02/2022,4646932,269306,ALLPAY.NET.LIMITED,PS Acquired Community Services,2369.57,Purchased Care,Third Party Supplier,STANDARD,5771,JAAA-Directorate of Social Care and Health Services
RBC Legal Entity,02/02/2022,4646933,269306,ALLPAY.NET.LIMITED,PS Acquired Community Services,-266.7,Fairer charging charges,Third Party Supplier,CREDIT,5771,JAAA-Directorate of Social Care and Health Services
RBC Legal Entity,02/02/2022,4646933,269306,ALLPAY.NET.LIMITED,PS Acquired Community Services,2565,Purchased Care,Third Party Supplier,STANDARD,5771,JAAA-Directorate of Social Care and Health Services
RBC Legal Entity,02/02/2022,4646938,269306,ALLPAY.NET.LIMITED,LD Community Services,-128.52,Fairer charging charges,Third Party Supplier,CREDIT,5741,JAAA-Directorate of Social Care and Health Services
RBC Legal Entity,02/02/2022,4646938,269306,ALLPAY.NET.LIMITED,LD Community Services,962.36,Purchased Care,Third Party Supplier,STANDARD,5741,JAAA-Directorate of Social Care and Health Services
RBC Legal Entity,02/02/2022,4646940,269306,ALLPAY.NET.LIMITED,LD Community Services,991.68,Purchased Care,Third Party Supplier,STANDARD,5741,JAAA-Directorate of Social Care and Health Services
RBC Legal Entity,02/02/2022,4646943,269306,ALLPAY.NET.LIMITED,PS Acquired Community Services,-12.84,Fairer charging charges,Third Party Supplier,CREDIT,5771,JAAA-Directorate of Social Care and Health Services
RBC Legal Entity,02/02/2022,4646943,269306,ALLPAY.NET.LIMITED,PS Acquired Community Services,664.52,Purchased Care,Third Party Supplier,STANDARD,5771,JAAA-Directorate of Social Care and Health Services
RBC Legal Entity,02/02/2022,4646945,269306,ALLPAY.NET.LIMITED,LD Community Services,-257.8,Fairer charging charges,Third Party Supplier,CREDIT,5741,JAAA-Directorate of Social Care and Health Services
RBC Legal Entity,02/02/2022,4646945,269306,ALLPAY.NET.LIMITED,LD Community Services,11854.08,Purchased Care,Third Party Supplier,STANDARD,5741,JAAA-Directorate of Social Care and Health Services
RBC Legal Entity,02/02/2022,4646946,269306,ALLPAY.NET.LIMITED,LD Community Services,-147.32,Fairer charging charges,Third Party Supplier,CREDIT,5741,JAAA-Directorate of Social Care and Health Services
RBC Legal Entity,02/02/2022,4646946,269306,ALLPAY.NET.LIMITED,LD Community Services,2870.76,Purchased Care,Third Party Supplier,STANDARD,5741,JAAA-Directorate of Social Care and Health Services
RBC Legal Entity,02/02/2022,4646954,269306,ALLPAY.NET.LIMITED,LD Community Services,-61.88,Fairer charging charges,Third Party Supplier,CREDIT,5741,JAAA-Directorate of Social Care and Health Services
RBC Legal Entity,02/02/2022,4646954,269306,ALLPAY.NET.LIMITED,LD Community Services,10562,Purchased Care,Third Party Supplier,STANDARD,5741,JAAA-Directorate of Social Care and Health Services
RBC Legal Entity,02/02/2022,4646957,269306,ALLPAY.NET.LIMITED,LD Community Services,-92.12,Fairer charging charges,Third Party Supplier,CREDIT,5741,JAAA-Directorate of Social Care and Health Services
RBC Legal Entity,02/02/2022,4646957,269306,ALLPAY.NET.LIMITED,LD Community Services,605.92,Purchased Care,Third Party Supplier,STANDARD,5741,JAAA-Directorate of Social Care and Health Services
RBC Legal Entity,02/02/2022,4646959,269306,ALLPAY.NET.LIMITED,PS Acquired Community Services,-441.6,Fairer charging charges,Third Party Supplier,CREDIT,5771,JAAA-Directorate of Social Care and Health Services
RBC Legal Entity,02/02/2022,4646959,269306,ALLPAY.NET.LIMITED,PS Acquired Community Services,2394,Purchased Care,Third Party Supplier,STANDARD,5771,JAAA-Directorate of Social Care and Health Services
RBC Legal Entity,02/02/2022,4646960,269306,ALLPAY.NET.LIMITED,PS Acquired Community Services,-320.12,Fairer charging charges,Third Party Supplier,CREDIT,5771,JAAA-Directorate of Social Care and Health Services
RBC Legal Entity,02/02/2022,4646960,269306,ALLPAY.NET.LIMITED,PS Acquired Community Services,3091.2,Purchased Care,Third Party Supplier,STANDARD,5771,JAAA-Directorate of Social Care and Health Services
RBC Legal Entity,02/02/2022,4646962,269306,ALLPAY.NET.LIMITED,LD Community Services,656.12,Purchased Care,Third Party Supplier,STANDARD,5741,JAAA-Directorate of Social Care and Health Services
RBC Legal Entity,02/02/2022,4646966,269306,ALLPAY.NET.LIMITED,PS Acquired Community Services,-172.4,Fairer charging charges,Third Party Supplier,CREDIT,5771,JAAA-Directorate of Social Care and Health Services
RBC Legal Entity,02/02/2022,4646966,269306,ALLPAY.NET.LIMITED,PS Acquired Community Services,1037.12,Purchased Care,Third Party Supplier,STANDARD,5771,JAAA-Directorate of Social Care and Health Services
RBC Legal Entity,02/02/2022,4646968,269306,ALLPAY.NET.LIMITED,PS Acquired Community Services,3248.6,Purchased Care,Third Party Supplier,STANDARD,5771,JAAA-Directorate of Social Care and Health Services
RBC Legal Entity,02/02/2022,4646978,269306,ALLPAY.NET.LIMITED,LD Community Services,-527,Fairer charging charges,Third Party Supplier,CREDIT,5741,JAAA-Directorate of Social Care and Health Services
RBC Legal Entity,02/02/2022,4646978,269306,ALLPAY.NET.LIMITED,LD Community Services,8289.32,Purchased Care,Third Party Supplier,STANDARD,5741,JAAA-Directorate of Social Care and Health Services
RBC Legal Entity,02/02/2022,4646979,269306,ALLPAY.NET.LIMITED,Social Support,1037.12,Purchased Care,Third Party Supplier,STANDARD,5790,JAAA-Directorate of Social Care and Health Services
RBC Legal Entity,02/02/2022,4646980,269306,ALLPAY.NET.LIMITED,PS Acquired Community Services,-144,Fairer charging charges,Third Party Supplier,CREDIT,5771,JAAA-Directorate of Social Care and Health Services
RBC Legal Entity,02/02/2022,4646980,269306,ALLPAY.NET.LIMITED,PS Acquired Community Services,3273.34,Purchased Care,Third Party Supplier,STANDARD,5771,JAAA-Directorate of Social Care and Health Services
RBC Legal Entity,02/02/2022,4646981,269306,ALLPAY.NET.LIMITED,LD Community Services,2108.64,Purchased Care,Third Party Supplier,STANDARD,5741,JAAA-Directorate of Social Care and Health Services
RBC Legal Entity,02/02/2022,4646985,269306,ALLPAY.NET.LIMITED,PS Acquired Community Services,980,Purchased Care,Third Party Supplier,STANDARD,5771,JAAA-Directorate of Social Care and Health Services
RBC Legal Entity,02/02/2022,4646986,269306,ALLPAY.NET.LIMITED,PS Acquired Community Services,-290.8,Fairer charging charges,Third Party Supplier,CREDIT,5771,JAAA-Directorate of Social Care and Health Services
RBC Legal Entity,02/02/2022,4646986,269306,ALLPAY.NET.LIMITED,PS Acquired Community Services,2481.68,Purchased Care,Third Party Supplier,STANDARD,5771,JAAA-Directorate of Social Care and Health Services
RBC Legal Entity,02/02/2022,4646989,269306,ALLPAY.NET.LIMITED,PS Acquired Community Services,-555.88,Fairer charging charges,Third Party Supplier,CREDIT,5771,JAAA-Directorate of Social Care and Health Services
RBC Legal Entity,02/02/2022,4646989,269306,ALLPAY.NET.LIMITED,PS Acquired Community Services,1140,Purchased Care,Third Party Supplier,STANDARD,5771,JAAA-Directorate of Social Care and Health Services
RBC Legal Entity,02/02/2022,4646991,269306,ALLPAY.NET.LIMITED,PS Acquired Community Services,-3797.36,Fairer charging charges,Third Party Supplier,CREDIT,5771,JAAA-Directorate of Social Care and Health Services
RBC Legal Entity,02/02/2022,4646991,269306,ALLPAY.NET.LIMITED,PS Acquired Community Services,6240,Purchased Care,Third Party Supplier,STANDARD,5771,JAAA-Directorate of Social Care and Health Services
RBC Legal Entity,02/02/2022,4646992,269306,ALLPAY.NET.LIMITED,LD Community Services,2902.04,Purchased Care,Third Party Supplier,STANDARD,5741,JAAA-Directorate of Social Care and Health Services
RBC Legal Entity,02/02/2022,4646996,269306,ALLPAY.NET.LIMITED,LD Community Services,-194.24,Fairer charging charges,Third Party Supplier,CREDIT,5741,JAAA-Directorate of Social Care and Health Services
RBC Legal Entity,02/02/2022,4646996,269306,ALLPAY.NET.LIMITED,LD Community Services,10550.4,Purchased Care,Third Party Supplier,STANDARD,5741,JAAA-Directorate of Social Care and Health Services
RBC Legal Entity,02/02/2022,4646998,269306,ALLPAY.NET.LIMITED,PS Acquired Community Services,-441.6,Fairer charging charges,Third Party Supplier,CREDIT,5771,JAAA-Directorate of Social Care and Health Services
RBC Legal Entity,02/02/2022,4646998,269306,ALLPAY.NET.LIMITED,PS Acquired Community Services,1197,Purchased Care,Third Party Supplier,STANDARD,5771,JAAA-Directorate of Social Care and Health Services
RBC Legal Entity,02/02/2022,4646999,269306,ALLPAY.NET.LIMITED,PS Acquired Community Services,34570.71,Purchased Care,Third Party Supplier,STANDARD,5771,JAAA-Directorate of Social Care and Health Services
RBC Legal Entity,02/02/2022,4647001,269306,ALLPAY.NET.LIMITED,M&C Acquired Community Services,-1762.07,Fairer charging charges,Third Party Supplier,CREDIT,5751,JAAA-Directorate of Social Care and Health Services
RBC Legal Entity,02/02/2022,4647001,269306,ALLPAY.NET.LIMITED,M&C Acquired Community Services,2764.5,Purchased Care,Third Party Supplier,STANDARD,5751,JAAA-Directorate of Social Care and Health Services
RBC Legal Entity,02/02/2022,4647002,269306,ALLPAY.NET.LIMITED,LD Community Services,-77.68,Fairer charging charges,Third Party Supplier,CREDIT,5741,JAAA-Directorate of Social Care and Health Services
RBC Legal Entity,02/02/2022,4647002,269306,ALLPAY.NET.LIMITED,LD Community Services,2477.04,Purchased Care,Third Party Supplier,STANDARD,5741,JAAA-Directorate of Social Care and Health Services
RBC Legal Entity,02/02/2022,4647004,269306,ALLPAY.NET.LIMITED,PS Lifelong Community Services,933.92,Purchased Care,Third Party Supplier,STANDARD,5781,JAAA-Directorate of Social Care and Health Services
RBC Legal Entity,02/02/2022,4647007,269306,ALLPAY.NET.LIMITED,PS Acquired Community Services,759.64,Purchased Care,Third Party Supplier,STANDARD,5771,JAAA-Directorate of Social Care and Health Services
RBC Legal Entity,02/02/2022,4647008,269306,ALLPAY.NET.LIMITED,PS Acquired Community Services,-428.04,Fairer charging charges,Third Party Supplier,CREDIT,5771,JAAA-Directorate of Social Care and Health Services
RBC Legal Entity,02/02/2022,4647008,269306,ALLPAY.NET.LIMITED,PS Acquired Community Services,1385.76,Purchased Care,Third Party Supplier,STANDARD,5771,JAAA-Directorate of Social Care and Health Services
RBC Legal Entity,02/02/2022,4647014,269306,ALLPAY.NET.LIMITED,PS Acquired Community Services,508,Purchased Care,Third Party Supplier,STANDARD,5771,JAAA-Directorate of Social Care and Health Services
RBC Legal Entity,02/02/2022,4647015,269306,ALLPAY.NET.LIMITED,PS Acquired Community Services,1013.56,Purchased Care,Third Party Supplier,STANDARD,5771,JAAA-Directorate of Social Care and Health Services
RBC Legal Entity,02/02/2022,4647019,269306,ALLPAY.NET.LIMITED,PS Acquired Community Services,-382.76,Fairer charging charges,Third Party Supplier,CREDIT,5771,JAAA-Directorate of Social Care and Health Services
RBC Legal Entity,02/02/2022,4647019,269306,ALLPAY.NET.LIMITED,PS Acquired Community Services,1814.96,Purchased Care,Third Party Supplier,STANDARD,5771,JAAA-Directorate of Social Care and Health Services
RBC Legal Entity,02/02/2022,4647023,269306,ALLPAY.NET.LIMITED,LD Community Services,1107.68,Purchased Care,Third Party Supplier,STANDARD,5741,JAAA-Directorate of Social Care and Health Services
RBC Legal Entity,02/02/2022,4647025,269306,ALLPAY.NET.LIMITED,PS Lifelong Community Services,1762.92,Purchased Care,Third Party Supplier,STANDARD,5781,JAAA-Directorate of Social Care and Health Services
RBC Legal Entity,02/02/2022,4647026,269306,ALLPAY.NET.LIMITED,PS Acquired Community Services,-235.56,Fairer charging charges,Third Party Supplier,CREDIT,5771,JAAA-Directorate of Social Care and Health Services
RBC Legal Entity,02/02/2022,4647026,269306,ALLPAY.NET.LIMITED,PS Acquired Community Services,746,Purchased Care,Third Party Supplier,STANDARD,5771,JAAA-Directorate of Social Care and Health Services
RBC Legal Entity,02/02/2022,4647031,269306,ALLPAY.NET.LIMITED,PS Acquired Community Services,1596,Purchased Care,Third Party Supplier,STANDARD,5771,JAAA-Directorate of Social Care and Health Services
RBC Legal Entity,02/02/2022,4647037,269306,ALLPAY.NET.LIMITED,LD Community Services,605.4,Purchased Care,Third Party Supplier,STANDARD,5741,JAAA-Directorate of Social Care and Health Services
RBC Legal Entity,02/02/2022,4647038,269306,ALLPAY.NET.LIMITED,LD Community Services,-387.64,Fairer charging charges,Third Party Supplier,CREDIT,5741,JAAA-Directorate of Social Care and Health Services
RBC Legal Entity,02/02/2022,4647038,269306,ALLPAY.NET.LIMITED,LD Community Services,6039,Purchased Care,Third Party Supplier,STANDARD,5741,JAAA-Directorate of Social Care and Health Services
RBC Legal Entity,02/02/2022,4647039,269306,ALLPAY.NET.LIMITED,PS Acquired Community Services,-1674.6,Fairer charging charges,Third Party Supplier,CREDIT,5771,JAAA-Directorate of Social Care and Health Services
RBC Legal Entity,02/02/2022,4647039,269306,ALLPAY.NET.LIMITED,PS Acquired Community Services,4156,Purchased Care,Third Party Supplier,STANDARD,5771,JAAA-Directorate of Social Care and Health Services
RBC Legal Entity,02/02/2022,4647040,269306,ALLPAY.NET.LIMITED,PS Acquired Community Services,1140.8,Purchased Care,Third Party Supplier,STANDARD,5771,JAAA-Directorate of Social Care and Health Services
RBC Legal Entity,02/02/2022,4647041,269306,ALLPAY.NET.LIMITED,LD Community Services,880.8,Purchased Care,Third Party Supplier,STANDARD,5741,JAAA-Directorate of Social Care and Health Services
RBC Legal Entity,02/02/2022,4647042,269306,ALLPAY.NET.LIMITED,Sensory Support Community Services,1043.2,Purchased Care,Third Party Supplier,STANDARD,5711,JAAA-Directorate of Social Care and Health Services
RBC Legal Entity,02/02/2022,4647043,269306,ALLPAY.NET.LIMITED,PS Acquired Community Services,1759.72,Purchased Care,Third Party Supplier,STANDARD,5771,JAAA-Directorate of Social Care and Health Services
RBC Legal Entity,02/02/2022,4647046,269306,ALLPAY.NET.LIMITED,PS Acquired Community Services,-1174.96,Fairer charging charges,Third Party Supplier,CREDIT,5771,JAAA-Directorate of Social Care and Health Services
RBC Legal Entity,02/02/2022,4647046,269306,ALLPAY.NET.LIMITED,PS Acquired Community Services,3150,Purchased Care,Third Party Supplier,STANDARD,5771,JAAA-Directorate of Social Care and Health Services
RBC Legal Entity,02/02/2022,4647049,269306,ALLPAY.NET.LIMITED,LD Community Services,11387.6,Purchased Care,Third Party Supplier,STANDARD,5741,JAAA-Directorate of Social Care and Health Services
RBC Legal Entity,02/02/2022,4647056,269306,ALLPAY.NET.LIMITED,PS Acquired Community Services,-49.92,Fairer charging charges,Third Party Supplier,CREDIT,5771,JAAA-Directorate of Social Care and Health Services
RBC Legal Entity,02/02/2022,4647056,269306,ALLPAY.NET.LIMITED,PS Acquired Community Services,665.36,Purchased Care,Third Party Supplier,STANDARD,5771,JAAA-Directorate of Social Care and Health Services
RBC Legal Entity,02/02/2022,4647060,269306,ALLPAY.NET.LIMITED,PS Acquired Community Services,-1571.64,Purchased Care,Third Party Supplier,CREDIT,5771,JAAA-Directorate of Social Care and Health Services
RBC Legal Entity,02/02/2022,4647060,269306,ALLPAY.NET.LIMITED,PS Acquired Community Services,405.48,Fairer charging charges,Third Party Supplier,STANDARD,5771,JAAA-Directorate of Social Care and Health Services
RBC Legal Entity,02/02/2022,4647353,269307,BASSET HOUSE CARE HOME,PS Acquired Nursing,2830.48,Purchased Care,SUPPLIER,STANDARD,5773,JAAA-Directorate of Social Care and Health Services
RBC Legal Entity,02/02/2022,4646802,269308,PAYCOLL PAYROLL,Mental Health Community Services,1252.8,Purchased Care,Third Party Supplier,STANDARD,5731,JAAA-Directorate of Social Care and Health Services
RBC Legal Entity,02/02/2022,4647419,269309,BRAMLEY HEALTH,LD Residential,6773.2,Purchased Care,SUPPLIER,STANDARD,5742,JAAA-Directorate of Social Care and Health Services
RBC Legal Entity,02/02/2022,4641805,269311,HOUSING GENIE LIMITED,Rowe Court Fire,455,Rents,SUPPLIER,STANDARD,2299,KAAA-Directorate of Economic Growth and Neighbourhood Services
RBC Legal Entity,02/02/2022,4641059,269312,F M CONWAY LTD,Highways,610,Materials Direct,SUB-CONTRACTOR,STANDARD,4252,KAAA-Directorate of Economic Growth and Neighbourhood Services
RBC Legal Entity,02/02/2022,4647301,269313,BARCLAY HOUSE,PS Acquired Nursing,8568,Purchased Care,SUPPLIER,STANDARD,5773,JAAA-Directorate of Social Care and Health Services
RBC Legal Entity,02/02/2022,4646865,269314,PAYCOLL PAYROLL,LD Community Services,-209.8,Fairer charging charges,Third Party Supplier,CREDIT,5741,JAAA-Directorate of Social Care and Health Services
RBC Legal Entity,02/02/2022,4646865,269314,PAYCOLL PAYROLL,LD Community Services,1285.08,Purchased Care,Third Party Supplier,STANDARD,5741,JAAA-Directorate of Social Care and Health Services
RBC Legal Entity,02/02/2022,4646866,269315,PAYCOLL PAYROLL,PS Lifelong Community Services,-225.88,Fairer charging charges,Third Party Supplier,CREDIT,5781,JAAA-Directorate of Social Care and Health Services
RBC Legal Entity,02/02/2022,4646866,269315,PAYCOLL PAYROLL,PS Lifelong Community Services,2969.28,Purchased Care,Third Party Supplier,STANDARD,5781,JAAA-Directorate of Social Care and Health Services
RBC Legal Entity,02/02/2022,4647224,269317,AUTISM CARE WILTSHIRE,LD Residential,8453.76,Purchased Care,Direct Payments,STANDARD,5742,JAAA-Directorate of Social Care and Health Services
RBC Legal Entity,02/02/2022,4640825,269318,FARROW CREATIVE LTD,Archives General,1200,Equipment Purchase & Repair,Third Party Supplier,STANDARD,1256,KAAA-Directorate of Economic Growth and Neighbourhood Services
RBC Legal Entity,02/02/2022,4647242,269319,TRANSPARENT CARE LTD,LD Residential,5294.84,Purchased Care,SUPPLIER,STANDARD,5742,JAAA-Directorate of Social Care and Health Services
RBC Legal Entity,02/02/2022,4647262,269319,TRANSPARENT CARE LTD,LD Residential,2872.52,Purchased Care,SUPPLIER,STANDARD,5742,JAAA-Directorate of Social Care and Health Services
RBC Legal Entity,02/02/2022,4647374,269319,TRANSPARENT CARE LTD,LD Residential,3270.56,Purchased Care,SUPPLIER,STANDARD,5742,JAAA-Directorate of Social Care and Health Services
RBC Legal Entity,02/02/2022,4647300,269320,WELLHEAD LANE LIMITED,LD Residential,8404.72,Purchased Care,SUPPLIER,STANDARD,5742,JAAA-Directorate of Social Care and Health Services
RBC Legal Entity,02/02/2022,4646916,269321,PAYCOLL PAYROLL,LD Community Services,3438.32,Purchased Care,Third Party Supplier,STANDARD,5741,JAAA-Directorate of Social Care and Health Services
RBC Legal Entity,02/02/2022,4647069,269322,MMCG (2) LIMITED,PS Acquired Nursing,1305.6,Purchased Care,Third Party Supplier,STANDARD,5773,JAAA-Directorate of Social Care and Health Services
RBC Legal Entity,02/02/2022,4647070,269322,MMCG (2) LIMITED,M&C Acquired Nursing,3200,Purchased Care,Third Party Supplier,STANDARD,5753,JAAA-Directorate of Social Care and Health Services
RBC Legal Entity,02/02/2022,4647071,269322,MMCG (2) LIMITED,PS Acquired Nursing,2900,Purchased Care,Third Party Supplier,STANDARD,5773,JAAA-Directorate of Social Care and Health Services
RBC Legal Entity,02/02/2022,4647072,269322,MMCG (2) LIMITED,PS Acquired Nursing,2900,Purchased Care,Third Party Supplier,STANDARD,5773,JAAA-Directorate of Social Care and Health Services
RBC Legal Entity,02/02/2022,4647074,269322,MMCG (2) LIMITED,PS Acquired Nursing,-5385.71,Purchased Care,Third Party Supplier,CREDIT,5773,JAAA-Directorate of Social Care and Health Services
RBC Legal Entity,02/02/2022,4647079,269322,MMCG (2) LIMITED,PS Acquired Nursing,2996,Purchased Care,Third Party Supplier,STANDARD,5773,JAAA-Directorate of Social Care and Health Services
RBC Legal Entity,02/02/2022,4647080,269322,MMCG (2) LIMITED,PS Acquired Nursing,2996,Purchased Care,Third Party Supplier,STANDARD,5773,JAAA-Directorate of Social Care and Health Services
RBC Legal Entity,02/02/2022,4647081,269322,MMCG (2) LIMITED,Social Support,-3642.86,Purchased Care,Third Party Supplier,CREDIT,5790,JAAA-Directorate of Social Care and Health Services
RBC Legal Entity,02/02/2022,4647085,269322,MMCG (2) LIMITED,PS Acquired Nursing,2900,Purchased Care,Third Party Supplier,STANDARD,5773,JAAA-Directorate of Social Care and Health Services
RBC Legal Entity,02/02/2022,4647087,269322,MMCG (2) LIMITED,PS Acquired Nursing,3600,Purchased Care,Third Party Supplier,STANDARD,5773,JAAA-Directorate of Social Care and Health Services
RBC Legal Entity,02/02/2022,4647089,269322,MMCG (2) LIMITED,LD Nursing,1853.43,Respite Care,Third Party Supplier,STANDARD,5743,JAAA-Directorate of Social Care and Health Services
RBC Legal Entity,02/02/2022,4647092,269322,MMCG (2) LIMITED,PS Acquired Nursing,2996,Purchased Care,Third Party Supplier,STANDARD,5773,JAAA-Directorate of Social Care and Health Services
RBC Legal Entity,02/02/2022,4647098,269322,MMCG (2) LIMITED,PS Acquired Nursing,2996,Purchased Care,Third Party Supplier,STANDARD,5773,JAAA-Directorate of Social Care and Health Services
RBC Legal Entity,02/02/2022,4647101,269322,MMCG (2) LIMITED,PS Acquired Nursing,-7852.83,Purchased Care,Third Party Supplier,CREDIT,5773,JAAA-Directorate of Social Care and Health Services
RBC Legal Entity,02/02/2022,4647102,269322,MMCG (2) LIMITED,PS Acquired Nursing,3060,Purchased Care,Third Party Supplier,STANDARD,5773,JAAA-Directorate of Social Care and Health Services
RBC Legal Entity,02/02/2022,4647103,269322,MMCG (2) LIMITED,Mental Health Nursing,3060,Purchased Care,Third Party Supplier,STANDARD,5733,JAAA-Directorate of Social Care and Health Services
RBC Legal Entity,02/02/2022,4647108,269322,MMCG (2) LIMITED,PS Acquired Nursing,2900,Purchased Care,Third Party Supplier,STANDARD,5773,JAAA-Directorate of Social Care and Health Services
RBC Legal Entity,02/02/2022,4647110,269322,MMCG (2) LIMITED,Mental Health Nursing,3200,Purchased Care,Third Party Supplier,STANDARD,5733,JAAA-Directorate of Social Care and Health Services
RBC Legal Entity,02/02/2022,4647111,269322,MMCG (2) LIMITED,PS Acquired Nursing,3200,Purchased Care,Third Party Supplier,STANDARD,5773,JAAA-Directorate of Social Care and Health Services
RBC Legal Entity,02/02/2022,4647112,269322,MMCG (2) LIMITED,PS Acquired Nursing,2996,Purchased Care,Third Party Supplier,STANDARD,5773,JAAA-Directorate of Social Care and Health Services
RBC Legal Entity,02/02/2022,4647113,269322,MMCG (2) LIMITED,PS Acquired Nursing,2996,Purchased Care,Third Party Supplier,STANDARD,5773,JAAA-Directorate of Social Care and Health Services
RBC Legal Entity,02/02/2022,4647123,269322,MMCG (2) LIMITED,PS Acquired Nursing,3521.43,Purchased Care,Third Party Supplier,STANDARD,5773,JAAA-Directorate of Social Care and Health Services
RBC Legal Entity,02/02/2022,4647129,269322,MMCG (2) LIMITED,PS Acquired Nursing,3060,Purchased Care,Third Party Supplier,STANDARD,5773,JAAA-Directorate of Social Care and Health Services
RBC Legal Entity,02/02/2022,4647134,269322,MMCG (2) LIMITED,PS Acquired Nursing,3060,Purchased Care,Third Party Supplier,STANDARD,5773,JAAA-Directorate of Social Care and Health Services
RBC Legal Entity,02/02/2022,4647137,269322,MMCG (2) LIMITED,PS Acquired Nursing,-7146.43,Purchased Care,Third Party Supplier,CREDIT,5773,JAAA-Directorate of Social Care and Health Services
RBC Legal Entity,02/02/2022,4647139,269322,MMCG (2) LIMITED,Mental Health Nursing,2900,Purchased Care,Third Party Supplier,STANDARD,5733,JAAA-Directorate of Social Care and Health Services
RBC Legal Entity,02/02/2022,4647140,269322,MMCG (2) LIMITED,PS Acquired Nursing,2900,Purchased Care,Third Party Supplier,STANDARD,5773,JAAA-Directorate of Social Care and Health Services
RBC Legal Entity,02/02/2022,4647142,269322,MMCG (2) LIMITED,PS Acquired Nursing,3200,Purchased Care,Third Party Supplier,STANDARD,5773,JAAA-Directorate of Social Care and Health Services
RBC Legal Entity,02/02/2022,4647145,269322,MMCG (2) LIMITED,PS Acquired Nursing,-1139.29,Purchased Care,Third Party Supplier,CREDIT,5773,JAAA-Directorate of Social Care and Health Services
RBC Legal Entity,02/02/2022,4647147,269322,MMCG (2) LIMITED,M&C Acquired Nursing,2996,Purchased Care,Third Party Supplier,STANDARD,5753,JAAA-Directorate of Social Care and Health Services
RBC Legal Entity,02/02/2022,4647148,269322,MMCG (2) LIMITED,PS Acquired Nursing,2996,Purchased Care,Third Party Supplier,STANDARD,5773,JAAA-Directorate of Social Care and Health Services
RBC Legal Entity,02/02/2022,4647149,269322,MMCG (2) LIMITED,PS Acquired Nursing,2996,Purchased Care,Third Party Supplier,STANDARD,5773,JAAA-Directorate of Social Care and Health Services
RBC Legal Entity,02/02/2022,4647150,269322,MMCG (2) LIMITED,PS Acquired Nursing,2996,Purchased Care,Third Party Supplier,STANDARD,5773,JAAA-Directorate of Social Care and Health Services
RBC Legal Entity,02/02/2022,4647151,269322,MMCG (2) LIMITED,PS Acquired Nursing,-4857.14,Purchased Care,Third Party Supplier,CREDIT,5773,JAAA-Directorate of Social Care and Health Services
RBC Legal Entity,02/02/2022,4647152,269322,MMCG (2) LIMITED,PS Acquired Nursing,-4614.29,Purchased Care,Third Party Supplier,CREDIT,5773,JAAA-Directorate of Social Care and Health Services
RBC Legal Entity,02/02/2022,4647153,269322,MMCG (2) LIMITED,PS Acquired Nursing,-4007.14,Purchased Care,Third Party Supplier,CREDIT,5773,JAAA-Directorate of Social Care and Health Services
RBC Legal Entity,02/02/2022,4647157,269322,MMCG (2) LIMITED,PS Acquired Nursing,3521.43,Purchased Care,Third Party Supplier,STANDARD,5773,JAAA-Directorate of Social Care and Health Services
RBC Legal Entity,02/02/2022,4647163,269322,MMCG (2) LIMITED,M&C Acquired Nursing,2996,Purchased Care,Third Party Supplier,STANDARD,5753,JAAA-Directorate of Social Care and Health Services
RBC Legal Entity,02/02/2022,4647165,269322,MMCG (2) LIMITED,Mental Health Nursing,1224,Purchased Care,Third Party Supplier,STANDARD,5733,JAAA-Directorate of Social Care and Health Services
RBC Legal Entity,02/02/2022,4647172,269322,MMCG (2) LIMITED,Mental Health Nursing,2035.92,Purchased Care,Third Party Supplier,STANDARD,5733,JAAA-Directorate of Social Care and Health Services
RBC Legal Entity,02/02/2022,4647174,269322,MMCG (2) LIMITED,PS Acquired Nursing,1996,Purchased Care,Third Party Supplier,STANDARD,5773,JAAA-Directorate of Social Care and Health Services
RBC Legal Entity,02/02/2022,4647175,269322,MMCG (2) LIMITED,PS Acquired Nursing,2900,Purchased Care,Third Party Supplier,STANDARD,5773,JAAA-Directorate of Social Care and Health Services
RBC Legal Entity,02/02/2022,4647176,269322,MMCG (2) LIMITED,PS Acquired Nursing,2900,Purchased Care,Third Party Supplier,STANDARD,5773,JAAA-Directorate of Social Care and Health Services
RBC Legal Entity,02/02/2022,4647178,269322,MMCG (2) LIMITED,PS Acquired Nursing,2900,Purchased Care,Third Party Supplier,STANDARD,5773,JAAA-Directorate of Social Care and Health Services
RBC Legal Entity,02/02/2022,4647183,269322,MMCG (2) LIMITED,PS Acquired Nursing,2996,Purchased Care,Third Party Supplier,STANDARD,5773,JAAA-Directorate of Social Care and Health Services
RBC Legal Entity,02/02/2022,4647184,269322,MMCG (2) LIMITED,Social Support,2996,Purchased Care,Third Party Supplier,STANDARD,5790,JAAA-Directorate of Social Care and Health Services
RBC Legal Entity,02/02/2022,4647185,269322,MMCG (2) LIMITED,Mental Health Nursing,2996,Purchased Care,Third Party Supplier,STANDARD,5733,JAAA-Directorate of Social Care and Health Services
RBC Legal Entity,02/02/2022,4647186,269322,MMCG (2) LIMITED,M&C Acquired Nursing,2996,Purchased Care,Third Party Supplier,STANDARD,5753,JAAA-Directorate of Social Care and Health Services
RBC Legal Entity,02/02/2022,4647187,269322,MMCG (2) LIMITED,PS Acquired Nursing,2996,Purchased Care,Third Party Supplier,STANDARD,5773,JAAA-Directorate of Social Care and Health Services
RBC Legal Entity,02/02/2022,4647188,269322,MMCG (2) LIMITED,PS Acquired Nursing,2996,Purchased Care,Third Party Supplier,STANDARD,5773,JAAA-Directorate of Social Care and Health Services
RBC Legal Entity,02/02/2022,4647189,269322,MMCG (2) LIMITED,PS Acquired Nursing,2996,Purchased Care,Third Party Supplier,STANDARD,5773,JAAA-Directorate of Social Care and Health Services
RBC Legal Entity,02/02/2022,4647190,269322,MMCG (2) LIMITED,Mental Health Nursing,2996,Purchased Care,Third Party Supplier,STANDARD,5733,JAAA-Directorate of Social Care and Health Services
RBC Legal Entity,02/02/2022,4647191,269322,MMCG (2) LIMITED,PS Acquired Nursing,2996,Purchased Care,Third Party Supplier,STANDARD,5773,JAAA-Directorate of Social Care and Health Services
RBC Legal Entity,02/02/2022,4647192,269322,MMCG (2) LIMITED,PS Acquired Nursing,2996,Purchased Care,Third Party Supplier,STANDARD,5773,JAAA-Directorate of Social Care and Health Services
RBC Legal Entity,02/02/2022,4647193,269322,MMCG (2) LIMITED,PS Acquired Nursing,3400,Purchased Care,Third Party Supplier,STANDARD,5773,JAAA-Directorate of Social Care and Health Services
RBC Legal Entity,02/02/2022,4647194,269322,MMCG (2) LIMITED,M&C Acquired Nursing,3400,Purchased Care,Third Party Supplier,STANDARD,5753,JAAA-Directorate of Social Care and Health Services
RBC Legal Entity,02/02/2022,4647198,269322,MMCG (2) LIMITED,PS Acquired Nursing,3400,Purchased Care,Third Party Supplier,STANDARD,5773,JAAA-Directorate of Social Care and Health Services
RBC Legal Entity,02/02/2022,4647201,269322,MMCG (2) LIMITED,PS Acquired Nursing,10407.71,Purchased Care,Third Party Supplier,STANDARD,5773,JAAA-Directorate of Social Care and Health Services
RBC Legal Entity,02/02/2022,4647202,269322,MMCG (2) LIMITED,M&C Acquired Nursing,11548.29,Purchased Care,Third Party Supplier,STANDARD,5753,JAAA-Directorate of Social Care and Health Services
RBC Legal Entity,02/02/2022,4647314,269322,MMCG (2) LIMITED,M&C Acquired Nursing,3024.2,Purchased Care,Third Party Supplier,STANDARD,5753,JAAA-Directorate of Social Care and Health Services
RBC Legal Entity,02/02/2022,4646896,269323,PAYCOLL PAYROLL,LD Community Services,-258.88,Fairer charging charges,Third Party Supplier,CREDIT,5741,JAAA-Directorate of Social Care and Health Services
RBC Legal Entity,02/02/2022,4646896,269323,PAYCOLL PAYROLL,LD Community Services,1699.56,Purchased Care,Third Party Supplier,STANDARD,5741,JAAA-Directorate of Social Care and Health Services
RBC Legal Entity,02/02/2022,4647225,269324,MANORHEY CARE CENTRE,Mental Health Residential,3806.64,Purchased Care,SUPPLIER,STANDARD,5732,JAAA-Directorate of Social Care and Health Services
RBC Legal Entity,02/02/2022,4647355,269326,HEREWARDS HOUSE LTD,Mental Health Residential,1326,Purchased Care,SUPPLIER,STANDARD,5732,JAAA-Directorate of Social Care and Health Services
RBC Legal Entity,02/02/2022,4640838,269327,GREGORY PSYCHOLOGICAL SERVICES LTD,JLT Disbursements,8256.6,Misc. Legal Expenses,SUPPLIER,STANDARD,2407,LAAA-Directorate of Resources
RBC Legal Entity,02/02/2022,4647350,269331,GRACEWELL HEALTHCARE 3 LTD,PS Acquired Nursing,3669.16,Purchased Care,SUPPLIER,STANDARD,5773,JAAA-Directorate of Social Care and Health Services
RBC Legal Entity,02/02/2022,4646942,269332,PAYCOLL PAYROLL,PS Acquired Community Services,681.44,Purchased Care,Third Party Supplier,STANDARD,5771,JAAA-Directorate of Social Care and Health Services
RBC Legal Entity,02/02/2022,4646871,269333,ENHAM TRUST,LD Community Services,1815.52,Purchased Care,Third Party Supplier,STANDARD,5741,JAAA-Directorate of Social Care and Health Services
RBC Legal Entity,02/02/2022,4647029,269334,ENHAM TRUST,LD Community Services,1097.16,Purchased Care,Third Party Supplier,STANDARD,5741,JAAA-Directorate of Social Care and Health Services
RBC Legal Entity,02/02/2022,4647363,269336,EQUINOX CARE,PS Acquired Residential,3834.2,Purchased Care,SUPPLIER,STANDARD,5772,JAAA-Directorate of Social Care and Health Services
RBC Legal Entity,02/02/2022,4646857,269338,PAYCOLL PAYROLL,LD Community Services,4893.76,Purchased Care,Third Party Supplier,STANDARD,5741,JAAA-Directorate of Social Care and Health Services
RBC Legal Entity,02/02/2022,4646952,269339,PAYCOLL PAYROLL,LD Community Services,-128.4,Fairer charging charges,Third Party Supplier,CREDIT,5741,JAAA-Directorate of Social Care and Health Services
RBC Legal Entity,02/02/2022,4646952,269339,PAYCOLL PAYROLL,LD Community Services,2361.56,Purchased Care,Third Party Supplier,STANDARD,5741,JAAA-Directorate of Social Care and Health Services
RBC Legal Entity,02/02/2022,4646934,269340,PAYCOLL PAYROLL,PS Acquired Community Services,-979.2,Fairer charging charges,Third Party Supplier,CREDIT,5771,JAAA-Directorate of Social Care and Health Services
RBC Legal Entity,02/02/2022,4646934,269340,PAYCOLL PAYROLL,PS Acquired Community Services,1894,Purchased Care,Third Party Supplier,STANDARD,5771,JAAA-Directorate of Social Care and Health Services
RBC Legal Entity,02/02/2022,4647253,269341,ST MATTHEWS HEALTHCARE,Mental Health Residential,908.6,Purchased Care,SUPPLIER,STANDARD,5732,JAAA-Directorate of Social Care and Health Services
RBC Legal Entity,02/02/2022,4647366,269341,ST MATTHEWS HEALTHCARE,PS Acquired Nursing,2960,Purchased Care,SUPPLIER,STANDARD,5773,JAAA-Directorate of Social Care and Health Services
RBC Legal Entity,02/02/2022,4647304,269343,VALORUM CARE LTD,PS Acquired Nursing,4648.6,Purchased Care,SUPPLIER,STANDARD,5773,JAAA-Directorate of Social Care and Health Services
RBC Legal Entity,02/02/2022,4647416,269343,VALORUM CARE LTD,PS Acquired Nursing,-698.08,Client Contrib. Residential,SUPPLIER,CREDIT,5773,JAAA-Directorate of Social Care and Health Services
RBC Legal Entity,02/02/2022,4647416,269343,VALORUM CARE LTD,PS Acquired Nursing,3622.08,Purchased Care,SUPPLIER,STANDARD,5773,JAAA-Directorate of Social Care and Health Services
RBC Legal Entity,02/02/2022,4647273,269344,QUALITY CARE PROVIDERS LIMITED,LD Residential,9911.12,Purchased Care,SUPPLIER,STANDARD,5742,JAAA-Directorate of Social Care and Health Services
RBC Legal Entity,02/02/2022,4647336,269344,QUALITY CARE PROVIDERS LIMITED,LD Residential,6105.88,Purchased Care,SUPPLIER,STANDARD,5742,JAAA-Directorate of Social Care and Health Services
RBC Legal Entity,02/02/2022,4647337,269344,QUALITY CARE PROVIDERS LIMITED,LD Residential,6618.8,Purchased Care,SUPPLIER,STANDARD,5742,JAAA-Directorate of Social Care and Health Services
RBC Legal Entity,02/02/2022,4647307,269345,BRAMLEY HEALTH,M&C Acquired Nursing,4480,Purchased Care,SUPPLIER,STANDARD,5753,JAAA-Directorate of Social Care and Health Services
RBC Legal Entity,02/02/2022,4647323,269345,BRAMLEY HEALTH,Mental Health Residential,1848,Purchased Care,SUPPLIER,STANDARD,5732,JAAA-Directorate of Social Care and Health Services
RBC Legal Entity,02/02/2022,4643452,269346,THE WELLER CENTRE,Compass Recovery College,1000,General & Admin & Clerical,SUPPLIER,STANDARD,5006,JAAA-Directorate of Social Care and Health Services
RBC Legal Entity,02/02/2022,4647319,269347,WINDSAR CARE CENTRE LTD,Mental Health Residential,2280,Purchased Care,Third Party Supplier,STANDARD,5732,JAAA-Directorate of Social Care and Health Services
RBC Legal Entity,02/02/2022,4647369,269347,WINDSAR CARE CENTRE LTD,PS Acquired Residential,3876,Purchased Care,Third Party Supplier,STANDARD,5772,JAAA-Directorate of Social Care and Health Services
RBC Legal Entity,02/02/2022,4647434,269347,WINDSAR CARE CENTRE LTD,Mental Health Residential,2448,Purchased Care,Third Party Supplier,STANDARD,5732,JAAA-Directorate of Social Care and Health Services
RBC Legal Entity,02/02/2022,4647439,269347,WINDSAR CARE CENTRE LTD,M&C Acquired Nursing,4528.8,Purchased Care,Third Party Supplier,STANDARD,5753,JAAA-Directorate of Social Care and Health Services
RBC Legal Entity,02/02/2022,4647442,269347,WINDSAR CARE CENTRE LTD,PS Acquired Nursing,3800,Purchased Care,Third Party Supplier,STANDARD,5773,JAAA-Directorate of Social Care and Health Services
RBC Legal Entity,02/02/2022,4647326,269348,THE PINES,Mental Health Residential,3731.2,Purchased Care,SUPPLIER,STANDARD,5732,JAAA-Directorate of Social Care and Health Services
RBC Legal Entity,02/02/2022,4647035,269349,PAYCOLL PAYROLL,PS Acquired Community Services,-186.08,Fairer charging charges,Third Party Supplier,CREDIT,5771,JAAA-Directorate of Social Care and Health Services
RBC Legal Entity,02/02/2022,4647035,269349,PAYCOLL PAYROLL,PS Acquired Community Services,3042,Purchased Care,Third Party Supplier,STANDARD,5771,JAAA-Directorate of Social Care and Health Services
RBC Legal Entity,02/02/2022,4643426,269350,DOUBLE-BARRELLED BREWERY LTD,South Street Operations,502,Purchases  Liquor,SUPPLIER,STANDARD,1220,KAAA-Directorate of Economic Growth and Neighbourhood Services
RBC Legal Entity,02/02/2022,4646964,269351,PAYCOLL PAYROLL,PS Acquired Community Services,1982.04,Purchased Care,Third Party Supplier,STANDARD,5771,JAAA-Directorate of Social Care and Health Services
RBC Legal Entity,02/02/2022,4641464,269352,ACCREDO SUPPORT & DEVELOPMENT LTD,Mental Health Community Services,845.63,Purchased Care,Third Party Supplier,STANDARD,5731,JAAA-Directorate of Social Care and Health Services
RBC Legal Entity,02/02/2022,4641467,269352,ACCREDO SUPPORT & DEVELOPMENT LTD,LD Community Services,4394.88,Purchased Care,Third Party Supplier,STANDARD,5741,JAAA-Directorate of Social Care and Health Services
RBC Legal Entity,02/02/2022,4646887,269353,PAYCOLL PAYROLL,PS Acquired Community Services,702,Purchased Care,Third Party Supplier,STANDARD,5771,JAAA-Directorate of Social Care and Health Services
RBC Legal Entity,02/02/2022,4647207,269356,LIVABILITY,PS Lifelong Residential,5078.52,Purchased Care,Third Party Supplier,STANDARD,5782,JAAA-Directorate of Social Care and Health Services
RBC Legal Entity,02/02/2022,4647342,269356,LIVABILITY,LD Residential,4003.24,Purchased Care,Third Party Supplier,STANDARD,5742,JAAA-Directorate of Social Care and Health Services
RBC Legal Entity,02/02/2022,4647415,269356,LIVABILITY,PS Acquired Residential,5078.52,Purchased Care,Third Party Supplier,STANDARD,5772,JAAA-Directorate of Social Care and Health Services
RBC Legal Entity,02/02/2022,4647227,269361,THE BOLTONS,PS Acquired Residential,3264,Purchased Care,SUPPLIER,STANDARD,5772,JAAA-Directorate of Social Care and Health Services
RBC Legal Entity,02/02/2022,4647230,269361,THE BOLTONS,Mental Health Residential,1734,Purchased Care,SUPPLIER,STANDARD,5732,JAAA-Directorate of Social Care and Health Services
RBC Legal Entity,02/02/2022,4647254,269361,THE BOLTONS,PS Acquired Residential,1360,Purchased Care,SUPPLIER,STANDARD,5772,JAAA-Directorate of Social Care and Health Services
RBC Legal Entity,02/02/2022,4647291,269361,THE BOLTONS,PS Acquired Residential,3060,Purchased Care,SUPPLIER,STANDARD,5772,JAAA-Directorate of Social Care and Health Services
RBC Legal Entity,02/02/2022,4647311,269361,THE BOLTONS,Mental Health Residential,3570,Purchased Care,SUPPLIER,STANDARD,5732,JAAA-Directorate of Social Care and Health Services
RBC Legal Entity,02/02/2022,4647325,269361,THE BOLTONS,Mental Health Residential,1122,Purchased Care,SUPPLIER,STANDARD,5732,JAAA-Directorate of Social Care and Health Services
RBC Legal Entity,02/02/2022,4647332,269361,THE BOLTONS,PS Acquired Residential,3400,Purchased Care,SUPPLIER,STANDARD,5772,JAAA-Directorate of Social Care and Health Services
RBC Legal Entity,02/02/2022,4647372,269361,THE BOLTONS,M&C Acquired Residential,3182.4,Purchased Care,SUPPLIER,STANDARD,5752,JAAA-Directorate of Social Care and Health Services
RBC Legal Entity,02/02/2022,4647373,269361,THE BOLTONS,Mental Health Residential,3468,Purchased Care,SUPPLIER,STANDARD,5732,JAAA-Directorate of Social Care and Health Services
RBC Legal Entity,02/02/2022,4647376,269361,THE BOLTONS,PS Acquired Residential,3366,Purchased Care,SUPPLIER,STANDARD,5772,JAAA-Directorate of Social Care and Health Services
RBC Legal Entity,02/02/2022,4647387,269361,THE BOLTONS,PS Acquired Residential,3400,Purchased Care,SUPPLIER,STANDARD,5772,JAAA-Directorate of Social Care and Health Services
RBC Legal Entity,02/02/2022,4647429,269361,THE BOLTONS,M&C Acquired Residential,3264,Purchased Care,SUPPLIER,STANDARD,5752,JAAA-Directorate of Social Care and Health Services
RBC Legal Entity,02/02/2022,4647433,269361,THE BOLTONS,M&C Acquired Residential,3264,Purchased Care,SUPPLIER,STANDARD,5752,JAAA-Directorate of Social Care and Health Services
RBC Legal Entity,02/02/2022,4647437,269361,THE BOLTONS,Mental Health Residential,3182.4,Purchased Care,SUPPLIER,STANDARD,5732,JAAA-Directorate of Social Care and Health Services
RBC Legal Entity,02/02/2022,4647446,269361,THE BOLTONS,M&C Acquired Residential,3560,Purchased Care,SUPPLIER,STANDARD,5752,JAAA-Directorate of Social Care and Health Services
RBC Legal Entity,02/02/2022,4647449,269361,THE BOLTONS,PS Acquired Residential,3200,Purchased Care,SUPPLIER,STANDARD,5772,JAAA-Directorate of Social Care and Health Services
RBC Legal Entity,02/02/2022,4647240,269362,NAVARA LODGE,PS Acquired Residential,3092.2,Purchased Care,SUPPLIER,STANDARD,5772,JAAA-Directorate of Social Care and Health Services
RBC Legal Entity,02/02/2022,4647241,269362,NAVARA LODGE,PS Acquired Residential,2951.64,Purchased Care,SUPPLIER,STANDARD,5772,JAAA-Directorate of Social Care and Health Services
RBC Legal Entity,02/02/2022,4647310,269362,NAVARA LODGE,PS Acquired Residential,3092.2,Purchased Care,SUPPLIER,STANDARD,5772,JAAA-Directorate of Social Care and Health Services
RBC Legal Entity,02/02/2022,4647370,269362,NAVARA LODGE,PS Acquired Residential,2951.64,Purchased Care,SUPPLIER,STANDARD,5772,JAAA-Directorate of Social Care and Health Services
RBC Legal Entity,02/02/2022,4647371,269362,NAVARA LODGE,Mental Health Residential,3246.04,Purchased Care,SUPPLIER,STANDARD,5732,JAAA-Directorate of Social Care and Health Services
RBC Legal Entity,02/02/2022,4647424,269362,NAVARA LODGE,PS Acquired Residential,3246.04,Purchased Care,SUPPLIER,STANDARD,5772,JAAA-Directorate of Social Care and Health Services
RBC Legal Entity,02/02/2022,4647436,269362,NAVARA LODGE,Mental Health Residential,3246.04,Purchased Care,SUPPLIER,STANDARD,5732,JAAA-Directorate of Social Care and Health Services
RBC Legal Entity,02/02/2022,4647222,269363,MOORLANDS REST HOME,Mental Health Residential,3308.48,Purchased Care,SUPPLIER,STANDARD,5732,JAAA-Directorate of Social Care and Health Services
RBC Legal Entity,02/02/2022,4647267,269363,MOORLANDS REST HOME,PS Acquired Residential,3520,Purchased Care,SUPPLIER,STANDARD,5772,JAAA-Directorate of Social Care and Health Services
RBC Legal Entity,02/02/2022,4647297,269363,MOORLANDS REST HOME,Mental Health Residential,1968.44,Purchased Care,SUPPLIER,STANDARD,5732,JAAA-Directorate of Social Care and Health Services
RBC Legal Entity,02/02/2022,4647334,269363,MOORLANDS REST HOME,PS Acquired Residential,771.42,Respite Care,SUPPLIER,STANDARD,5772,JAAA-Directorate of Social Care and Health Services
RBC Legal Entity,02/02/2022,4647359,269363,MOORLANDS REST HOME,PS Acquired Residential,3141.6,Purchased Care,SUPPLIER,STANDARD,5772,JAAA-Directorate of Social Care and Health Services
RBC Legal Entity,02/02/2022,4647386,269363,MOORLANDS REST HOME,M&C Acquired Residential,3280,Purchased Care,SUPPLIER,STANDARD,5752,JAAA-Directorate of Social Care and Health Services
RBC Legal Entity,02/02/2022,4647443,269363,MOORLANDS REST HOME,PS Acquired Residential,3200,Purchased Care,SUPPLIER,STANDARD,5772,JAAA-Directorate of Social Care and Health Services
RBC Legal Entity,02/02/2022,4647445,269363,MOORLANDS REST HOME,M&C Acquired Residential,3428.57,Purchased Care,SUPPLIER,STANDARD,5752,JAAA-Directorate of Social Care and Health Services
RBC Legal Entity,02/02/2022,4647423,269364,HILLTOP HOUSE,Mental Health Residential,1989.84,Purchased Care,SUPPLIER,STANDARD,5732,JAAA-Directorate of Social Care and Health Services
RBC Legal Entity,02/02/2022,4647065,269365,MULBERRY HOUSE RESIDENTIAL CARE HOME,PS Acquired Residential,3200,Purchased Care,SUPPLIER,STANDARD,5772,JAAA-Directorate of Social Care and Health Services
RBC Legal Entity,02/02/2022,4647075,269365,MULBERRY HOUSE RESIDENTIAL CARE HOME,PS Acquired Residential,3200,Purchased Care,SUPPLIER,STANDARD,5772,JAAA-Directorate of Social Care and Health Services
RBC Legal Entity,02/02/2022,4647086,269365,MULBERRY HOUSE RESIDENTIAL CARE HOME,PS Acquired Residential,3400,Purchased Care,SUPPLIER,STANDARD,5772,JAAA-Directorate of Social Care and Health Services
RBC Legal Entity,02/02/2022,4647095,269365,MULBERRY HOUSE RESIDENTIAL CARE HOME,M&C Acquired Residential,3200,Purchased Care,SUPPLIER,STANDARD,5752,JAAA-Directorate of Social Care and Health Services
RBC Legal Entity,02/02/2022,4647100,269365,MULBERRY HOUSE RESIDENTIAL CARE HOME,PS Acquired Residential,3060,Purchased Care,SUPPLIER,STANDARD,5772,JAAA-Directorate of Social Care and Health Services
RBC Legal Entity,02/02/2022,4647104,269365,MULBERRY HOUSE RESIDENTIAL CARE HOME,Social Support,3060,Purchased Care,SUPPLIER,STANDARD,5790,JAAA-Directorate of Social Care and Health Services
RBC Legal Entity,02/02/2022,4647106,269365,MULBERRY HOUSE RESIDENTIAL CARE HOME,PS Acquired Residential,3300,Purchased Care,SUPPLIER,STANDARD,5772,JAAA-Directorate of Social Care and Health Services
RBC Legal Entity,02/02/2022,4647124,269365,MULBERRY HOUSE RESIDENTIAL CARE HOME,M&C Acquired Residential,3200,Purchased Care,SUPPLIER,STANDARD,5752,JAAA-Directorate of Social Care and Health Services
RBC Legal Entity,02/02/2022,4647138,269365,MULBERRY HOUSE RESIDENTIAL CARE HOME,M&C Acquired Residential,3200,Purchased Care,SUPPLIER,STANDARD,5752,JAAA-Directorate of Social Care and Health Services
RBC Legal Entity,02/02/2022,4647162,269365,MULBERRY HOUSE RESIDENTIAL CARE HOME,PS Acquired Residential,3200,Purchased Care,SUPPLIER,STANDARD,5772,JAAA-Directorate of Social Care and Health Services
RBC Legal Entity,02/02/2022,4647170,269365,MULBERRY HOUSE RESIDENTIAL CARE HOME,PS Acquired Residential,3060,Purchased Care,SUPPLIER,STANDARD,5772,JAAA-Directorate of Social Care and Health Services
RBC Legal Entity,02/02/2022,4647177,269365,MULBERRY HOUSE RESIDENTIAL CARE HOME,PS Acquired Residential,3800,Purchased Care,SUPPLIER,STANDARD,5772,JAAA-Directorate of Social Care and Health Services
RBC Legal Entity,02/02/2022,4647410,269366,LEONARD CHESHIRE SOUTH REGION,Mental Health Residential,2636.36,Purchased Care,SUPPLIER,STANDARD,5732,JAAA-Directorate of Social Care and Health Services
RBC Legal Entity,02/02/2022,4647377,269369,FIDELITY HEALTHCARE GROVE HILL LTD,PS Acquired Residential,2448,Purchased Care,SUPPLIER,STANDARD,5772,JAAA-Directorate of Social Care and Health Services
RBC Legal Entity,02/02/2022,4647389,269370,WILLIAM MORRIS COLLEGE LIMITED,LD Residential,508.61,Purchased Care,SUPPLIER,STANDARD,5742,JAAA-Directorate of Social Care and Health Services
RBC Legal Entity,02/02/2022,4646967,269372,PAYCOLL PAYROLL,PS Acquired Community Services,-176.76,Fairer charging charges,Third Party Supplier,CREDIT,5771,JAAA-Directorate of Social Care and Health Services
RBC Legal Entity,02/02/2022,4646967,269372,PAYCOLL PAYROLL,PS Acquired Community Services,753.64,Purchased Care,Third Party Supplier,STANDARD,5771,JAAA-Directorate of Social Care and Health Services
RBC Legal Entity,02/02/2022,4646829,269374,ENHAM TRUST,PS Acquired Community Services,-128.2,Fairer charging charges,Third Party Supplier,CREDIT,5771,JAAA-Directorate of Social Care and Health Services
RBC Legal Entity,02/02/2022,4646829,269374,ENHAM TRUST,PS Acquired Community Services,4661.12,Purchased Care,Third Party Supplier,STANDARD,5771,JAAA-Directorate of Social Care and Health Services
RBC Legal Entity,02/02/2022,4647440,269375,REAL LIFE OPTIONS,LD Residential,2292,Purchased Care,SUPPLIER,STANDARD,5742,JAAA-Directorate of Social Care and Health Services
RBC Legal Entity,02/02/2022,4646889,269376,PAYCOLL PAYROLL,PS Acquired Community Services,-312.56,Fairer charging charges,Third Party Supplier,CREDIT,5771,JAAA-Directorate of Social Care and Health Services
RBC Legal Entity,02/02/2022,4646889,269376,PAYCOLL PAYROLL,PS Acquired Community Services,9673.2,Purchased Care,Third Party Supplier,STANDARD,5771,JAAA-Directorate of Social Care and Health Services
RBC Legal Entity,02/02/2022,4647971,269377,BERKSHIRE ROOMS,Rowe Court Fire,665,Rents,Third Party Supplier,STANDARD,2299,KAAA-Directorate of Economic Growth and Neighbourhood Services
RBC Legal Entity,02/02/2022,4646929,269378,PAYCOLL PAYROLL,Mental Health Community Services,4119.24,Purchased Care,Third Party Supplier,STANDARD,5731,JAAA-Directorate of Social Care and Health Services
RBC Legal Entity,02/02/2022,4646893,269379,PAYCOLL PAYROLL,PS Acquired Community Services,-1257.2,Fairer charging charges,Third Party Supplier,CREDIT,5771,JAAA-Directorate of Social Care and Health Services
RBC Legal Entity,02/02/2022,4646893,269379,PAYCOLL PAYROLL,PS Acquired Community Services,3130.4,Purchased Care,Third Party Supplier,STANDARD,5771,JAAA-Directorate of Social Care and Health Services
RBC Legal Entity,02/02/2022,4646888,269380,PAYCOLL PAYROLL,PS Acquired Community Services,3059,Purchased Care,Third Party Supplier,STANDARD,5771,JAAA-Directorate of Social Care and Health Services
RBC Legal Entity,02/02/2022,4647237,269382,COLLEYCARE LIMITED,PS Acquired Residential,3121.2,Purchased Care,SUPPLIER,STANDARD,5772,JAAA-Directorate of Social Care and Health Services
RBC Legal Entity,02/02/2022,4647243,269382,COLLEYCARE LIMITED,Mental Health Residential,3060,Purchased Care,SUPPLIER,STANDARD,5732,JAAA-Directorate of Social Care and Health Services
RBC Legal Entity,02/02/2022,4647252,269382,COLLEYCARE LIMITED,PS Acquired Residential,3000,Purchased Care,SUPPLIER,STANDARD,5772,JAAA-Directorate of Social Care and Health Services
RBC Legal Entity,02/02/2022,4647257,269382,COLLEYCARE LIMITED,Mental Health Residential,1530,Purchased Care,SUPPLIER,STANDARD,5732,JAAA-Directorate of Social Care and Health Services
RBC Legal Entity,02/02/2022,4647260,269382,COLLEYCARE LIMITED,M&C Acquired Residential,3060,Purchased Care,SUPPLIER,STANDARD,5752,JAAA-Directorate of Social Care and Health Services
RBC Legal Entity,02/02/2022,4647265,269382,COLLEYCARE LIMITED,PS Acquired Residential,3900,Purchased Care,SUPPLIER,STANDARD,5772,JAAA-Directorate of Social Care and Health Services
RBC Legal Entity,02/02/2022,4647305,269382,COLLEYCARE LIMITED,PS Acquired Residential,3060,Purchased Care,SUPPLIER,STANDARD,5772,JAAA-Directorate of Social Care and Health Services
RBC Legal Entity,02/02/2022,4647306,269382,COLLEYCARE LIMITED,M&C Acquired Residential,-3169.29,Purchased Care,SUPPLIER,CREDIT,5752,JAAA-Directorate of Social Care and Health Services
RBC Legal Entity,02/02/2022,4647315,269382,COLLEYCARE LIMITED,PS Acquired Residential,3060,Purchased Care,SUPPLIER,STANDARD,5772,JAAA-Directorate of Social Care and Health Services
RBC Legal Entity,02/02/2022,4647316,269382,COLLEYCARE LIMITED,PS Acquired Residential,-4122.14,Purchased Care,SUPPLIER,CREDIT,5772,JAAA-Directorate of Social Care and Health Services
RBC Legal Entity,02/02/2022,4647318,269382,COLLEYCARE LIMITED,PS Acquired Residential,3300,Purchased Care,SUPPLIER,STANDARD,5772,JAAA-Directorate of Social Care and Health Services
RBC Legal Entity,02/02/2022,4647321,269382,COLLEYCARE LIMITED,PS Acquired Residential,3880,Purchased Care,SUPPLIER,STANDARD,5772,JAAA-Directorate of Social Care and Health Services
RBC Legal Entity,02/02/2022,4647322,269382,COLLEYCARE LIMITED,PS Acquired Residential,3000,Purchased Care,SUPPLIER,STANDARD,5772,JAAA-Directorate of Social Care and Health Services
RBC Legal Entity,02/02/2022,4647328,269382,COLLEYCARE LIMITED,PS Acquired Residential,800,Purchased Care,SUPPLIER,STANDARD,5772,JAAA-Directorate of Social Care and Health Services
RBC Legal Entity,02/02/2022,4647331,269382,COLLEYCARE LIMITED,PS Acquired Residential,3800,Purchased Care,SUPPLIER,STANDARD,5772,JAAA-Directorate of Social Care and Health Services
RBC Legal Entity,02/02/2022,4647335,269382,COLLEYCARE LIMITED,M&C Acquired Residential,15996.42,Purchased Care,SUPPLIER,STANDARD,5752,JAAA-Directorate of Social Care and Health Services
RBC Legal Entity,02/02/2022,4647364,269382,COLLEYCARE LIMITED,PS Acquired Residential,3060,Purchased Care,SUPPLIER,STANDARD,5772,JAAA-Directorate of Social Care and Health Services
RBC Legal Entity,02/02/2022,4647381,269382,COLLEYCARE LIMITED,M&C Acquired Residential,3200,Purchased Care,SUPPLIER,STANDARD,5752,JAAA-Directorate of Social Care and Health Services
RBC Legal Entity,02/02/2022,4647388,269382,COLLEYCARE LIMITED,PS Acquired Residential,3880,Purchased Care,SUPPLIER,STANDARD,5772,JAAA-Directorate of Social Care and Health Services
RBC Legal Entity,02/02/2022,4647390,269382,COLLEYCARE LIMITED,Sensory Support Residential,3980,Purchased Care,SUPPLIER,STANDARD,5712,JAAA-Directorate of Social Care and Health Services
RBC Legal Entity,02/02/2022,4647432,269382,COLLEYCARE LIMITED,PS Acquired Residential,3060,Purchased Care,SUPPLIER,STANDARD,5772,JAAA-Directorate of Social Care and Health Services
RBC Legal Entity,02/02/2022,4647435,269382,COLLEYCARE LIMITED,M&C Acquired Residential,27200,EMI,SUPPLIER,STANDARD,5752,JAAA-Directorate of Social Care and Health Services
RBC Legal Entity,02/02/2022,4641457,269383,ACTIVE ASSISTANCE,PS Acquired Community Services,634.34,Purchased Care,SUPPLIER,STANDARD,5771,JAAA-Directorate of Social Care and Health Services
RBC Legal Entity,02/02/2022,4641458,269383,ACTIVE ASSISTANCE,PS Acquired Community Services,952.83,Purchased Care,SUPPLIER,STANDARD,5771,JAAA-Directorate of Social Care and Health Services
RBC Legal Entity,02/02/2022,4647282,269384,SEEABILITY,LD Residential,-425.6,Client Contrib. Residential,SUPPLIER,CREDIT,5742,JAAA-Directorate of Social Care and Health Services
RBC Legal Entity,02/02/2022,4647282,269384,SEEABILITY,LD Residential,9143.44,Purchased Care,SUPPLIER,STANDARD,5742,JAAA-Directorate of Social Care and Health Services
RBC Legal Entity,02/02/2022,4640711,269385,MIDLAND SOFTWARE LIMITED,HR & Payroll,480,Software Licences,SUPPLIER,STANDARD,2600,LAAA-Directorate of Resources
RBC Legal Entity,02/02/2022,4646683,269387,ASKEWS & HOLTS LIBRARY SERVICES LTD,General Reference,39.79,Childrens Stock,SUPPLIER,STANDARD,1454,KAAA-Directorate of Economic Growth and Neighbourhood Services
RBC Legal Entity,02/02/2022,4646683,269387,ASKEWS & HOLTS LIBRARY SERVICES LTD,General Reference,69.13,Adult Non Fiction Books,SUPPLIER,STANDARD,1454,KAAA-Directorate of Economic Growth and Neighbourhood Services
RBC Legal Entity,02/02/2022,4646683,269387,ASKEWS & HOLTS LIBRARY SERVICES LTD,General Reference,211.31,Childrens Stock,SUPPLIER,STANDARD,1454,KAAA-Directorate of Economic Growth and Neighbourhood Services
RBC Legal Entity,02/02/2022,4646683,269387,ASKEWS & HOLTS LIBRARY SERVICES LTD,General Reference,490.62,Adult Fiction Books,SUPPLIER,STANDARD,1454,KAAA-Directorate of Economic Growth and Neighbourhood Services
RBC Legal Entity,02/02/2022,4647603,269387,ASKEWS & HOLTS LIBRARY SERVICES LTD,General Reference,643.42,Childrens Stock,SUPPLIER,STANDARD,1454,KAAA-Directorate of Economic Growth and Neighbourhood Services
RBC Legal Entity,02/02/2022,4647428,269389,THE DISABILITIES TRUST,LD Residential,5219.16,Purchased Care,SUPPLIER,STANDARD,5742,JAAA-Directorate of Social Care and Health Services
RBC Legal Entity,02/02/2022,4647244,269390,THE DISABILITIES TRUST,LD Residential,7060,Purchased Care,SUPPLIER,STANDARD,5742,JAAA-Directorate of Social Care and Health Services
RBC Legal Entity,02/02/2022,4647221,269391,CHILMINGTON HOMES LIMITED,LD Residential,7135.32,Purchased Care,Third Party Supplier,STANDARD,5742,JAAA-Directorate of Social Care and Health Services
RBC Legal Entity,02/02/2022,4647261,269391,CHILMINGTON HOMES LIMITED,LD Residential,6787.2,Purchased Care,Third Party Supplier,STANDARD,5742,JAAA-Directorate of Social Care and Health Services
RBC Legal Entity,02/02/2022,4647418,269391,CHILMINGTON HOMES LIMITED,LD Residential,5638.76,Purchased Care,Third Party Supplier,STANDARD,5742,JAAA-Directorate of Social Care and Health Services
RBC Legal Entity,02/02/2022,4647329,269393,THE ABBEYFIELD READING SOCIETY LTD,PS Acquired Residential,3200,Purchased Care,Third Party Supplier,STANDARD,5772,JAAA-Directorate of Social Care and Health Services
RBC Legal Entity,02/02/2022,4643392,269395,TREVAL CLEANING SERVICES,South Street Catering,1827,Office Cleaning,SUPPLIER,STANDARD,1243,KAAA-Directorate of Economic Growth and Neighbourhood Services
RBC Legal Entity,02/02/2022,4646832,269397,PAYCOLL PAYROLL,PS Acquired Community Services,-167.32,Fairer charging charges,Third Party Supplier,CREDIT,5771,JAAA-Directorate of Social Care and Health Services
RBC Legal Entity,02/02/2022,4646832,269397,PAYCOLL PAYROLL,PS Acquired Community Services,2375.52,Purchased Care,Third Party Supplier,STANDARD,5771,JAAA-Directorate of Social Care and Health Services
RBC Legal Entity,02/02/2022,4646843,269398,PAYCOLL PAYROLL,LD Community Services,-200,Fairer charging charges,Third Party Supplier,CREDIT,5741,JAAA-Directorate of Social Care and Health Services
RBC Legal Entity,02/02/2022,4646843,269398,PAYCOLL PAYROLL,LD Community Services,2498.52,Purchased Care,Third Party Supplier,STANDARD,5741,JAAA-Directorate of Social Care and Health Services
RBC Legal Entity,02/02/2022,4647052,269400,PAYCOLL PAYROLL,PS Acquired Community Services,1292.76,Purchased Care,Third Party Supplier,STANDARD,5771,JAAA-Directorate of Social Care and Health Services
RBC Legal Entity,02/02/2022,4646820,269401,PAYCOLL PAYROLL,LD Community Services,-227.04,Fairer charging charges,Third Party Supplier,CREDIT,5741,JAAA-Directorate of Social Care and Health Services
RBC Legal Entity,02/02/2022,4646820,269401,PAYCOLL PAYROLL,LD Community Services,1532.48,Purchased Care,Third Party Supplier,STANDARD,5741,JAAA-Directorate of Social Care and Health Services
RBC Legal Entity,02/02/2022,4646849,269402,PAYCOLL PAYROLL,PS Acquired Community Services,-283.68,Fairer charging charges,Third Party Supplier,CREDIT,5771,JAAA-Directorate of Social Care and Health Services
RBC Legal Entity,02/02/2022,4646849,269402,PAYCOLL PAYROLL,PS Acquired Community Services,1389.6,Purchased Care,Third Party Supplier,STANDARD,5771,JAAA-Directorate of Social Care and Health Services
RBC Legal Entity,02/02/2022,4646828,269403,PAYCOLL PAYROLL,PS Acquired Community Services,1929.56,Purchased Care,Third Party Supplier,STANDARD,5771,JAAA-Directorate of Social Care and Health Services
RBC Legal Entity,02/02/2022,4647013,269405,PAYCOLL PAYROLL,PS Acquired Community Services,-560,Fairer charging charges,Third Party Supplier,CREDIT,5771,JAAA-Directorate of Social Care and Health Services
RBC Legal Entity,02/02/2022,4647013,269405,PAYCOLL PAYROLL,PS Acquired Community Services,2353.64,Purchased Care,Third Party Supplier,STANDARD,5771,JAAA-Directorate of Social Care and Health Services
RBC Legal Entity,02/02/2022,4647009,269408,PAYCOLL PAYROLL,PS Acquired Community Services,620.96,Purchased Care,Third Party Supplier,STANDARD,5771,JAAA-Directorate of Social Care and Health Services
RBC Legal Entity,02/02/2022,4647248,269410,AUSTEN HOUSE BARCHESTER HEALTHCARE,PS Acquired Nursing,3800,Purchased Care,Third Party Supplier,STANDARD,5773,JAAA-Directorate of Social Care and Health Services
RBC Legal Entity,02/02/2022,4647275,269410,AUSTEN HOUSE BARCHESTER HEALTHCARE,M&C Acquired Nursing,3138.8,Purchased Care,Third Party Supplier,STANDARD,5753,JAAA-Directorate of Social Care and Health Services
RBC Legal Entity,02/02/2022,4647333,269410,AUSTEN HOUSE BARCHESTER HEALTHCARE,Mental Health Nursing,3600,Purchased Care,Third Party Supplier,STANDARD,5733,JAAA-Directorate of Social Care and Health Services
RBC Legal Entity,02/02/2022,4647383,269410,AUSTEN HOUSE BARCHESTER HEALTHCARE,M&C Acquired Nursing,3800,Purchased Care,Third Party Supplier,STANDARD,5753,JAAA-Directorate of Social Care and Health Services
RBC Legal Entity,02/02/2022,4647447,269410,AUSTEN HOUSE BARCHESTER HEALTHCARE,PS Acquired Nursing,3800,Purchased Care,Third Party Supplier,STANDARD,5773,JAAA-Directorate of Social Care and Health Services
RBC Legal Entity,02/02/2022,4647205,269411,PURLEY PARK TRUST LTD,LD Residential,4492,Purchased Care,Third Party Supplier,STANDARD,5742,JAAA-Directorate of Social Care and Health Services
RBC Legal Entity,02/02/2022,4647229,269411,PURLEY PARK TRUST LTD,LD Residential,4152,Purchased Care,Third Party Supplier,STANDARD,5742,JAAA-Directorate of Social Care and Health Services
RBC Legal Entity,02/02/2022,4647271,269411,PURLEY PARK TRUST LTD,LD Residential,4492,Purchased Care,Third Party Supplier,STANDARD,5742,JAAA-Directorate of Social Care and Health Services
RBC Legal Entity,02/02/2022,4647272,269411,PURLEY PARK TRUST LTD,PS Lifelong Residential,4492,Purchased Care,Third Party Supplier,STANDARD,5782,JAAA-Directorate of Social Care and Health Services
RBC Legal Entity,02/02/2022,4647274,269411,PURLEY PARK TRUST LTD,LD Residential,4152,Purchased Care,Third Party Supplier,STANDARD,5742,JAAA-Directorate of Social Care and Health Services
RBC Legal Entity,02/02/2022,4647279,269411,PURLEY PARK TRUST LTD,LD Residential,-425.6,Client Contrib. Residential,Third Party Supplier,CREDIT,5742,JAAA-Directorate of Social Care and Health Services
RBC Legal Entity,02/02/2022,4647279,269411,PURLEY PARK TRUST LTD,LD Residential,4693.04,Purchased Care,Third Party Supplier,STANDARD,5742,JAAA-Directorate of Social Care and Health Services
RBC Legal Entity,02/02/2022,4647281,269411,PURLEY PARK TRUST LTD,LD Residential,-608.8,Client Contrib. Residential,Third Party Supplier,CREDIT,5742,JAAA-Directorate of Social Care and Health Services
RBC Legal Entity,02/02/2022,4647281,269411,PURLEY PARK TRUST LTD,LD Residential,4492,Purchased Care,Third Party Supplier,STANDARD,5742,JAAA-Directorate of Social Care and Health Services
RBC Legal Entity,02/02/2022,4647294,269411,PURLEY PARK TRUST LTD,LD Residential,4492,Purchased Care,Third Party Supplier,STANDARD,5742,JAAA-Directorate of Social Care and Health Services
RBC Legal Entity,02/02/2022,4647414,269411,PURLEY PARK TRUST LTD,PS Lifelong Residential,4492,Purchased Care,Third Party Supplier,STANDARD,5782,JAAA-Directorate of Social Care and Health Services
RBC Legal Entity,02/02/2022,4647417,269411,PURLEY PARK TRUST LTD,LD Residential,4492,Purchased Care,Third Party Supplier,STANDARD,5742,JAAA-Directorate of Social Care and Health Services
RBC Legal Entity,02/02/2022,4647427,269411,PURLEY PARK TRUST LTD,Mental Health Residential,3000,Purchased Care,Third Party Supplier,STANDARD,5732,JAAA-Directorate of Social Care and Health Services
RBC Legal Entity,02/02/2022,4647351,269412,HOLLIES CARE HOME,PS Acquired Nursing,2978.4,Purchased Care,SUPPLIER,STANDARD,5773,JAAA-Directorate of Social Care and Health Services
RBC Legal Entity,02/02/2022,4647219,269413,DUNRAVEN HOUSE,M&C Acquired Residential,-608.8,Client Contrib. Residential,SUPPLIER,CREDIT,5752,JAAA-Directorate of Social Care and Health Services
RBC Legal Entity,02/02/2022,4647219,269413,DUNRAVEN HOUSE,M&C Acquired Residential,2002.08,Purchased Care,SUPPLIER,STANDARD,5752,JAAA-Directorate of Social Care and Health Services
RBC Legal Entity,02/02/2022,4647362,269414,NORWOOD SCHOOLS LIMITED,LD Residential,8872,Purchased Care,SUPPLIER,STANDARD,5742,JAAA-Directorate of Social Care and Health Services
RBC Legal Entity,02/02/2022,4647284,269415,UNITED RESPONSE,LD Residential,-425.6,Client Contrib. Residential,Third Party Supplier,CREDIT,5742,JAAA-Directorate of Social Care and Health Services
RBC Legal Entity,02/02/2022,4647284,269415,UNITED RESPONSE,LD Residential,5469.4,Purchased Care,Third Party Supplier,STANDARD,5742,JAAA-Directorate of Social Care and Health Services
RBC Legal Entity,02/02/2022,4647343,269416,SENSE,LD Residential,-425.6,Client Contrib. Residential,SUPPLIER,CREDIT,5742,JAAA-Directorate of Social Care and Health Services
RBC Legal Entity,02/02/2022,4647343,269416,SENSE,LD Residential,7558,Purchased Care,SUPPLIER,STANDARD,5742,JAAA-Directorate of Social Care and Health Services
RBC Legal Entity,02/02/2022,4647251,269418,NORTHCOURT LODGE CARE HOME LTD,PS Acquired Nursing,3520,Purchased Care,SUPPLIER,STANDARD,5773,JAAA-Directorate of Social Care and Health Services
RBC Legal Entity,02/02/2022,4647368,269418,NORTHCOURT LODGE CARE HOME LTD,PS Acquired Nursing,3468,Purchased Care,SUPPLIER,STANDARD,5773,JAAA-Directorate of Social Care and Health Services
RBC Legal Entity,02/02/2022,4647375,269418,NORTHCOURT LODGE CARE HOME LTD,PS Acquired Nursing,3520,Purchased Care,SUPPLIER,STANDARD,5773,JAAA-Directorate of Social Care and Health Services
RBC Legal Entity,02/02/2022,4647438,269418,NORTHCOURT LODGE CARE HOME LTD,PS Acquired Nursing,3468,Purchased Care,SUPPLIER,STANDARD,5773,JAAA-Directorate of Social Care and Health Services
RBC Legal Entity,02/02/2022,4647317,269419,BOND CARE (HENLEY) LTD,PS Acquired Nursing,3600,Purchased Care,Third Party Supplier,STANDARD,5773,JAAA-Directorate of Social Care and Health Services
RBC Legal Entity,02/02/2022,4647452,269419,BOND CARE (HENLEY) LTD,Mental Health Nursing,141035.71,Purchased Care,Third Party Supplier,STANDARD,5733,JAAA-Directorate of Social Care and Health Services
RBC Legal Entity,02/02/2022,4646706,269420,PERMADOOR,Planned Maintenance Trades,1736.1,Materials from Store,SUB-CONTRACTOR,STANDARD,4040,KAAA-Directorate of Economic Growth and Neighbourhood Services
RBC Legal Entity,02/02/2022,4646975,269421,PAYCOLL PAYROLL,Sensory Support Community Services,505,Purchased Care,Third Party Supplier,STANDARD,5711,JAAA-Directorate of Social Care and Health Services
RBC Legal Entity,02/02/2022,4646976,269422,PAYCOLL PAYROLL,Mental Health Community Services,812.96,Purchased Care,Third Party Supplier,STANDARD,5731,JAAA-Directorate of Social Care and Health Services
RBC Legal Entity,02/02/2022,4646971,269425,PAYCOLL PAYROLL,LD Community Services,-251.84,Fairer charging charges,Third Party Supplier,CREDIT,5741,JAAA-Directorate of Social Care and Health Services
RBC Legal Entity,02/02/2022,4646971,269425,PAYCOLL PAYROLL,LD Community Services,8100.88,Purchased Care,Third Party Supplier,STANDARD,5741,JAAA-Directorate of Social Care and Health Services
RBC Legal Entity,02/02/2022,4647382,269426,SILVERSPRINGS RCH LTD,LD Residential,7000,Purchased Care,SUPPLIER,STANDARD,5742,JAAA-Directorate of Social Care and Health Services
RBC Legal Entity,02/02/2022,4647055,269427,PAYCOLL PAYROLL,Social Support,5923.8,Purchased Care,Third Party Supplier,STANDARD,5790,JAAA-Directorate of Social Care and Health Services
RBC Legal Entity,02/02/2022,4646910,269428,PAYCOLL PAYROLL,LD Community Services,2135.04,Purchased Care,Third Party Supplier,STANDARD,5741,JAAA-Directorate of Social Care and Health Services
RBC Legal Entity,02/02/2022,4647250,269429,BENTLEY LODGE CARE HOME LTD,PS Acquired Nursing,3000,Purchased Care,Third Party Supplier,STANDARD,5773,JAAA-Directorate of Social Care and Health Services
RBC Legal Entity,02/02/2022,4646836,269430,PAYCOLL PAYROLL,Social Support,-527,Fairer charging charges,Third Party Supplier,CREDIT,5790,JAAA-Directorate of Social Care and Health Services
RBC Legal Entity,02/02/2022,4646836,269430,PAYCOLL PAYROLL,Social Support,12066,Purchased Care,Third Party Supplier,STANDARD,5790,JAAA-Directorate of Social Care and Health Services
RBC Legal Entity,02/02/2022,4646732,269436,RIDGE & PARTNERS,HRA portfolio expansion,1445,External Fees  Misc.,SUPPLIER,STANDARD,8518,ZZZC-Capital
RBC Legal Entity,02/02/2022,4646735,269436,RIDGE & PARTNERS,HRA portfolio expansion,682,External Fees  Misc.,SUPPLIER,STANDARD,8518,ZZZC-Capital
RBC Legal Entity,02/02/2022,4646744,269436,RIDGE & PARTNERS,HRA portfolio expansion,500,External Fees  Misc.,SUPPLIER,STANDARD,8518,ZZZC-Capital
RBC Legal Entity,02/02/2022,4647344,269437,STROUD COURT COMMUNITY TRUST,LD Residential,-595.8,Client Contrib. Residential,SUPPLIER,CREDIT,5742,JAAA-Directorate of Social Care and Health Services
RBC Legal Entity,02/02/2022,4647344,269437,STROUD COURT COMMUNITY TRUST,LD Residential,6054.52,Purchased Care,SUPPLIER,STANDARD,5742,JAAA-Directorate of Social Care and Health Services
RBC Legal Entity,02/02/2022,4647338,269438,LANDLACE CAREHOMES LTD,LD Residential,4437.12,Purchased Care,SUPPLIER,STANDARD,5742,JAAA-Directorate of Social Care and Health Services
RBC Legal Entity,02/02/2022,4647283,269440,TCM PARTNERSHIP,LD Residential,-425.6,Client Contrib. Residential,SUPPLIER,CREDIT,5742,JAAA-Directorate of Social Care and Health Services
RBC Legal Entity,02/02/2022,4647283,269440,TCM PARTNERSHIP,LD Residential,8322.24,Purchased Care,SUPPLIER,STANDARD,5742,JAAA-Directorate of Social Care and Health Services
RBC Legal Entity,02/02/2022,4647093,269442,BUPA CARE SERVICES,PS Acquired Nursing,5289.36,Purchased Care,SUPPLIER,STANDARD,5773,JAAA-Directorate of Social Care and Health Services
RBC Legal Entity,02/02/2022,4647094,269442,BUPA CARE SERVICES,PS Acquired Nursing,5289.36,Purchased Care,SUPPLIER,STANDARD,5773,JAAA-Directorate of Social Care and Health Services
RBC Legal Entity,02/02/2022,4647097,269442,BUPA CARE SERVICES,PS Acquired Nursing,5289.36,Purchased Care,SUPPLIER,STANDARD,5773,JAAA-Directorate of Social Care and Health Services
RBC Legal Entity,02/02/2022,4647099,269442,BUPA CARE SERVICES,PS Acquired Nursing,5289.36,Purchased Care,SUPPLIER,STANDARD,5773,JAAA-Directorate of Social Care and Health Services
RBC Legal Entity,02/02/2022,4647105,269442,BUPA CARE SERVICES,PS Acquired Nursing,5289.36,Purchased Care,SUPPLIER,STANDARD,5773,JAAA-Directorate of Social Care and Health Services
RBC Legal Entity,02/02/2022,4647107,269442,BUPA CARE SERVICES,PS Acquired Nursing,5289.36,Purchased Care,SUPPLIER,STANDARD,5773,JAAA-Directorate of Social Care and Health Services
RBC Legal Entity,02/02/2022,4647125,269442,BUPA CARE SERVICES,PS Acquired Nursing,5289.36,Purchased Care,SUPPLIER,STANDARD,5773,JAAA-Directorate of Social Care and Health Services
RBC Legal Entity,02/02/2022,4647126,269442,BUPA CARE SERVICES,PS Acquired Nursing,5135.32,Purchased Care,SUPPLIER,STANDARD,5773,JAAA-Directorate of Social Care and Health Services
RBC Legal Entity,02/02/2022,4647127,269442,BUPA CARE SERVICES,PS Lifelong Nursing,5289.36,Purchased Care,SUPPLIER,STANDARD,5783,JAAA-Directorate of Social Care and Health Services
RBC Legal Entity,02/02/2022,4647132,269442,BUPA CARE SERVICES,PS Acquired Nursing,5289.36,Purchased Care,SUPPLIER,STANDARD,5773,JAAA-Directorate of Social Care and Health Services
RBC Legal Entity,02/02/2022,4647135,269442,BUPA CARE SERVICES,Mental Health Nursing,5289.36,Purchased Care,SUPPLIER,STANDARD,5733,JAAA-Directorate of Social Care and Health Services
RBC Legal Entity,02/02/2022,4647166,269442,BUPA CARE SERVICES,PS Acquired Nursing,5289.36,Purchased Care,SUPPLIER,STANDARD,5773,JAAA-Directorate of Social Care and Health Services
RBC Legal Entity,02/02/2022,4647167,269442,BUPA CARE SERVICES,PS Acquired Nursing,5289.36,Purchased Care,SUPPLIER,STANDARD,5773,JAAA-Directorate of Social Care and Health Services
RBC Legal Entity,02/02/2022,4647169,269442,BUPA CARE SERVICES,PS Acquired Nursing,5289.36,Purchased Care,SUPPLIER,STANDARD,5773,JAAA-Directorate of Social Care and Health Services
RBC Legal Entity,02/02/2022,4647173,269442,BUPA CARE SERVICES,Mental Health Nursing,1790.56,Purchased Care,SUPPLIER,STANDARD,5733,JAAA-Directorate of Social Care and Health Services
RBC Legal Entity,02/02/2022,4647247,269442,BUPA CARE SERVICES,Social Support,4128.72,Purchased Care,SUPPLIER,STANDARD,5790,JAAA-Directorate of Social Care and Health Services
RBC Legal Entity,02/02/2022,4647302,269442,BUPA CARE SERVICES,Mental Health Nursing,1107,Purchased Care,SUPPLIER,STANDARD,5733,JAAA-Directorate of Social Care and Health Services
RBC Legal Entity,02/02/2022,4647365,269442,BUPA CARE SERVICES,Mental Health Nursing,-5004.93,Purchased Care,SUPPLIER,CREDIT,5733,JAAA-Directorate of Social Care and Health Services
RBC Legal Entity,02/02/2022,4647238,269443,DIVINE CARE SOLUTIONS,LD Residential,3184.44,Purchased Care,SUPPLIER,STANDARD,5742,JAAA-Directorate of Social Care and Health Services
RBC Legal Entity,02/02/2022,4647392,269444,DIMENSIONS (UK) LTD,LD Residential,742.5,Respite Care,Third Party Supplier,STANDARD,5742,JAAA-Directorate of Social Care and Health Services
RBC Legal Entity,02/02/2022,4647395,269444,DIMENSIONS (UK) LTD,LD Residential,6683.04,Purchased Care,Third Party Supplier,STANDARD,5742,JAAA-Directorate of Social Care and Health Services
RBC Legal Entity,02/02/2022,4647385,269445,PEMBROKE LODGE,M&C Acquired Residential,3600,Purchased Care,SUPPLIER,STANDARD,5752,JAAA-Directorate of Social Care and Health Services
RBC Legal Entity,02/02/2022,4647451,269445,PEMBROKE LODGE,M&C Acquired Residential,29042.86,Purchased Care,SUPPLIER,STANDARD,5752,JAAA-Directorate of Social Care and Health Services
RBC Legal Entity,02/02/2022,4647048,269447,PAYCOLL PAYROLL,Mental Health Community Services,2701.2,Purchased Care,Third Party Supplier,STANDARD,5731,JAAA-Directorate of Social Care and Health Services
RBC Legal Entity,02/02/2022,4647024,269448,PAYCOLL PAYROLL,LD Community Services,1618.6,Purchased Care,Third Party Supplier,STANDARD,5741,JAAA-Directorate of Social Care and Health Services
RBC Legal Entity,02/02/2022,4646919,269449,PAYCOLL PAYROLL,Mental Health Community Services,3425.5,Fairer charging charges,Third Party Supplier,STANDARD,5731,JAAA-Directorate of Social Care and Health Services
RBC Legal Entity,02/02/2022,4646919,269449,PAYCOLL PAYROLL,Mental Health Community Services,4422.2,Purchased Care,Third Party Supplier,STANDARD,5731,JAAA-Directorate of Social Care and Health Services
RBC Legal Entity,02/02/2022,4646914,269451,PAYCOLL PAYROLL,Mental Health Community Services,2282,Purchased Care,Third Party Supplier,STANDARD,5731,JAAA-Directorate of Social Care and Health Services
RBC Legal Entity,02/02/2022,4646840,269452,PAYCOLL PAYROLL,LD Community Services,1962,Purchased Care,Third Party Supplier,STANDARD,5741,JAAA-Directorate of Social Care and Health Services
RBC Legal Entity,02/02/2022,4646839,269453,PAYCOLL PAYROLL,Social Support,731.68,Purchased Care,Third Party Supplier,STANDARD,5790,JAAA-Directorate of Social Care and Health Services
RBC Legal Entity,02/02/2022,4646907,269457,PAYCOLL PAYROLL,Mental Health Community Services,762,Purchased Care,Third Party Supplier,STANDARD,5731,JAAA-Directorate of Social Care and Health Services
RBC Legal Entity,02/02/2022,4646987,269458,PAYCOLL PAYROLL,LD Community Services,2375.44,Purchased Care,Third Party Supplier,STANDARD,5741,JAAA-Directorate of Social Care and Health Services
RBC Legal Entity,02/02/2022,4647340,269460,DOWNVIEW RESIDENTIAL CARE,LD Residential,-425.6,Client Contrib. Residential,SUPPLIER,CREDIT,5742,JAAA-Directorate of Social Care and Health Services
RBC Legal Entity,02/02/2022,4647340,269460,DOWNVIEW RESIDENTIAL CARE,LD Residential,5546.72,Purchased Care,SUPPLIER,STANDARD,5742,JAAA-Directorate of Social Care and Health Services
RBC Legal Entity,02/02/2022,4640650,269462,CIVICA UK LTD,Accountancy,740,Consultancy Fees,Third Party Supplier,STANDARD,2200,LAAA-Directorate of Resources
RBC Legal Entity,02/02/2022,4640793,269462,CIVICA UK LTD,Financial Services - Financial Systems Team,15755,Software Licences,Third Party Supplier,STANDARD,2202,LAAA-Directorate of Resources
RBC Legal Entity,02/02/2022,4641992,269462,CIVICA UK LTD,Financial Services - Financial Systems Team,-604.97,Software Licences,Third Party Supplier,CREDIT,2202,LAAA-Directorate of Resources
RBC Legal Entity,02/02/2022,4644192,269462,CIVICA UK LTD,Financial Services - Financial Systems Team,604.97,Software Licences,Third Party Supplier,STANDARD,2202,LAAA-Directorate of Resources
RBC Legal Entity,02/02/2022,4647066,269463,FLORENCE CARE (READING) LTD,PS Acquired Nursing,3186.48,Purchased Care,Direct Payments,STANDARD,5773,JAAA-Directorate of Social Care and Health Services
RBC Legal Entity,02/02/2022,4647068,269463,FLORENCE CARE (READING) LTD,PS Acquired Nursing,3366,Purchased Care,Direct Payments,STANDARD,5773,JAAA-Directorate of Social Care and Health Services
RBC Legal Entity,02/02/2022,4647073,269463,FLORENCE CARE (READING) LTD,M&C Acquired Nursing,3400,Purchased Care,Direct Payments,STANDARD,5753,JAAA-Directorate of Social Care and Health Services
RBC Legal Entity,02/02/2022,4647076,269463,FLORENCE CARE (READING) LTD,PS Acquired Nursing,7592,Purchased Care,Direct Payments,STANDARD,5773,JAAA-Directorate of Social Care and Health Services
RBC Legal Entity,02/02/2022,4647077,269463,FLORENCE CARE (READING) LTD,PS Acquired Nursing,3400,Purchased Care,Direct Payments,STANDARD,5773,JAAA-Directorate of Social Care and Health Services
RBC Legal Entity,02/02/2022,4647078,269463,FLORENCE CARE (READING) LTD,M&C Acquired Nursing,8350,Purchased Care,Direct Payments,STANDARD,5753,JAAA-Directorate of Social Care and Health Services
RBC Legal Entity,02/02/2022,4647082,269463,FLORENCE CARE (READING) LTD,Mental Health Nursing,3800,Purchased Care,Direct Payments,STANDARD,5733,JAAA-Directorate of Social Care and Health Services
RBC Legal Entity,02/02/2022,4647084,269463,FLORENCE CARE (READING) LTD,PS Acquired Nursing,600,Purchased Care,Direct Payments,STANDARD,5773,JAAA-Directorate of Social Care and Health Services
RBC Legal Entity,02/02/2022,4647090,269463,FLORENCE CARE (READING) LTD,PS Acquired Nursing,3366,Purchased Care,Direct Payments,STANDARD,5773,JAAA-Directorate of Social Care and Health Services
RBC Legal Entity,02/02/2022,4647109,269463,FLORENCE CARE (READING) LTD,PS Acquired Nursing,3600,Purchased Care,Direct Payments,STANDARD,5773,JAAA-Directorate of Social Care and Health Services
RBC Legal Entity,02/02/2022,4647115,269463,FLORENCE CARE (READING) LTD,PS Acquired Nursing,3400,Purchased Care,Direct Payments,STANDARD,5773,JAAA-Directorate of Social Care and Health Services
RBC Legal Entity,02/02/2022,4647118,269463,FLORENCE CARE (READING) LTD,PS Acquired Nursing,800,Purchased Care,Direct Payments,STANDARD,5773,JAAA-Directorate of Social Care and Health Services
RBC Legal Entity,02/02/2022,4647119,269463,FLORENCE CARE (READING) LTD,PS Acquired Nursing,-785.71,Purchased Care,Direct Payments,CREDIT,5773,JAAA-Directorate of Social Care and Health Services
RBC Legal Entity,02/02/2022,4647120,269463,FLORENCE CARE (READING) LTD,PS Acquired Nursing,3600,Purchased Care,Direct Payments,STANDARD,5773,JAAA-Directorate of Social Care and Health Services
RBC Legal Entity,02/02/2022,4647121,269463,FLORENCE CARE (READING) LTD,PS Acquired Nursing,600,Purchased Care,Direct Payments,STANDARD,5773,JAAA-Directorate of Social Care and Health Services
RBC Legal Entity,02/02/2022,4647128,269463,FLORENCE CARE (READING) LTD,PS Acquired Nursing,3137.12,Purchased Care,Direct Payments,STANDARD,5773,JAAA-Directorate of Social Care and Health Services
RBC Legal Entity,02/02/2022,4647133,269463,FLORENCE CARE (READING) LTD,PS Acquired Nursing,3366,Purchased Care,Direct Payments,STANDARD,5773,JAAA-Directorate of Social Care and Health Services
RBC Legal Entity,02/02/2022,4647136,269463,FLORENCE CARE (READING) LTD,PS Acquired Nursing,3060,Purchased Care,Direct Payments,STANDARD,5773,JAAA-Directorate of Social Care and Health Services
RBC Legal Entity,02/02/2022,4647144,269463,FLORENCE CARE (READING) LTD,PS Acquired Nursing,-24228.57,Purchased Care,Direct Payments,CREDIT,5773,JAAA-Directorate of Social Care and Health Services
RBC Legal Entity,02/02/2022,4647146,269463,FLORENCE CARE (READING) LTD,PS Acquired Nursing,-15300,Purchased Care,Direct Payments,CREDIT,5773,JAAA-Directorate of Social Care and Health Services
RBC Legal Entity,02/02/2022,4647156,269463,FLORENCE CARE (READING) LTD,PS Acquired Nursing,18700,Purchased Care,Direct Payments,STANDARD,5773,JAAA-Directorate of Social Care and Health Services
RBC Legal Entity,02/02/2022,4647171,269463,FLORENCE CARE (READING) LTD,PS Acquired Nursing,3590.4,Purchased Care,Direct Payments,STANDARD,5773,JAAA-Directorate of Social Care and Health Services
RBC Legal Entity,02/02/2022,4647179,269463,FLORENCE CARE (READING) LTD,PS Acquired Nursing,3600,Purchased Care,Direct Payments,STANDARD,5773,JAAA-Directorate of Social Care and Health Services
RBC Legal Entity,02/02/2022,4647180,269463,FLORENCE CARE (READING) LTD,PS Acquired Nursing,3800,Purchased Care,Direct Payments,STANDARD,5773,JAAA-Directorate of Social Care and Health Services
RBC Legal Entity,02/02/2022,4647181,269463,FLORENCE CARE (READING) LTD,PS Acquired Nursing,3400,Purchased Care,Direct Payments,STANDARD,5773,JAAA-Directorate of Social Care and Health Services
RBC Legal Entity,02/02/2022,4647182,269463,FLORENCE CARE (READING) LTD,PS Acquired Nursing,4404,Purchased Care,Direct Payments,STANDARD,5773,JAAA-Directorate of Social Care and Health Services
RBC Legal Entity,02/02/2022,4647196,269463,FLORENCE CARE (READING) LTD,PS Acquired Nursing,3789,Purchased Care,Direct Payments,STANDARD,5773,JAAA-Directorate of Social Care and Health Services
RBC Legal Entity,02/02/2022,4647199,269463,FLORENCE CARE (READING) LTD,PS Acquired Nursing,-5942.86,Purchased Care,Direct Payments,CREDIT,5773,JAAA-Directorate of Social Care and Health Services
RBC Legal Entity,02/02/2022,4647200,269463,FLORENCE CARE (READING) LTD,PS Acquired Nursing,27428.57,Purchased Care,Direct Payments,STANDARD,5773,JAAA-Directorate of Social Care and Health Services
RBC Legal Entity,02/02/2022,4640386,269464,IMPERIAL CIVIL ENFORCEMENT SOLUTIONS,Parking & Enforcement,74.72,Credit Card Commission,SUPPLIER,STANDARD,4725,KAAA-Directorate of Economic Growth and Neighbourhood Services
RBC Legal Entity,02/02/2022,4640386,269464,IMPERIAL CIVIL ENFORCEMENT SOLUTIONS,Residents Parking,691.49,Credit Card Commission,SUPPLIER,STANDARD,4723,KAAA-Directorate of Economic Growth and Neighbourhood Services
RBC Legal Entity,02/02/2022,4647206,269466,VOYAGE CARE,LD Residential,5376.8,Purchased Care,Third Party Supplier,STANDARD,5742,JAAA-Directorate of Social Care and Health Services
RBC Legal Entity,02/02/2022,4647209,269466,VOYAGE CARE,LD Residential,-425.6,Client Contrib. Residential,Third Party Supplier,CREDIT,5742,JAAA-Directorate of Social Care and Health Services
RBC Legal Entity,02/02/2022,4647209,269466,VOYAGE CARE,LD Residential,6575.32,Purchased Care,Third Party Supplier,STANDARD,5742,JAAA-Directorate of Social Care and Health Services
RBC Legal Entity,02/02/2022,4647214,269466,VOYAGE CARE,LD Residential,5865.92,Purchased Care,Third Party Supplier,STANDARD,5742,JAAA-Directorate of Social Care and Health Services
RBC Legal Entity,02/02/2022,4647215,269466,VOYAGE CARE,LD Residential,-425.6,Client Contrib. Residential,Third Party Supplier,CREDIT,5742,JAAA-Directorate of Social Care and Health Services
RBC Legal Entity,02/02/2022,4647215,269466,VOYAGE CARE,LD Residential,5675.24,Purchased Care,Third Party Supplier,STANDARD,5742,JAAA-Directorate of Social Care and Health Services
RBC Legal Entity,02/02/2022,4647216,269466,VOYAGE CARE,LD Residential,-608.8,Client Contrib. Residential,Third Party Supplier,CREDIT,5742,JAAA-Directorate of Social Care and Health Services
RBC Legal Entity,02/02/2022,4647216,269466,VOYAGE CARE,LD Residential,5654.84,Purchased Care,Third Party Supplier,STANDARD,5742,JAAA-Directorate of Social Care and Health Services
RBC Legal Entity,02/02/2022,4647217,269466,VOYAGE CARE,LD Residential,-425.6,Client Contrib. Residential,Third Party Supplier,CREDIT,5742,JAAA-Directorate of Social Care and Health Services
RBC Legal Entity,02/02/2022,4647217,269466,VOYAGE CARE,LD Residential,5336.64,Purchased Care,Third Party Supplier,STANDARD,5742,JAAA-Directorate of Social Care and Health Services
RBC Legal Entity,02/02/2022,4647226,269466,VOYAGE CARE,LD Residential,4896,Purchased Care,Third Party Supplier,STANDARD,5742,JAAA-Directorate of Social Care and Health Services
RBC Legal Entity,02/02/2022,4647255,269466,VOYAGE CARE,Mental Health Residential,3461.64,Purchased Care,Third Party Supplier,STANDARD,5732,JAAA-Directorate of Social Care and Health Services
RBC Legal Entity,02/02/2022,4647256,269466,VOYAGE CARE,LD Residential,6579.6,Purchased Care,Third Party Supplier,STANDARD,5742,JAAA-Directorate of Social Care and Health Services
RBC Legal Entity,02/02/2022,4647285,269466,VOYAGE CARE,LD Residential,-425.6,Client Contrib. Residential,Third Party Supplier,CREDIT,5742,JAAA-Directorate of Social Care and Health Services
RBC Legal Entity,02/02/2022,4647285,269466,VOYAGE CARE,LD Residential,5336.64,Purchased Care,Third Party Supplier,STANDARD,5742,JAAA-Directorate of Social Care and Health Services
RBC Legal Entity,02/02/2022,4647287,269466,VOYAGE CARE,LD Residential,-425.6,Client Contrib. Residential,Third Party Supplier,CREDIT,5742,JAAA-Directorate of Social Care and Health Services
RBC Legal Entity,02/02/2022,4647287,269466,VOYAGE CARE,LD Residential,5704,Purchased Care,Third Party Supplier,STANDARD,5742,JAAA-Directorate of Social Care and Health Services
RBC Legal Entity,02/02/2022,4647288,269466,VOYAGE CARE,LD Residential,-365.6,Client Contrib. Residential,Third Party Supplier,CREDIT,5742,JAAA-Directorate of Social Care and Health Services
RBC Legal Entity,02/02/2022,4647288,269466,VOYAGE CARE,LD Residential,4788,Purchased Care,Third Party Supplier,STANDARD,5742,JAAA-Directorate of Social Care and Health Services
RBC Legal Entity,02/02/2022,4647293,269466,VOYAGE CARE,LD Residential,6120,Purchased Care,Third Party Supplier,STANDARD,5742,JAAA-Directorate of Social Care and Health Services
RBC Legal Entity,02/02/2022,4647303,269466,VOYAGE CARE,LD Residential,-425.6,Client Contrib. Residential,Third Party Supplier,CREDIT,5742,JAAA-Directorate of Social Care and Health Services
RBC Legal Entity,02/02/2022,4647303,269466,VOYAGE CARE,LD Residential,5100,Purchased Care,Third Party Supplier,STANDARD,5742,JAAA-Directorate of Social Care and Health Services
RBC Legal Entity,02/02/2022,4647327,269466,VOYAGE CARE,LD Residential,4032.48,Purchased Care,Third Party Supplier,STANDARD,5742,JAAA-Directorate of Social Care and Health Services
RBC Legal Entity,02/02/2022,4647339,269466,VOYAGE CARE,LD Residential,-425.6,Client Contrib. Residential,Third Party Supplier,CREDIT,5742,JAAA-Directorate of Social Care and Health Services
RBC Legal Entity,02/02/2022,4647339,269466,VOYAGE CARE,LD Residential,5800,Purchased Care,Third Party Supplier,STANDARD,5742,JAAA-Directorate of Social Care and Health Services
RBC Legal Entity,02/02/2022,4647345,269466,VOYAGE CARE,LD Residential,5865.92,Purchased Care,Third Party Supplier,STANDARD,5742,JAAA-Directorate of Social Care and Health Services
RBC Legal Entity,02/02/2022,4647346,269466,VOYAGE CARE,LD Residential,-425.6,Client Contrib. Residential,Third Party Supplier,CREDIT,5742,JAAA-Directorate of Social Care and Health Services
RBC Legal Entity,02/02/2022,4647346,269466,VOYAGE CARE,LD Residential,5675.24,Purchased Care,Third Party Supplier,STANDARD,5742,JAAA-Directorate of Social Care and Health Services
RBC Legal Entity,02/02/2022,4647347,269466,VOYAGE CARE,LD Residential,5926.52,Purchased Care,Third Party Supplier,STANDARD,5742,JAAA-Directorate of Social Care and Health Services
RBC Legal Entity,02/02/2022,4647348,269466,VOYAGE CARE,LD Residential,6881.24,Purchased Care,Third Party Supplier,STANDARD,5742,JAAA-Directorate of Social Care and Health Services
RBC Legal Entity,02/02/2022,4647354,269466,VOYAGE CARE,LD Residential,7113.44,Purchased Care,Third Party Supplier,STANDARD,5742,JAAA-Directorate of Social Care and Health Services
RBC Legal Entity,02/02/2022,4647356,269466,VOYAGE CARE,LD Residential,6924,Purchased Care,Third Party Supplier,STANDARD,5742,JAAA-Directorate of Social Care and Health Services
RBC Legal Entity,02/02/2022,4647379,269466,VOYAGE CARE,Sensory Support Residential,6843.4,Purchased Care,Third Party Supplier,STANDARD,5712,JAAA-Directorate of Social Care and Health Services
RBC Legal Entity,02/02/2022,4647380,269466,VOYAGE CARE,LD Residential,7569.44,Purchased Care,Third Party Supplier,STANDARD,5742,JAAA-Directorate of Social Care and Health Services
RBC Legal Entity,02/02/2022,4647396,269466,VOYAGE CARE,LD Residential,6201.6,Purchased Care,Third Party Supplier,STANDARD,5742,JAAA-Directorate of Social Care and Health Services
RBC Legal Entity,02/02/2022,4647407,269466,VOYAGE CARE,LD Residential,-425.6,Client Contrib. Residential,Third Party Supplier,CREDIT,5742,JAAA-Directorate of Social Care and Health Services
RBC Legal Entity,02/02/2022,4647407,269466,VOYAGE CARE,LD Residential,5336.64,Purchased Care,Third Party Supplier,STANDARD,5742,JAAA-Directorate of Social Care and Health Services
RBC Legal Entity,02/02/2022,4647408,269466,VOYAGE CARE,LD Residential,-417.6,Client Contrib. Residential,Third Party Supplier,CREDIT,5742,JAAA-Directorate of Social Care and Health Services
RBC Legal Entity,02/02/2022,4647408,269466,VOYAGE CARE,LD Residential,5926.52,Purchased Care,Third Party Supplier,STANDARD,5742,JAAA-Directorate of Social Care and Health Services
RBC Legal Entity,02/02/2022,4647412,269466,VOYAGE CARE,LD Residential,-425.6,Client Contrib. Residential,Third Party Supplier,CREDIT,5742,JAAA-Directorate of Social Care and Health Services
RBC Legal Entity,02/02/2022,4647412,269466,VOYAGE CARE,LD Residential,9357.88,Purchased Care,Third Party Supplier,STANDARD,5742,JAAA-Directorate of Social Care and Health Services
RBC Legal Entity,02/02/2022,4647430,269466,VOYAGE CARE,LD Residential,7096,Purchased Care,Third Party Supplier,STANDARD,5742,JAAA-Directorate of Social Care and Health Services
RBC Legal Entity,02/02/2022,4647441,269466,VOYAGE CARE,LD Residential,6192.36,Purchased Care,Third Party Supplier,STANDARD,5742,JAAA-Directorate of Social Care and Health Services
RBC Legal Entity,02/02/2022,4647259,269470,ABBEYFIELD DEMENTIA CARE HOME ,PS Acquired Residential,3400,Purchased Care,Direct Payments,STANDARD,5772,JAAA-Directorate of Social Care and Health Services
RBC Legal Entity,02/02/2022,4647054,269472,PAYCOLL PAYROLL,PS Acquired Community Services,-586.84,Fairer charging charges,Third Party Supplier,CREDIT,5771,JAAA-Directorate of Social Care and Health Services
RBC Legal Entity,02/02/2022,4647054,269472,PAYCOLL PAYROLL,PS Acquired Community Services,3042,Purchased Care,Third Party Supplier,STANDARD,5771,JAAA-Directorate of Social Care and Health Services
RBC Legal Entity,02/02/2022,4646990,269473,PAYCOLL PAYROLL,LD Community Services,4754,Purchased Care,Third Party Supplier,STANDARD,5741,JAAA-Directorate of Social Care and Health Services
RBC Legal Entity,02/02/2022,4646926,269474,PAYCOLL PAYROLL,PS Acquired Community Services,897,Purchased Care,Third Party Supplier,STANDARD,5771,JAAA-Directorate of Social Care and Health Services
RBC Legal Entity,02/02/2022,4646988,269475,PAYCOLL PAYROLL,LD Community Services,3002,Purchased Care,Third Party Supplier,STANDARD,5741,JAAA-Directorate of Social Care and Health Services
RBC Legal Entity,02/02/2022,4646927,269476,PAYCOLL PAYROLL,PS Acquired Community Services,-1645.34,Purchased Care,Third Party Supplier,CREDIT,5771,JAAA-Directorate of Social Care and Health Services
RBC Legal Entity,02/02/2022,4647057,269476,PAYCOLL PAYROLL,PS Acquired Community Services,-193.6,Fairer charging charges,Third Party Supplier,CREDIT,5771,JAAA-Directorate of Social Care and Health Services
RBC Legal Entity,02/02/2022,4647057,269476,PAYCOLL PAYROLL,PS Acquired Community Services,3063.35,Purchased Care,Third Party Supplier,STANDARD,5771,JAAA-Directorate of Social Care and Health Services
RBC Legal Entity,02/02/2022,4646903,269477,PAYCOLL PAYROLL,PS Acquired Community Services,940.56,Purchased Care,Third Party Supplier,STANDARD,5771,JAAA-Directorate of Social Care and Health Services
RBC Legal Entity,02/02/2022,4647448,269478,NELLSAR LTD T/A PRINCESS CHRISTIAN CARE CENTRE,M&C Acquired Nursing,8456,Purchased Care,Third Party Supplier,STANDARD,5753,JAAA-Directorate of Social Care and Health Services
RBC Legal Entity,02/02/2022,4647083,269479,CARE UK COMMUNITY PARTNERSHIPS LTD,M&C Acquired Nursing,48222.6,EMI,Third Party Supplier,STANDARD,5753,JAAA-Directorate of Social Care and Health Services
RBC Legal Entity,02/02/2022,4647058,269480,PAYCOLL PAYROLL,PS Acquired Community Services,522,Purchased Care,Third Party Supplier,STANDARD,5771,JAAA-Directorate of Social Care and Health Services
RBC Legal Entity,02/02/2022,4646904,269481,PAYCOLL PAYROLL,PS Acquired Community Services,973,Purchased Care,Third Party Supplier,STANDARD,5771,JAAA-Directorate of Social Care and Health Services
RBC Legal Entity,03/02/2022,4640757,269484,EARTH ANCHORS LTD,Parks + Open Spaces,1962,Furniture,Third Party Supplier,STANDARD,8003,ZZZC-Capital
RBC Legal Entity,03/02/2022,4643461,269485,ST MUNGO'S COMMUNITY HOUSING ASSOCIATION LTD,Single Homelessness Grants,29026,Preventive+SupportiveServ,SUPPLIER,STANDARD,5860,KAAA-Directorate of Economic Growth and Neighbourhood Services
RBC Legal Entity,03/02/2022,4643462,269485,ST MUNGO'S COMMUNITY HOUSING ASSOCIATION LTD,Single Homelessness Grants,31346,Preventive+SupportiveServ,SUPPLIER,STANDARD,5860,KAAA-Directorate of Economic Growth and Neighbourhood Services
RBC Legal Entity,03/02/2022,4643463,269485,ST MUNGO'S COMMUNITY HOUSING ASSOCIATION LTD,Single Homelessness Grants,18307,Preventive+SupportiveServ,SUPPLIER,STANDARD,5860,KAAA-Directorate of Economic Growth and Neighbourhood Services
RBC Legal Entity,03/02/2022,4643464,269485,ST MUNGO'S COMMUNITY HOUSING ASSOCIATION LTD,Single Homelessness Grants,19045,Preventive+SupportiveServ,SUPPLIER,STANDARD,5860,KAAA-Directorate of Economic Growth and Neighbourhood Services
RBC Legal Entity,03/02/2022,4643468,269485,ST MUNGO'S COMMUNITY HOUSING ASSOCIATION LTD,Single Homelessness Grants,12541,Preventive+SupportiveServ,SUPPLIER,STANDARD,5860,KAAA-Directorate of Economic Growth and Neighbourhood Services
RBC Legal Entity,03/02/2022,4643469,269485,ST MUNGO'S COMMUNITY HOUSING ASSOCIATION LTD,Single Homelessness Grants,38809,Preventive+SupportiveServ,SUPPLIER,STANDARD,5860,KAAA-Directorate of Economic Growth and Neighbourhood Services
RBC Legal Entity,03/02/2022,4643602,269485,ST MUNGO'S COMMUNITY HOUSING ASSOCIATION LTD,Housing GF General Charges,14166,Preventive+SupportiveServ,SUPPLIER,STANDARD,5810,KAAA-Directorate of Economic Growth and Neighbourhood Services
RBC Legal Entity,03/02/2022,4645431,269486,BEN BANKS,Town Hall - Museum,507.5,Display/Museum Exhibits,Third Party Supplier,STANDARD,1255,KAAA-Directorate of Economic Growth and Neighbourhood Services
RBC Legal Entity,03/02/2022,4640845,269487,MIRUS PROJECTS LIMITED,Corporate Maintenance Services,525,Leasing Costs,SUB-CONTRACTOR,STANDARD,4080,KAAA-Directorate of Economic Growth and Neighbourhood Services
RBC Legal Entity,03/02/2022,4640845,269487,MIRUS PROJECTS LIMITED,Repairs,2940,Essential Cyclical Insp. + Mai,SUB-CONTRACTOR,STANDARD,5970,HAAA-Housing Revenue Account
RBC Legal Entity,03/02/2022,4643746,269489,DAVIS SCAFFOLDING,DLO Wokingham Trades,760,Subcontractors Labour,SUB-CONTRACTOR,STANDARD,4050,KAAA-Directorate of Economic Growth and Neighbourhood Services
RBC Legal Entity,03/02/2022,4643753,269489,DAVIS SCAFFOLDING,DLO Day to Day Trades,3300,Subcontractors Labour,SUB-CONTRACTOR,STANDARD,4010,KAAA-Directorate of Economic Growth and Neighbourhood Services
RBC Legal Entity,03/02/2022,4643754,269489,DAVIS SCAFFOLDING,DLO Day to Day Trades,660,Subcontractors Labour,SUB-CONTRACTOR,STANDARD,4010,KAAA-Directorate of Economic Growth and Neighbourhood Services
RBC Legal Entity,03/02/2022,4640915,269492,AVANTI CYCLING,Strategic Transport & Concessionary Fares,4500,TPP to Others,Third Party Supplier,STANDARD,4726,KAAA-Directorate of Economic Growth and Neighbourhood Services
RBC Legal Entity,03/02/2022,4640736,269493,NLC NOVA LIFT CO LTD,FM R&M Car Parks,223.11,Building Maintenance,SUB-CONTRACTOR,STANDARD,4081,KAAA-Directorate of Economic Growth and Neighbourhood Services
RBC Legal Entity,03/02/2022,4640736,269493,NLC NOVA LIFT CO LTD,Corporate Maintenance Services,1191.82,Leasing Costs,SUB-CONTRACTOR,STANDARD,4080,KAAA-Directorate of Economic Growth and Neighbourhood Services
RBC Legal Entity,03/02/2022,4640736,269493,NLC NOVA LIFT CO LTD,Repairs,2736.7,Essential Cyclical Insp. + Mai,SUB-CONTRACTOR,STANDARD,5970,HAAA-Housing Revenue Account
RBC Legal Entity,03/02/2022,4640737,269493,NLC NOVA LIFT CO LTD,Corporate Maintenance Services,350,Leasing Costs,SUB-CONTRACTOR,STANDARD,4080,KAAA-Directorate of Economic Growth and Neighbourhood Services
RBC Legal Entity,03/02/2022,4640737,269493,NLC NOVA LIFT CO LTD,Repairs,743.75,Essential Cyclical Insp. + Mai,SUB-CONTRACTOR,STANDARD,5970,HAAA-Housing Revenue Account
RBC Legal Entity,03/02/2022,4640862,269494,DOMESTIC APPLIANCE SPECIALISTS,DLO Day to Day Trades,979.17,Subcontractors Labour,SUPPLIER,STANDARD,4010,KAAA-Directorate of Economic Growth and Neighbourhood Services
RBC Legal Entity,03/02/2022,4648191,269497,SIMPLE RECRUITMENT SERVICES LIMITED,Hexagon Operations,740.64,Equipment Hire,Third Party Supplier,STANDARD,1200,KAAA-Directorate of Economic Growth and Neighbourhood Services
RBC Legal Entity,03/02/2022,4640615,269498,PILON LTD,DLO Day to Day Trades,23223.28,Subcontractors Labour,SUB-CONTRACTOR,STANDARD,4010,KAAA-Directorate of Economic Growth and Neighbourhood Services
RBC Legal Entity,03/02/2022,4640709,269501,SAFETY LABEL,Crime Reduction,2268,Contractors,Third Party Supplier,STANDARD,8671,ZZZC-Capital
RBC Legal Entity,03/02/2022,4643636,269502,RE3 LTD,Waste Disposal,1976063.12,Household Waste,SUPPLIER,STANDARD,4562,KAAA-Directorate of Economic Growth and Neighbourhood Services
RBC Legal Entity,03/02/2022,4643868,269503,KCARE NURSING AGENCY LTD,ASC Operational Management Team,-118.37,Purchased Care,Third Party Supplier,CREDIT,5309,JAAA-Directorate of Social Care and Health Services
RBC Legal Entity,03/02/2022,4643868,269503,KCARE NURSING AGENCY LTD,PS Acquired Community Services,591.85,Purchased Care,Third Party Supplier,STANDARD,5771,JAAA-Directorate of Social Care and Health Services
RBC Legal Entity,03/02/2022,4643869,269503,KCARE NURSING AGENCY LTD,ASC Operational Management Team,-273.6,Purchased Care,Third Party Supplier,CREDIT,5309,JAAA-Directorate of Social Care and Health Services
RBC Legal Entity,03/02/2022,4643869,269503,KCARE NURSING AGENCY LTD,PS Acquired Community Services,1368,Purchased Care,Third Party Supplier,STANDARD,5771,JAAA-Directorate of Social Care and Health Services
RBC Legal Entity,03/02/2022,4643870,269503,KCARE NURSING AGENCY LTD,ASC Operational Management Team,-241.03,Purchased Care,Third Party Supplier,CREDIT,5309,JAAA-Directorate of Social Care and Health Services
RBC Legal Entity,03/02/2022,4643870,269503,KCARE NURSING AGENCY LTD,PS Acquired Community Services,1205.17,Purchased Care,Third Party Supplier,STANDARD,5771,JAAA-Directorate of Social Care and Health Services
RBC Legal Entity,03/02/2022,4643871,269503,KCARE NURSING AGENCY LTD,ASC Operational Management Team,-130.34,Purchased Care,Third Party Supplier,CREDIT,5309,JAAA-Directorate of Social Care and Health Services
RBC Legal Entity,03/02/2022,4643871,269503,KCARE NURSING AGENCY LTD,PS Acquired Community Services,651.7,Purchased Care,Third Party Supplier,STANDARD,5771,JAAA-Directorate of Social Care and Health Services
RBC Legal Entity,03/02/2022,4643872,269503,KCARE NURSING AGENCY LTD,ASC Operational Management Team,-395.2,Purchased Care,Third Party Supplier,CREDIT,5309,JAAA-Directorate of Social Care and Health Services
RBC Legal Entity,03/02/2022,4643872,269503,KCARE NURSING AGENCY LTD,PS Acquired Community Services,1976,Purchased Care,Third Party Supplier,STANDARD,5771,JAAA-Directorate of Social Care and Health Services
RBC Legal Entity,03/02/2022,4643873,269503,KCARE NURSING AGENCY LTD,ASC Operational Management Team,-239.4,Purchased Care,Third Party Supplier,CREDIT,5309,JAAA-Directorate of Social Care and Health Services
RBC Legal Entity,03/02/2022,4643873,269503,KCARE NURSING AGENCY LTD,PS Acquired Community Services,1197,Purchased Care,Third Party Supplier,STANDARD,5771,JAAA-Directorate of Social Care and Health Services
RBC Legal Entity,03/02/2022,4643876,269503,KCARE NURSING AGENCY LTD,ASC Operational Management Team,-106.4,Purchased Care,Third Party Supplier,CREDIT,5309,JAAA-Directorate of Social Care and Health Services
RBC Legal Entity,03/02/2022,4643876,269503,KCARE NURSING AGENCY LTD,PS Acquired Community Services,532,Purchased Care,Third Party Supplier,STANDARD,5771,JAAA-Directorate of Social Care and Health Services
RBC Legal Entity,03/02/2022,4643877,269503,KCARE NURSING AGENCY LTD,ASC Operational Management Team,-213.9,Purchased Care,Third Party Supplier,CREDIT,5309,JAAA-Directorate of Social Care and Health Services
RBC Legal Entity,03/02/2022,4643877,269503,KCARE NURSING AGENCY LTD,Mental Health Community Services,1069.51,Purchased Care,Third Party Supplier,STANDARD,5731,JAAA-Directorate of Social Care and Health Services
RBC Legal Entity,03/02/2022,4643878,269503,KCARE NURSING AGENCY LTD,ASC Operational Management Team,-235.6,Purchased Care,Third Party Supplier,CREDIT,5309,JAAA-Directorate of Social Care and Health Services
RBC Legal Entity,03/02/2022,4643878,269503,KCARE NURSING AGENCY LTD,PS Acquired Community Services,1178,Purchased Care,Third Party Supplier,STANDARD,5771,JAAA-Directorate of Social Care and Health Services
RBC Legal Entity,03/02/2022,4643880,269503,KCARE NURSING AGENCY LTD,ASC Operational Management Team,-182.4,Purchased Care,Third Party Supplier,CREDIT,5309,JAAA-Directorate of Social Care and Health Services
RBC Legal Entity,03/02/2022,4643880,269503,KCARE NURSING AGENCY LTD,PS Acquired Community Services,912,Purchased Care,Third Party Supplier,STANDARD,5771,JAAA-Directorate of Social Care and Health Services
RBC Legal Entity,03/02/2022,4643881,269503,KCARE NURSING AGENCY LTD,ASC Operational Management Team,-210.14,Purchased Care,Third Party Supplier,CREDIT,5309,JAAA-Directorate of Social Care and Health Services
RBC Legal Entity,03/02/2022,4643881,269503,KCARE NURSING AGENCY LTD,PS Acquired Community Services,1050.7,Purchased Care,Third Party Supplier,STANDARD,5771,JAAA-Directorate of Social Care and Health Services
RBC Legal Entity,03/02/2022,4640799,269504,BARBOUR LOGIC LTD,Special Parking Area,7500,Equipment Purchase & Repair,SUPPLIER,STANDARD,4724,KAAA-Directorate of Economic Growth and Neighbourhood Services
RBC Legal Entity,03/02/2022,4640799,269504,BARBOUR LOGIC LTD,Bus Lane Enforcement,7500,EquiptMaintenanceContract,SUPPLIER,STANDARD,4722,KAAA-Directorate of Economic Growth and Neighbourhood Services
RBC Legal Entity,03/02/2022,4645401,269505,PEPPERMILL INTERIORS,South Street Operations,105.41,Equipment Purchase & Repair,Third Party Supplier,STANDARD,1220,KAAA-Directorate of Economic Growth and Neighbourhood Services
RBC Legal Entity,03/02/2022,4645401,269505,PEPPERMILL INTERIORS,South Street Operations,2727.09,Equipment Purchase & Repair,Third Party Supplier,STANDARD,1220,KAAA-Directorate of Economic Growth and Neighbourhood Services
RBC Legal Entity,03/02/2022,4648184,269506,F M CONWAY LTD,Highways,460,Materials Direct,SUB-CONTRACTOR,STANDARD,4252,KAAA-Directorate of Economic Growth and Neighbourhood Services
RBC Legal Entity,03/02/2022,4648204,269506,F M CONWAY LTD,Highways,575,Materials Direct,SUB-CONTRACTOR,STANDARD,4252,KAAA-Directorate of Economic Growth and Neighbourhood Services
RBC Legal Entity,03/02/2022,4648318,269509,MEDCARE HOME SERVICES LTD T/A PROACTIVE LIFE,LD Community Services,3844.92,Purchased Care,SUPPLIER,STANDARD,5741,JAAA-Directorate of Social Care and Health Services
RBC Legal Entity,03/02/2022,4648319,269509,MEDCARE HOME SERVICES LTD T/A PROACTIVE LIFE,LD Community Services,3844.92,Purchased Care,SUPPLIER,STANDARD,5741,JAAA-Directorate of Social Care and Health Services
RBC Legal Entity,03/02/2022,4648320,269509,MEDCARE HOME SERVICES LTD T/A PROACTIVE LIFE,Mental Health Community Services,1847.28,Purchased Care,SUPPLIER,STANDARD,5731,JAAA-Directorate of Social Care and Health Services
RBC Legal Entity,03/02/2022,4648321,269509,MEDCARE HOME SERVICES LTD T/A PROACTIVE LIFE,Mental Health Community Services,1847.28,Purchased Care,SUPPLIER,STANDARD,5731,JAAA-Directorate of Social Care and Health Services
RBC Legal Entity,03/02/2022,4648315,269511,MY HOMECARE (READING AND BRACKNELL) LTD,PS Acquired Community Services,2698,Purchased Care,Third Party Supplier,STANDARD,5771,JAAA-Directorate of Social Care and Health Services
RBC Legal Entity,03/02/2022,4648317,269511,MY HOMECARE (READING AND BRACKNELL) LTD,PS Acquired Community Services,1653,Purchased Care,Third Party Supplier,STANDARD,5771,JAAA-Directorate of Social Care and Health Services
RBC Legal Entity,03/02/2022,4646610,269513,PPL PRS LTD,Town Hall - Concert Hall Events,829.95,Royalties,SUPPLIER,STANDARD,1213,KAAA-Directorate of Economic Growth and Neighbourhood Services
RBC Legal Entity,03/02/2022,4648515,269516,Brighter Futures for Children,Brighter Futures for Children,184921,TPP  Contract,Internal,STANDARD,5430,NAAA-Former Directorate of Education and Childrens Services
RBC Legal Entity,03/02/2022,4648518,269516,Brighter Futures for Children,DSG (RBC),17333,TPP  Contract,Internal,STANDARD,5432,NAAA-Former Directorate of Education and Childrens Services
RBC Legal Entity,03/02/2022,4648518,269516,Brighter Futures for Children,DSG (RBC),84042,TPP  Contract,Internal,STANDARD,5432,NAAA-Former Directorate of Education and Childrens Services
RBC Legal Entity,03/02/2022,4648518,269516,Brighter Futures for Children,DSG (RBC),701641,TPP  Contract,Internal,STANDARD,5432,NAAA-Former Directorate of Education and Childrens Services
RBC Legal Entity,03/02/2022,4648518,269516,Brighter Futures for Children,DSG (RBC),1713964,TPP  Contract,Internal,STANDARD,5432,NAAA-Former Directorate of Education and Childrens Services
RBC Legal Entity,03/02/2022,4648519,269516,Brighter Futures for Children,Brighter Futures for Children,3389942,TPP  Contract,Internal,STANDARD,5430,NAAA-Former Directorate of Education and Childrens Services
RBC Legal Entity,03/02/2022,4648521,269516,Brighter Futures for Children,Brighter Futures for Children,374744,TPP  Contract,Internal,STANDARD,5430,NAAA-Former Directorate of Education and Childrens Services
RBC Legal Entity,03/02/2022,4640792,269518,STORAGETECH LTD,New Directions,1380,Software Support,SUPPLIER,STANDARD,3340,KAAA-Directorate of Economic Growth and Neighbourhood Services
RBC Legal Entity,03/02/2022,4648361,269519,SPECTRUM GROUP SERVICES LIMITED,PS Acquired Community Services,532,Purchased Care,Third Party Supplier,STANDARD,5771,JAAA-Directorate of Social Care and Health Services
RBC Legal Entity,03/02/2022,4648363,269519,SPECTRUM GROUP SERVICES LIMITED,PS Acquired Community Services,774.25,Purchased Care,Third Party Supplier,STANDARD,5771,JAAA-Directorate of Social Care and Health Services
RBC Legal Entity,03/02/2022,4648365,269519,SPECTRUM GROUP SERVICES LIMITED,PS Acquired Community Services,2660,Purchased Care,Third Party Supplier,STANDARD,5771,JAAA-Directorate of Social Care and Health Services
RBC Legal Entity,03/02/2022,4648368,269519,SPECTRUM GROUP SERVICES LIMITED,PS Acquired Community Services,532,Purchased Care,Third Party Supplier,STANDARD,5771,JAAA-Directorate of Social Care and Health Services
RBC Legal Entity,03/02/2022,4648369,269519,SPECTRUM GROUP SERVICES LIMITED,PS Acquired Community Services,1368,Purchased Care,Third Party Supplier,STANDARD,5771,JAAA-Directorate of Social Care and Health Services
RBC Legal Entity,03/02/2022,4648370,269519,SPECTRUM GROUP SERVICES LIMITED,PS Acquired Community Services,1425,Purchased Care,Third Party Supplier,STANDARD,5771,JAAA-Directorate of Social Care and Health Services
RBC Legal Entity,03/02/2022,4648371,269519,SPECTRUM GROUP SERVICES LIMITED,PS Acquired Community Services,1425,Purchased Care,Third Party Supplier,STANDARD,5771,JAAA-Directorate of Social Care and Health Services
RBC Legal Entity,03/02/2022,4648373,269519,SPECTRUM GROUP SERVICES LIMITED,PS Acquired Community Services,665,Purchased Care,Third Party Supplier,STANDARD,5771,JAAA-Directorate of Social Care and Health Services
RBC Legal Entity,03/02/2022,4648375,269519,SPECTRUM GROUP SERVICES LIMITED,PS Acquired Community Services,532,Purchased Care,Third Party Supplier,STANDARD,5771,JAAA-Directorate of Social Care and Health Services
RBC Legal Entity,03/02/2022,4648381,269519,SPECTRUM GROUP SERVICES LIMITED,PS Acquired Community Services,1102,Purchased Care,Third Party Supplier,STANDARD,5771,JAAA-Directorate of Social Care and Health Services
RBC Legal Entity,03/02/2022,4648383,269519,SPECTRUM GROUP SERVICES LIMITED,PS Acquired Community Services,931,Purchased Care,Third Party Supplier,STANDARD,5771,JAAA-Directorate of Social Care and Health Services
RBC Legal Entity,03/02/2022,4648385,269519,SPECTRUM GROUP SERVICES LIMITED,Mental Health Community Services,608,Purchased Care,Third Party Supplier,STANDARD,5731,JAAA-Directorate of Social Care and Health Services
RBC Legal Entity,03/02/2022,4648386,269519,SPECTRUM GROUP SERVICES LIMITED,PS Acquired Community Services,2926,Purchased Care,Third Party Supplier,STANDARD,5771,JAAA-Directorate of Social Care and Health Services
RBC Legal Entity,03/02/2022,4648387,269519,SPECTRUM GROUP SERVICES LIMITED,PS Acquired Community Services,1102,Purchased Care,Third Party Supplier,STANDARD,5771,JAAA-Directorate of Social Care and Health Services
RBC Legal Entity,03/02/2022,4648388,269519,SPECTRUM GROUP SERVICES LIMITED,Mental Health Community Services,608,Purchased Care,Third Party Supplier,STANDARD,5731,JAAA-Directorate of Social Care and Health Services
RBC Legal Entity,03/02/2022,4648390,269519,SPECTRUM GROUP SERVICES LIMITED,PS Acquired Community Services,931,Purchased Care,Third Party Supplier,STANDARD,5771,JAAA-Directorate of Social Care and Health Services
RBC Legal Entity,03/02/2022,4648391,269519,SPECTRUM GROUP SERVICES LIMITED,PS Acquired Community Services,1349,Purchased Care,Third Party Supplier,STANDARD,5771,JAAA-Directorate of Social Care and Health Services
RBC Legal Entity,03/02/2022,4648393,269519,SPECTRUM GROUP SERVICES LIMITED,PS Acquired Community Services,532,Purchased Care,Third Party Supplier,STANDARD,5771,JAAA-Directorate of Social Care and Health Services
RBC Legal Entity,03/02/2022,4648394,269519,SPECTRUM GROUP SERVICES LIMITED,PS Acquired Community Services,1349,Purchased Care,Third Party Supplier,STANDARD,5771,JAAA-Directorate of Social Care and Health Services
RBC Legal Entity,03/02/2022,4648472,269522,BECKLAND CARE LTD,Mental Health Community Services,13532.32,Purchased Care,SUPPLIER,STANDARD,5731,JAAA-Directorate of Social Care and Health Services
RBC Legal Entity,03/02/2022,4648490,269523,ENRICHED CARE SUPPORT SERVICES LTD,Mental Health Community Services,1840,Purchased Care,Third Party Supplier,STANDARD,5731,JAAA-Directorate of Social Care and Health Services
RBC Legal Entity,03/02/2022,4648491,269523,ENRICHED CARE SUPPORT SERVICES LTD,Mental Health Community Services,2400,Purchased Care,Third Party Supplier,STANDARD,5731,JAAA-Directorate of Social Care and Health Services
RBC Legal Entity,03/02/2022,4648492,269523,ENRICHED CARE SUPPORT SERVICES LTD,Mental Health Community Services,3600,Purchased Care,Third Party Supplier,STANDARD,5731,JAAA-Directorate of Social Care and Health Services
RBC Legal Entity,03/02/2022,4648493,269523,ENRICHED CARE SUPPORT SERVICES LTD,Mental Health Community Services,4960,Purchased Care,Third Party Supplier,STANDARD,5731,JAAA-Directorate of Social Care and Health Services
RBC Legal Entity,03/02/2022,4648494,269523,ENRICHED CARE SUPPORT SERVICES LTD,LD Community Services,14840,Purchased Care,Third Party Supplier,STANDARD,5741,JAAA-Directorate of Social Care and Health Services
RBC Legal Entity,03/02/2022,4648523,269527,BANNER GROUP LTD,Buildings Payroll,1075.07,Stationery  Consumables,Third Party Supplier,STANDARD,3390,KAAA-Directorate of Economic Growth and Neighbourhood Services
RBC Legal Entity,03/02/2022,4640847,269528,TOTAL COMPUTER NETWORKS LTD,IT Management,710,Computer Consumables,Third Party Supplier,STANDARD,2300,EAAA-Chief Executive
RBC Legal Entity,03/02/2022,4648412,269529,THE REGARD PARTNERSHIP LTD,Mental Health Community Services,2301.32,Purchased Care,Third Party Supplier,STANDARD,5731,JAAA-Directorate of Social Care and Health Services
RBC Legal Entity,03/02/2022,4641841,269530,RUSSELL HOLLAND,JLT Disbursements,1500,Misc. Legal Expenses,INDIVIDUAL,STANDARD,2407,LAAA-Directorate of Resources
RBC Legal Entity,03/02/2022,4648556,269533,NATHANIEL LICHFIELD & PARTNERS LTD,Planning,2255,Consultancy Fees,Third Party Supplier,STANDARD,4700,KAAA-Directorate of Economic Growth and Neighbourhood Services
RBC Legal Entity,03/02/2022,4644487,269534,SKETCH STUDIOS LTD,Reading Abbey Revealed project,4961.79,Equipment Purchase & Repair,Third Party Supplier,STANDARD,1315,KAAA-Directorate of Economic Growth and Neighbourhood Services
RBC Legal Entity,03/02/2022,4648536,269534,SKETCH STUDIOS LTD,Reading Abbey Revealed project,-2480.89,Equipment Purchase & Repair,Third Party Supplier,CREDIT,1315,KAAA-Directorate of Economic Growth and Neighbourhood Services
RBC Legal Entity,03/02/2022,4648500,269535,THE KINGWOOD TRUST,LD Community Services,1234.56,Purchased Care,Third Party Supplier,STANDARD,5741,JAAA-Directorate of Social Care and Health Services
RBC Legal Entity,03/02/2022,4648503,269535,THE KINGWOOD TRUST,LD Community Services,1163.16,Purchased Care,Third Party Supplier,STANDARD,5741,JAAA-Directorate of Social Care and Health Services
RBC Legal Entity,03/02/2022,4648326,269536,RADIS COMMUNITY CARE,Mental Health Community Services,544.83,Purchased Care,Third Party Supplier,STANDARD,5731,JAAA-Directorate of Social Care and Health Services
RBC Legal Entity,03/02/2022,4648327,269536,RADIS COMMUNITY CARE,LD Community Services,891.54,Purchased Care,Third Party Supplier,STANDARD,5741,JAAA-Directorate of Social Care and Health Services
RBC Legal Entity,03/02/2022,4648330,269536,RADIS COMMUNITY CARE,PS Lifelong Community Services,660.4,Purchased Care,Third Party Supplier,STANDARD,5781,JAAA-Directorate of Social Care and Health Services
RBC Legal Entity,03/02/2022,4648335,269536,RADIS COMMUNITY CARE,LD Community Services,561.34,Purchased Care,Third Party Supplier,STANDARD,5741,JAAA-Directorate of Social Care and Health Services
RBC Legal Entity,03/02/2022,4648338,269536,RADIS COMMUNITY CARE,LD Community Services,2364.16,Purchased Care,Third Party Supplier,STANDARD,5741,JAAA-Directorate of Social Care and Health Services
RBC Legal Entity,03/02/2022,4648103,269538,WSP UK LTD,Strategic Transport & Concessionary Fares,2850.41,TPP to Others,SUPPLIER,STANDARD,4726,KAAA-Directorate of Economic Growth and Neighbourhood Services
RBC Legal Entity,03/02/2022,4641684,269539,CAPITA BUSINESS SERVICES LTD,Revenues & Benefits Systems,1305,TPP  Contract,Third Party Supplier,STANDARD,2266,LAAA-Directorate of Resources
RBC Legal Entity,03/02/2022,4641971,269541,SUNNYSIDE AUTOS,Fleet Management,5806.2,Unfair Wear + Tear Costs,Third Party Supplier,STANDARD,4552,KAAA-Directorate of Economic Growth and Neighbourhood Services
RBC Legal Entity,03/02/2022,4646528,269544,RIDGE & PARTNERS,HRA portfolio expansion,5000,External Fees  Misc.,SUPPLIER,STANDARD,8518,ZZZC-Capital
RBC Legal Entity,03/02/2022,4646556,269544,RIDGE & PARTNERS,HRA portfolio expansion,5000,External Fees  Misc.,SUPPLIER,STANDARD,8518,ZZZC-Capital
RBC Legal Entity,03/02/2022,4646557,269544,RIDGE & PARTNERS,HRA portfolio expansion,550,External Fees  Misc.,SUPPLIER,STANDARD,8518,ZZZC-Capital
RBC Legal Entity,03/02/2022,4646557,269544,RIDGE & PARTNERS,HRA portfolio expansion,750,External Fees  Misc.,SUPPLIER,STANDARD,8518,ZZZC-Capital
RBC Legal Entity,03/02/2022,4646579,269544,RIDGE & PARTNERS,HRA portfolio expansion,797,External Fees  Misc.,SUPPLIER,STANDARD,8518,ZZZC-Capital
RBC Legal Entity,03/02/2022,4648087,269548,READING HOTEL,Bed and Breakfast,455,Rents,SUPPLIER,STANDARD,5871,KAAA-Directorate of Economic Growth and Neighbourhood Services
RBC Legal Entity,03/02/2022,4648087,269548,READING HOTEL,Bed and Breakfast,3280,Rents,SUPPLIER,STANDARD,5871,KAAA-Directorate of Economic Growth and Neighbourhood Services
RBC Legal Entity,03/02/2022,4648093,269548,READING HOTEL,Bed and Breakfast,455,Rents,SUPPLIER,STANDARD,5871,KAAA-Directorate of Economic Growth and Neighbourhood Services
RBC Legal Entity,03/02/2022,4648093,269548,READING HOTEL,Bed and Breakfast,3955,Rents,SUPPLIER,STANDARD,5871,KAAA-Directorate of Economic Growth and Neighbourhood Services
RBC Legal Entity,03/02/2022,4648094,269548,READING HOTEL,Bed and Breakfast,455,Rents,SUPPLIER,STANDARD,5871,KAAA-Directorate of Economic Growth and Neighbourhood Services
RBC Legal Entity,03/02/2022,4648094,269548,READING HOTEL,Bed and Breakfast,2905,Rents,SUPPLIER,STANDARD,5871,KAAA-Directorate of Economic Growth and Neighbourhood Services
RBC Legal Entity,03/02/2022,4648177,269548,READING HOTEL,Single Homelessness Grants,520,Preventive+SupportiveServ,SUPPLIER,STANDARD,5860,KAAA-Directorate of Economic Growth and Neighbourhood Services
RBC Legal Entity,03/02/2022,4648474,269549,DIMENSIONS (UK) LTD,LD Community Services,8139.56,Purchased Care,Third Party Supplier,STANDARD,5741,JAAA-Directorate of Social Care and Health Services
RBC Legal Entity,03/02/2022,4648484,269549,DIMENSIONS (UK) LTD,LD Community Services,1357.53,Purchased Care,Third Party Supplier,STANDARD,5741,JAAA-Directorate of Social Care and Health Services
RBC Legal Entity,03/02/2022,4648550,269551,CHRISTIAN COMMUNITY ACTION,Voluntary Sector & Community Grants,75000,Discretionary Items,SUPPLIER,STANDARD,2041,LAAA-Directorate of Resources
RBC Legal Entity,04/02/2022,4646646,269560,MR DAVID LINTOTT,Planning,58600,Misc. Legal Expenses,SUPPLIER,STANDARD,4700,KAAA-Directorate of Economic Growth and Neighbourhood Services
RBC Legal Entity,04/02/2022,4641046,269562,KABA (UK) LTD,DLO Day to Day Trades,853.4,Materials Direct,SUPPLIER,STANDARD,4010,KAAA-Directorate of Economic Growth and Neighbourhood Services
RBC Legal Entity,04/02/2022,4642773,269563,RNID,Customer Services - Reception,1505.9,Translat.+Interpretation,Third Party Supplier,STANDARD,2595,LAAA-Directorate of Resources
RBC Legal Entity,04/02/2022,4642062,269568,ROWVALE HOTELS LTD T/A BOW GUEST HOUSE,Housing GF General Charges,623,Preventive+SupportiveServ,Third Party Supplier,STANDARD,5810,KAAA-Directorate of Economic Growth and Neighbourhood Services
RBC Legal Entity,04/02/2022,4645519,269568,ROWVALE HOTELS LTD T/A BOW GUEST HOUSE,Bed and Breakfast,560,Rents,Third Party Supplier,STANDARD,5871,KAAA-Directorate of Economic Growth and Neighbourhood Services
RBC Legal Entity,04/02/2022,4646529,269570,RIDGE & PARTNERS,HRA portfolio expansion,2500,External Fees  Misc.,SUPPLIER,STANDARD,8518,ZZZC-Capital
RBC Legal Entity,04/02/2022,4646530,269570,RIDGE & PARTNERS,HRA portfolio expansion,500,External Fees  Misc.,SUPPLIER,STANDARD,8518,ZZZC-Capital
RBC Legal Entity,04/02/2022,4646531,269570,RIDGE & PARTNERS,HRA portfolio expansion,500,External Fees  Misc.,SUPPLIER,STANDARD,8518,ZZZC-Capital
RBC Legal Entity,04/02/2022,4646578,269570,RIDGE & PARTNERS,HRA portfolio expansion,5000,External Fees  Misc.,SUPPLIER,STANDARD,8518,ZZZC-Capital
RBC Legal Entity,04/02/2022,4648641,269571,WHITLEY WOOD COMMUNITY CENTRE,Service Development,600,Printing + Duplicating,SUPPLIER,STANDARD,5302,JAAA-Directorate of Social Care and Health Services
RBC Legal Entity,04/02/2022,4626052,269573,READING HOTEL,Single Homelessness Grants,975,Preventive+SupportiveServ,SUPPLIER,STANDARD,5860,KAAA-Directorate of Economic Growth and Neighbourhood Services
RBC Legal Entity,04/02/2022,4648179,269573,READING HOTEL,Single Homelessness Grants,420,Preventive+SupportiveServ,SUPPLIER,STANDARD,5860,KAAA-Directorate of Economic Growth and Neighbourhood Services
RBC Legal Entity,04/02/2022,4643639,269574,EVERYCARE READING,Charles Clore Court,1018.28,Agency Staff,SUPPLIER,STANDARD,5157,JAAA-Directorate of Social Care and Health Services
RBC Legal Entity,04/02/2022,4648396,269575,TONNA CARE SERVICES LTD,LD Community Services,926.87,Purchased Care,Third Party Supplier,STANDARD,5741,JAAA-Directorate of Social Care and Health Services
RBC Legal Entity,04/02/2022,4648419,269575,TONNA CARE SERVICES LTD,LD Community Services,6931.16,Purchased Care,Third Party Supplier,STANDARD,5741,JAAA-Directorate of Social Care and Health Services
RBC Legal Entity,04/02/2022,4648420,269575,TONNA CARE SERVICES LTD,LD Community Services,3991.56,Purchased Care,Third Party Supplier,STANDARD,5741,JAAA-Directorate of Social Care and Health Services
RBC Legal Entity,04/02/2022,4648421,269575,TONNA CARE SERVICES LTD,PS Acquired Community Services,617.6,Purchased Care,Third Party Supplier,STANDARD,5771,JAAA-Directorate of Social Care and Health Services
RBC Legal Entity,04/02/2022,4648422,269575,TONNA CARE SERVICES LTD,LD Community Services,617.6,Purchased Care,Third Party Supplier,STANDARD,5741,JAAA-Directorate of Social Care and Health Services
RBC Legal Entity,04/02/2022,4648423,269575,TONNA CARE SERVICES LTD,Mental Health Community Services,617.6,Purchased Care,Third Party Supplier,STANDARD,5731,JAAA-Directorate of Social Care and Health Services
RBC Legal Entity,04/02/2022,4648424,269575,TONNA CARE SERVICES LTD,LD Community Services,3621.04,Purchased Care,Third Party Supplier,STANDARD,5741,JAAA-Directorate of Social Care and Health Services
RBC Legal Entity,04/02/2022,4648427,269575,TONNA CARE SERVICES LTD,PS Acquired Community Services,10375.68,Purchased Care,Third Party Supplier,STANDARD,5771,JAAA-Directorate of Social Care and Health Services
RBC Legal Entity,04/02/2022,4648428,269575,TONNA CARE SERVICES LTD,LD Community Services,648.48,Purchased Care,Third Party Supplier,STANDARD,5741,JAAA-Directorate of Social Care and Health Services
RBC Legal Entity,04/02/2022,4648429,269575,TONNA CARE SERVICES LTD,LD Community Services,741.12,Purchased Care,Third Party Supplier,STANDARD,5741,JAAA-Directorate of Social Care and Health Services
RBC Legal Entity,04/02/2022,4648431,269575,TONNA CARE SERVICES LTD,LD Community Services,926.4,Purchased Care,Third Party Supplier,STANDARD,5741,JAAA-Directorate of Social Care and Health Services
RBC Legal Entity,04/02/2022,4648432,269575,TONNA CARE SERVICES LTD,Social Support,864.64,Purchased Care,Third Party Supplier,STANDARD,5790,JAAA-Directorate of Social Care and Health Services
RBC Legal Entity,04/02/2022,4648433,269575,TONNA CARE SERVICES LTD,PS Acquired Community Services,2470.4,Purchased Care,Third Party Supplier,STANDARD,5771,JAAA-Directorate of Social Care and Health Services
RBC Legal Entity,04/02/2022,4648440,269575,TONNA CARE SERVICES LTD,M&C Acquired Community Services,1232.45,Purchased Care,Third Party Supplier,STANDARD,5751,JAAA-Directorate of Social Care and Health Services
RBC Legal Entity,04/02/2022,4648446,269575,TONNA CARE SERVICES LTD,LD Community Services,7639.68,Purchased Care,Third Party Supplier,STANDARD,5741,JAAA-Directorate of Social Care and Health Services
RBC Legal Entity,04/02/2022,4648451,269575,TONNA CARE SERVICES LTD,LD Community Services,753.6,Purchased Care,Third Party Supplier,STANDARD,5741,JAAA-Directorate of Social Care and Health Services
RBC Legal Entity,04/02/2022,4648460,269575,TONNA CARE SERVICES LTD,LD Community Services,753.6,Purchased Care,Third Party Supplier,STANDARD,5741,JAAA-Directorate of Social Care and Health Services
RBC Legal Entity,04/02/2022,4648462,269575,TONNA CARE SERVICES LTD,M&C Acquired Community Services,706.5,Purchased Care,Third Party Supplier,STANDARD,5751,JAAA-Directorate of Social Care and Health Services
RBC Legal Entity,04/02/2022,4648464,269575,TONNA CARE SERVICES LTD,LD Community Services,753.6,Purchased Care,Third Party Supplier,STANDARD,5741,JAAA-Directorate of Social Care and Health Services
RBC Legal Entity,04/02/2022,4648471,269575,TONNA CARE SERVICES LTD,LD Community Services,5839.54,Purchased Care,Third Party Supplier,STANDARD,5741,JAAA-Directorate of Social Care and Health Services
RBC Legal Entity,04/02/2022,4648674,269576,READING REFUGEE SUPPORT GROUP,Voluntary Sector & Community Grants,5000,Discretionary Items,SUPPLIER,STANDARD,2041,LAAA-Directorate of Resources
RBC Legal Entity,04/02/2022,4646574,269577,OBAS UK LTD,Highways,499,Materials Direct,SUPPLIER,STANDARD,4252,KAAA-Directorate of Economic Growth and Neighbourhood Services
RBC Legal Entity,04/02/2022,4646574,269577,OBAS UK LTD,Highways,949.9,Materials Direct,SUPPLIER,STANDARD,4252,KAAA-Directorate of Economic Growth and Neighbourhood Services
RBC Legal Entity,04/02/2022,4642140,269578,ARRIVA THE SHIRES LTD,Strategic Transport & Concessionary Fares,6281.03,Payments for Bus Services,SUPPLIER,STANDARD,4726,KAAA-Directorate of Economic Growth and Neighbourhood Services
RBC Legal Entity,04/02/2022,4648568,269579,SMS ENVIRONMENTAL LTD,Corporate Maintenance Services,420,TPP  Contract,SUB-CONTRACTOR,STANDARD,4080,KAAA-Directorate of Economic Growth and Neighbourhood Services
RBC Legal Entity,04/02/2022,4641040,269580,GAP GROUP LTD,Grounds Maintenance,422.5,Horticultrl MachineryHire,SUPPLIER,STANDARD,1306,KAAA-Directorate of Economic Growth and Neighbourhood Services
RBC Legal Entity,04/02/2022,4643606,269581,REDLAND HEALTHCARE LTD,ASC Short Term Team,1362.8,Equipment Purchase & Repair,SUPPLIER,STANDARD,5722,JAAA-Directorate of Social Care and Health Services
RBC Legal Entity,04/02/2022,4643626,269583,WILLIAM MCVICKER,Town Hall - Concert Hall Events,874,Professional Fees,SUPPLIER,STANDARD,1213,KAAA-Directorate of Economic Growth and Neighbourhood Services
RBC Legal Entity,04/02/2022,4643455,269584,M & B ELECTRICAL SERVICES,Emmer Green Primary,7400,External Fees  Misc.,SUB-CONTRACTOR,STANDARD,8214,ZZZC-Capital
RBC Legal Entity,04/02/2022,4643456,269584,M & B ELECTRICAL SERVICES,Emmer Green Primary,21400,External Fees  Misc.,SUB-CONTRACTOR,STANDARD,8214,ZZZC-Capital
RBC Legal Entity,04/02/2022,4648691,269585,FLEETWOOD GRAB SERVICES LIMITED,Highways,280,Waste Disposal,Third Party Supplier,STANDARD,4252,KAAA-Directorate of Economic Growth and Neighbourhood Services
RBC Legal Entity,04/02/2022,4648691,269585,FLEETWOOD GRAB SERVICES LIMITED,Highways,280,Waste Disposal,Third Party Supplier,STANDARD,4252,KAAA-Directorate of Economic Growth and Neighbourhood Services
RBC Legal Entity,04/02/2022,4648691,269585,FLEETWOOD GRAB SERVICES LIMITED,Highways,280,Waste Disposal,Third Party Supplier,STANDARD,4252,KAAA-Directorate of Economic Growth and Neighbourhood Services
RBC Legal Entity,04/02/2022,4648691,269585,FLEETWOOD GRAB SERVICES LIMITED,Highways,280,Waste Disposal,Third Party Supplier,STANDARD,4252,KAAA-Directorate of Economic Growth and Neighbourhood Services
RBC Legal Entity,04/02/2022,4648691,269585,FLEETWOOD GRAB SERVICES LIMITED,Highways,280,Waste Disposal,Third Party Supplier,STANDARD,4252,KAAA-Directorate of Economic Growth and Neighbourhood Services
RBC Legal Entity,04/02/2022,4648691,269585,FLEETWOOD GRAB SERVICES LIMITED,Highways,280,Waste Disposal,Third Party Supplier,STANDARD,4252,KAAA-Directorate of Economic Growth and Neighbourhood Services
RBC Legal Entity,04/02/2022,4648691,269585,FLEETWOOD GRAB SERVICES LIMITED,Highways,459,Materials Direct,Third Party Supplier,STANDARD,4252,KAAA-Directorate of Economic Growth and Neighbourhood Services
